Workbook

Sheet Fiche_parcelle
A1: n0 p | B1: Section | C1: N° parcelle | D1: Civilité | E1: Nom de tous les propriétaires (parcelle, BND, local) | F1: Adresse de tous les propriétaires (parcelle, BND, local) | G1: formule | H1: nom de voie | I1: code postal | J1: ville | N1: Superficie
A2: 1 | B2: AP | C2: 10 | D2: Madame | E2: A | F2: Chemin des mimosas 04210 VILLE | G2: =SUMPRODUCT(ISNUMBER(MID(SUBSTITUTE(F2," ","|"),ROW($1:$3552),5)*1)*ROW($1:$3552)) -> 20 | H2: =LEFT(F2,G2-1) -> Chemin des mimosas | I2: =MID(F2,G2,5) -> 04210 | J2: =MID(F2,G2+6,50) -> VILLE | M2: =IF(E1=E2,CONCATENATE(M1,",",B2,C2),CONCATENATE(B2,C2)) -> AP10 | N2: 388
A3: =IF(E2=E3,A2,A2+1) -> 2 | B3: AP | C3: 10 | D3: Monsieur | E3: B | F3: Rue des Pâquerettes 04210 VILLE | G3: 21 | H3: Rue des Pâquerettes | I3: 04210 | J3: VILLE | M3: =IF(E2=E3,CONCATENATE(M2,",",B3,C3),CONCATENATE(B3,C3)) -> AP10 | N3: 388
A4: 3 | B4: AN | C4: 171 | D4: Monsieur | E4: C | F4: Boulevard des Lilas 04210 VILLE | G4: 21 | H4: Boulevard des Lilas | I4: 04210 | J4: VILLE | M4: =IF(E3=E4,CONCATENATE(M3,",",B4,C4),CONCATENATE(B4,C4)) -> AN171 | N4: 515
A5: 4 | B5: AP | C5: 115 | D5: Monsieur | E5: D | F5: Impasse des Champs 04210 VILLE | G5: 20 | H5: Impasse des Champs | I5: 04210 | J5: VILLE | M5: =IF(E4=E5,CONCATENATE(M4,",",B5,C5),CONCATENATE(B5,C5)) -> AP115 | N5: 211
A6: 5 | B6: AP | C6: 11 | D6: Société | E6: E | F6: Rue des Tilleuls 04210 VILLE | G6: 18 | H6: Rue des Tilleuls | I6: 04210 | J6: VILLE | M6: =CONCATENATE(B6,C6) -> AP11 | N6: 420
A7: 6 | B7: D | C7: 1884 | D7: Madame | E7: F | F7: Place aux Roses 04210 VILLE | G7: 17 | H7: Place aux Roses | I7: 04210 | J7: VILLE | M7: =IF(E6=E7,CONCATENATE(M6,",",B7,C7),CONCATENATE(B7,C7)) -> D1884 | N7: 604
A8: 6 | B8: D | C8: 1885 | D8: Madame | E8: F | F8: Place aux Roses 04210 VILLE | G8: 17 | H8: Place aux Roses | I8: 04210 | J8: VILLE | M8: D1884,D1885 | N8: 84
A9: 7 | B9: AP | C9: 317 | D9: Madame | E9: G | F9: avenue Inconnue 04210 VILLE | G9: 17 | H9: avenue Inconnue | I9: 04210 | J9: VILLE | M9: AP317 | N9: 1 135
A10: 7 | B10: D | C10: 3286 | D10: Madame | E10: G | F10: avenue Inconnue 04210 VILLE | G10: 17 | H10: avenue Inconnue | I10: 04210 | J10: VILLE | M10: AP317,D3286 | N10: 480
A11: 7 | B11: D | C11: 3287 | D11: Madame | E11: G | F11: avenue Inconnue 04210 VILLE | G11: 17 | H11: avenue Inconnue | I11: 04210 | J11: VILLE | M11: AP317,D3286,D3287 | N11: 800
A12: 8 | B12: AK | C12: 137 | D12: Monsieur | E12: H | F12: rue Sanom 04210 VILLE | G12: 11 | H12: rue Sanom | I12: 04210 | J12: VILLE | M12: AK137 | N12: 477
A13: 8 | B13: AK | C13: 140 | D13: Monsieur | E13: H | F13: rue Sanom 04210 VILLE | G13: 11 | H13: rue Sanom | I13: 04210 | J13: VILLE | M13: AK137,AK140 | N13: 666
A14: 9 | B14: AK | C14: 137 | D14: Monsieur | E14: I | F14: allée des Pins 04210 VILLE | G14: 16 | H14: allée des Pins | I14: 04210 | J14: VILLE | M14: AK137 | N14: 477
A15: 9 | B15: AK | C15: 140 | D15: Monsieur | E15: I | F15: allée des Pins 04210 VILLE | G15: 16 | H15: allée des Pins | I15: 04210 | J15: VILLE | M15: AK137,AK140 | N15: 666
A16: 10 | B16: AM | C16: 254 | D16: Société | E16: J | F16: place des Hêtres 04210 VILLE | G16: 18 | H16: place des Hêtres | I16: 04210 | J16: VILLE | M16: AM254 | N16: 620
A17: 10 | B17: AM | C17: 319 | D17: Société | E17: J | F17: place des Hêtres 04210 VILLE | G17: 18 | H17: place des Hêtres | I17: 04210 | J17: VILLE | M17: AM254,AM319 | N17: 284
A18: 10 | B18: AM | C18: 321 | D18: Société | E18: J | F18: place des Hêtres 04210 VILLE | G18: 18 | H18: place des Hêtres | I18: 04210 | J18: VILLE | M18: AM254,AM319,AM321 | N18: 199
A19: 10 | B19: AP | C19: 263 | D19: Société | E19: J | F19: place des Hêtres 04210 VILLE | G19: 18 | H19: place des Hêtres | I19: 04210 | J19: VILLE | M19: AM254,AM319,AM321,AP263 | N19: 225
A20: 10 | B20: AP | C20: 319 | D20: Société | E20: J | F20: place des Hêtres 04210 VILLE | G20: 18 | H20: place des Hêtres | I20: 04210 | J20: VILLE | M20: AM254,AM319,AM321,AP263,AP319 | N20: 289
A21: 11 | B21: AP | C21: 318 | D21: Madame | E21: K | F21: rue des Cyprès 04210 VILLE | G21: 16 | H21: rue des Cyprès | I21: 04210 | J21: VILLE | M21: AP318 | N21: 1 048
A22: 12 | B22: AP | C22: 318 | D22: Monsieur | E22: L | F22: impasse fleurie 04210 VILLE | G22: 17 | H22: impasse fleurie | I22: 04210 | J22: VILLE | M22: AP318 | N22: 1 048
M3643: =IF(E3542=E3543,CONCATENATE(M3642,",",B3543,C3543),CONCATENATE(B3543,C3543)) -> ,
M3644: ,,
M3645: ,,,
M3646: ,,,,
M3647: ,,,,,
M3648: ,,,,,,
M3649: ,,,,,,,
M3650: ,,,,,,,,
M3651: ,,,,,,,,,
M3652: ,,,,,,,,,,

Sheet Noms en colonnes
A1: n0 p | B1: Civilité | C1: Nom de tous les propriétaires (parcelle, BND, local) | D1: Nom | G1: Prénom 1 | H1: Prénom 2 | I1: Prénom 3 | J1: Prénom 4 | K1: Nom de jeune fille
A2: 1 | B2: Madame | C2: ACERBIS DIT ALVARES VALERIE | D2: A | E2: ALVARES | F2: ACERBIS | G2: VALERIE | K2: M
A3: 2 | B3: Monsieur | C3: ACERBIS PASCAL | D3: B | F3: ACERBIS | G3: PASCAL | K3: =IF(E3<>"",F3,"") -> 
A4: 3 | B4: Monsieur | C4: ALBERT DANIEL PAUL | D4: C | F4: ALBERT | G4: DANIEL | H4: PAUL | K4: =IF(E4<>"",F4,"") -> 
A5: 4 | B5: Monsieur | C5: ALBERT JOSEPH MARTIN NAZAIRE | D5: D | F5: ALBERT | G5: JOSEPH | H5: MARTIN | I5: NAZAIRE | K5: =IF(E5<>"",F5,"") -> 
A6: 5 | B6: Société | C6: ALIX | D6: E | F6: ALIX | K6: =IF(E6<>"",F6,"") -> 
A7: 6 | B7: Madame | C7: ANDRE ARLETTE EMILIA DIT FINE ARLETTE | D7: F | E7: FINE | F7: ANDRE | G7: ARLETTE | H7: EMILIA | K7: N
A8: 7 | B8: Madame | C8: ARDUIN ELVIRE MARCELLE LOUISE DIT CROSASSO ELVIRE | D8: G | E8: CROSASSO | F8: ARDUIN | G8: ELVIRE | H8: MARCELLE | I8: LOUISE | K8: O
A9: 8 | B9: Monsieur | C9: ARNOUX JEAN-PAUL GASTON | D9: H | F9: ARNOUX | G9: JEAN-PAUL | H9: GASTON | K9: =IF(E9<>"",F9,"") -> 
A10: 9 | B10: Monsieur | C10: ARNOUX PAUL MARC | D10: I | F10: ARNOUX | G10: PAUL | H10: MARC | K10: =IF(E10<>"",F10,"") -> 
A11: 10 | B11: Societe | C11: ASS SYNDICALE DU GRAND CANAL | D11: J | F11: ASS | K11: =IF(E11<>"",F11,"") -> 
A12: 11 | B12: Madame | C12: ASTIER ANNIE ODETTE DENISE DIT BAISSET ANNIE | D12: K | E12: BAISSET | F12: ASTIER | G12: ANNIE | H12: ODETTE | I12: DENISE | K12: P
A13: 12 | B13: Monsieur | C13: ASTIER FABIEN ELIE | D13: L | F13: ASTIER | G13: FABIEN | H13: ELIE | K13: =IF(E13<>"",F13,"") -> 

Sheet Feuil1
A1: N° extrait propriétaire | B1: Concaténé | E1: essai | F1: Liste parcelles | I1: Liste parcelles
A2: =Fiche_parcelle!A2 -> 1 | B2: =CONCATENATE('Etat complet'!B2,'Etat complet'!C2) -> AP10 | E2: =A2 -> 1 | F2: =IF(E2<>"",B2,"") -> AP10 | H2: 1 | I2: AP10
A3: =Fiche_parcelle!A3 -> 2 | B3: =IF('Etat complet'!A3='Etat complet'!A2,CONCATENATE(B2,", ",'Etat complet'!B3,'Etat complet'!C3),CONCATENATE('Etat complet'!B3,'Etat complet'!C3)) -> AP10 | E3: =IF(A3=A4,"",CONCATENATE(A3)) -> 2 | F3: AP10 | H3: 2 | I3: AP10
A4: =Fiche_parcelle!A4 -> 3 | B4: =IF('Etat complet'!A4='Etat complet'!A3,CONCATENATE(B3,", ",'Etat complet'!B4,'Etat complet'!C4),CONCATENATE('Etat complet'!B4,'Etat complet'!C4)) -> AN171 | E4: 3 | F4: AN171 | H4: 3 | I4: AN171
A5: =Fiche_parcelle!A5 -> 4 | B5: =IF('Etat complet'!A5='Etat complet'!A4,CONCATENATE(B4,", ",'Etat complet'!B5,'Etat complet'!C5),CONCATENATE('Etat complet'!B5,'Etat complet'!C5)) -> AP115 | E5: 4 | F5: AP115 | H5: 4 | I5: AP115
A6: =Fiche_parcelle!A6 -> 5 | B6: =IF('Etat complet'!A6='Etat complet'!A5,CONCATENATE(B5,", ",'Etat complet'!B6,'Etat complet'!C6),CONCATENATE('Etat complet'!B6,'Etat complet'!C6)) -> AP11 | E6: 5 | F6: AP11 | H6: 5 | I6: AP11
A7: =Fiche_parcelle!A7 -> 6 | B7: =IF('Etat complet'!A7='Etat complet'!A6,CONCATENATE(B6,", ",'Etat complet'!B7,'Etat complet'!C7),CONCATENATE('Etat complet'!B7,'Etat complet'!C7)) -> D1884 | H7: 6 | I7: D1884, D1885
A8: =Fiche_parcelle!A8 -> 6 | B8: =IF('Etat complet'!A8='Etat complet'!A7,CONCATENATE(B7,", ",'Etat complet'!B8,'Etat complet'!C8),CONCATENATE('Etat complet'!B8,'Etat complet'!C8)) -> D1884, D1885 | E8: 6 | F8: D1884, D1885 | H8: 7 | I8: AP317, D3286, D3287
A9: =Fiche_parcelle!A9 -> 7 | B9: =IF('Etat complet'!A9='Etat complet'!A8,CONCATENATE(B8,", ",'Etat complet'!B9,'Etat complet'!C9),CONCATENATE('Etat complet'!B9,'Etat complet'!C9)) -> AP317 | H9: 8 | I9: AK137, AK140
A10: =Fiche_parcelle!A10 -> 7 | B10: =IF('Etat complet'!A10='Etat complet'!A9,CONCATENATE(B9,", ",'Etat complet'!B10,'Etat complet'!C10),CONCATENATE('Etat complet'!B10,'Etat complet'!C10)) -> AP317, D3286 | H10: 9 | I10: AK137, AK140
A11: =Fiche_parcelle!A11 -> 7 | B11: =IF('Etat complet'!A11='Etat complet'!A10,CONCATENATE(B10,", ",'Etat complet'!B11,'Etat complet'!C11),CONCATENATE('Etat complet'!B11,'Etat complet'!C11)) -> AP317, D3286, D3287 | E11: 7 | F11: AP317, D3286, D3287 | H11: 10 | I11: AM254, AM319, AM321, AP263, AP319
A12: =Fiche_parcelle!A12 -> 8 | B12: =IF('Etat complet'!A12='Etat complet'!A11,CONCATENATE(B11,", ",'Etat complet'!B12,'Etat complet'!C12),CONCATENATE('Etat complet'!B12,'Etat complet'!C12)) -> AK137 | H12: 11 | I12: AP318
A13: =Fiche_parcelle!A13 -> 8 | B13: =IF('Etat complet'!A13='Etat complet'!A12,CONCATENATE(B12,", ",'Etat complet'!B13,'Etat complet'!C13),CONCATENATE('Etat complet'!B13,'Etat complet'!C13)) -> AK137, AK140 | E13: 8 | F13: AK137, AK140 | H13: 12 | I13: AP318
A14: =Fiche_parcelle!A14 -> 9 | B14: =IF('Etat complet'!A14='Etat complet'!A13,CONCATENATE(B13,", ",'Etat complet'!B14,'Etat complet'!C14),CONCATENATE('Etat complet'!B14,'Etat complet'!C14)) -> AK137 | H14: 13 | I14: AP318
A15: =Fiche_parcelle!A15 -> 9 | B15: =IF('Etat complet'!A15='Etat complet'!A14,CONCATENATE(B14,", ",'Etat complet'!B15,'Etat complet'!C15),CONCATENATE('Etat complet'!B15,'Etat complet'!C15)) -> AK137, AK140 | E15: 9 | F15: AK137, AK140 | H15: 14 | I15: AP318
A16: =Fiche_parcelle!A16 -> 10 | B16: =IF('Etat complet'!A16='Etat complet'!A15,CONCATENATE(B15,", ",'Etat complet'!B16,'Etat complet'!C16),CONCATENATE('Etat complet'!B16,'Etat complet'!C16)) -> AM254 | H16: 15 | I16: AP318
A17: =Fiche_parcelle!A17 -> 10 | B17: =IF('Etat complet'!A17='Etat complet'!A16,CONCATENATE(B16,", ",'Etat complet'!B17,'Etat complet'!C17),CONCATENATE('Etat complet'!B17,'Etat complet'!C17)) -> AM254, AM319 | H17: 16 | I17: AP318
A18: =Fiche_parcelle!A18 -> 10 | B18: =IF('Etat complet'!A18='Etat complet'!A17,CONCATENATE(B17,", ",'Etat complet'!B18,'Etat complet'!C18),CONCATENATE('Etat complet'!B18,'Etat complet'!C18)) -> AM254, AM319, AM321 | H18: 17 | I18: AK137, AK140
A19: =Fiche_parcelle!A19 -> 10 | B19: =IF('Etat complet'!A19='Etat complet'!A18,CONCATENATE(B18,", ",'Etat complet'!B19,'Etat complet'!C19),CONCATENATE('Etat complet'!B19,'Etat complet'!C19)) -> AM254, AM319, AM321, AP263 | H19: 18 | I19: AK137, AK140
A20: =Fiche_parcelle!A20 -> 10 | B20: =IF('Etat complet'!A20='Etat complet'!A19,CONCATENATE(B19,", ",'Etat complet'!B20,'Etat complet'!C20),CONCATENATE('Etat complet'!B20,'Etat complet'!C20)) -> AM254, AM319, AM321, AP263, AP319 | E20: 10 | F20: AM254, AM319, AM321, AP263, AP319 | H20: 19 | I20: AP57
A21: =Fiche_parcelle!A21 -> 11 | B21: =IF('Etat complet'!A21='Etat complet'!A20,CONCATENATE(B20,", ",'Etat complet'!B21,'Etat complet'!C21),CONCATENATE('Etat complet'!B21,'Etat complet'!C21)) -> AP318 | E21: 11 | F21: AP318 | H21: 20 | I21: D3293
A22: =Fiche_parcelle!A22 -> 12 | B22: =IF('Etat complet'!A22='Etat complet'!A21,CONCATENATE(B21,", ",'Etat complet'!B22,'Etat complet'!C22),CONCATENATE('Etat complet'!B22,'Etat complet'!C22)) -> AP318 | E22: 12 | F22: AP318 | H22: 21 | I22: AK364

Sheet Adresse clean
A1: n0 p | B1: Ligne d'adresse 1 | C1: Code postal | D1: ville
A2: 1 | B2: =VLOOKUP(A2,Fiche_parcelle!$A$1:$N$22,8,FALSE) -> Chemin des mimosas | C2: =VLOOKUP(A2,Fiche_parcelle!$A$1:$N$22,9,FALSE) -> 04210 | D2: =VLOOKUP(A2,Fiche_parcelle!$A$1:$N$22,10,FALSE) -> VILLE
A3: 2 | B3: =VLOOKUP(A3,Fiche_parcelle!$A$1:$N$22,8,FALSE) -> Rue des Pâquerettes | C3: =VLOOKUP(A3,Fiche_parcelle!$A$1:$N$22,9,FALSE) -> 04210 | D3: =VLOOKUP(A3,Fiche_parcelle!$A$1:$N$22,10,FALSE) -> VILLE
A4: 3 | B4: =VLOOKUP(A4,Fiche_parcelle!$A$1:$N$22,8,FALSE) -> Boulevard des Lilas | C4: =VLOOKUP(A4,Fiche_parcelle!$A$1:$N$22,9,FALSE) -> 04210 | D4: =VLOOKUP(A4,Fiche_parcelle!$A$1:$N$22,10,FALSE) -> VILLE
A5: 4 | B5: =VLOOKUP(A5,Fiche_parcelle!$A$1:$N$22,8,FALSE) -> Impasse des Champs | C5: =VLOOKUP(A5,Fiche_parcelle!$A$1:$N$22,9,FALSE) -> 04210 | D5: =VLOOKUP(A5,Fiche_parcelle!$A$1:$N$22,10,FALSE) -> VILLE
A6: 5 | B6: =VLOOKUP(A6,Fiche_parcelle!$A$1:$N$22,8,FALSE) -> Rue des Tilleuls | C6: =VLOOKUP(A6,Fiche_parcelle!$A$1:$N$22,9,FALSE) -> 04210 | D6: =VLOOKUP(A6,Fiche_parcelle!$A$1:$N$22,10,FALSE) -> VILLE
A7: 6 | B7: =VLOOKUP(A7,Fiche_parcelle!$A$1:$N$22,8,FALSE) -> Place aux Roses | C7: =VLOOKUP(A7,Fiche_parcelle!$A$1:$N$22,9,FALSE) -> 04210 | D7: =VLOOKUP(A7,Fiche_parcelle!$A$1:$N$22,10,FALSE) -> VILLE
A8: 7 | B8: =VLOOKUP(A8,Fiche_parcelle!$A$1:$N$22,8,FALSE) -> avenue Inconnue | C8: =VLOOKUP(A8,Fiche_parcelle!$A$1:$N$22,9,FALSE) -> 04210 | D8: =VLOOKUP(A8,Fiche_parcelle!$A$1:$N$22,10,FALSE) -> VILLE
A9: 8 | B9: =VLOOKUP(A9,Fiche_parcelle!$A$1:$N$22,8,FALSE) -> rue Sanom | C9: =VLOOKUP(A9,Fiche_parcelle!$A$1:$N$22,9,FALSE) -> 04210 | D9: =VLOOKUP(A9,Fiche_parcelle!$A$1:$N$22,10,FALSE) -> VILLE
A10: 9 | B10: =VLOOKUP(A10,Fiche_parcelle!$A$1:$N$22,8,FALSE) -> allée des Pins | C10: =VLOOKUP(A10,Fiche_parcelle!$A$1:$N$22,9,FALSE) -> 04210 | D10: =VLOOKUP(A10,Fiche_parcelle!$A$1:$N$22,10,FALSE) -> VILLE
A11: 10 | B11: =VLOOKUP(A11,Fiche_parcelle!$A$1:$N$22,8,FALSE) -> place des Hêtres | C11: =VLOOKUP(A11,Fiche_parcelle!$A$1:$N$22,9,FALSE) -> 04210 | D11: =VLOOKUP(A11,Fiche_parcelle!$A$1:$N$22,10,FALSE) -> VILLE
A12: 11 | B12: =VLOOKUP(A12,Fiche_parcelle!$A$1:$N$22,8,FALSE) -> rue des Cyprès | C12: =VLOOKUP(A12,Fiche_parcelle!$A$1:$N$22,9,FALSE) -> 04210 | D12: =VLOOKUP(A12,Fiche_parcelle!$A$1:$N$22,10,FALSE) -> VILLE
A13: 12 | B13: =VLOOKUP(A13,Fiche_parcelle!$A$1:$N$22,8,FALSE) -> impasse fleurie | C13: =VLOOKUP(A13,Fiche_parcelle!$A$1:$N$22,9,FALSE) -> 04210 | D13: =VLOOKUP(A13,Fiche_parcelle!$A$1:$N$22,10,FALSE) -> VILLE

Sheet Détail propriétaire
A1: N° prop | B1: Civilité | C1: NOM | D1: Prénom 1 | E1: Prénom 2 | F1: Prénom 3 | G1: Nom de jeune fille | H1: Adresse | L1: Parcelle(s) | M1: Date naissance | N1: Lieu de naissance | O1: Profession
A2: 1 | B2: ='Noms en colonnes'!B2 -> Madame | C2: ='Noms en colonnes'!D2 -> A | D2: =PROPER('Noms en colonnes'!G2) -> Valerie | E2: =PROPER('Noms en colonnes'!H2) ->  | F2: =PROPER('Noms en colonnes'!I2) ->  | G2: =IF(AND(B2="Madame",'Noms en colonnes'!K2<>""),CONCATENATE("née ",'Noms en colonnes'!K2),"") -> née M | H2: =CONCATENATE("demeurant "&PROPER('Adresse clean'!B2)&" "&'Adresse clean'!C2&" "&'Adresse clean'!D2) -> demeurant Chemin Des Mimosas 04210 VILLE | L2: =VLOOKUP(A2,Feuil1!H:I,2,FALSE) -> AP10 | M2: =CONCATENATE("le ") -> le | N2: =CONCATENATE("à ") -> à | O2: exerçant la profession de
A3: 2 | B3: ='Noms en colonnes'!B3 -> Monsieur | C3: ='Noms en colonnes'!D3 -> B | D3: =PROPER('Noms en colonnes'!G3) -> Pascal | E3: =PROPER('Noms en colonnes'!H3) ->  | F3: =PROPER('Noms en colonnes'!I3) ->  | G3: =IF(AND(B3="Madame",'Noms en colonnes'!K3<>""),CONCATENATE("née ",'Noms en colonnes'!K3),"") ->  | H3: =CONCATENATE("demeurant "&PROPER('Adresse clean'!B3)&" "&'Adresse clean'!C3&" "&'Adresse clean'!D3) -> demeurant Rue Des Pâquerettes 04210 VILLE | L3: =VLOOKUP(A3,Feuil1!H:I,2,FALSE) -> AP10 | M3: =CONCATENATE("le ") -> le | N3: =CONCATENATE("à ") -> à | O3: exerçant la profession de
A4: 3 | B4: ='Noms en colonnes'!B4 -> Monsieur | C4: ='Noms en colonnes'!D4 -> C | D4: =PROPER('Noms en colonnes'!G4) -> Daniel | E4: =PROPER('Noms en colonnes'!H4) -> Paul | F4: =PROPER('Noms en colonnes'!I4) ->  | G4: =IF(AND(B4="Madame",'Noms en colonnes'!K4<>""),CONCATENATE("née ",'Noms en colonnes'!K4),"") ->  | H4: =CONCATENATE("demeurant "&PROPER('Adresse clean'!B4)&" "&'Adresse clean'!C4&" "&'Adresse clean'!D4) -> demeurant Boulevard Des Lilas 04210 VILLE | L4: =VLOOKUP(A4,Feuil1!H:I,2,FALSE) -> AN171 | M4: le | N4: à | O4: exerçant la profession de
A5: 4 | B5: ='Noms en colonnes'!B5 -> Monsieur | C5: ='Noms en colonnes'!D5 -> D | D5: =PROPER('Noms en colonnes'!G5) -> Joseph | E5: =PROPER('Noms en colonnes'!H5) -> Martin | F5: =PROPER('Noms en colonnes'!I5) -> Nazaire | G5: =IF(AND(B5="Madame",'Noms en colonnes'!K5<>""),CONCATENATE("née ",'Noms en colonnes'!K5),"") ->  | H5: =CONCATENATE("demeurant "&PROPER('Adresse clean'!B5)&" "&'Adresse clean'!C5&" "&'Adresse clean'!D5) -> demeurant Impasse Des Champs 04210 VILLE | L5: =VLOOKUP(A5,Feuil1!H:I,2,FALSE) -> AP115 | M5: le | N5: à | O5: exerçant la profession de
A6: 5 | B6: ='Noms en colonnes'!B6 -> Société | C6: ='Noms en colonnes'!D6 -> E | D6: =PROPER('Noms en colonnes'!G6) ->  | E6: =PROPER('Noms en colonnes'!H6) ->  | F6: =PROPER('Noms en colonnes'!I6) ->  | G6: =IF(AND(B6="Madame",'Noms en colonnes'!K6<>""),CONCATENATE("née ",'Noms en colonnes'!K6),"") ->  | H6: =CONCATENATE("demeurant "&PROPER('Adresse clean'!B6)&" "&'Adresse clean'!C6&" "&'Adresse clean'!D6) -> demeurant Rue Des Tilleuls 04210 VILLE | L6: =VLOOKUP(A6,Feuil1!H:I,2,FALSE) -> AP11 | M6: le | N6: à | O6: exerçant la profession de
A7: 6 | B7: ='Noms en colonnes'!B7 -> Madame | C7: ='Noms en colonnes'!D7 -> F | D7: =PROPER('Noms en colonnes'!G7) -> Arlette | E7: =PROPER('Noms en colonnes'!H7) -> Emilia | F7: =PROPER('Noms en colonnes'!I7) ->  | G7: =IF(AND(B7="Madame",'Noms en colonnes'!K7<>""),CONCATENATE("née ",'Noms en colonnes'!K7),"") -> née N | H7: =CONCATENATE("demeurant "&PROPER('Adresse clean'!B7)&" "&'Adresse clean'!C7&" "&'Adresse clean'!D7) -> demeurant Place Aux Roses 04210 VILLE | L7: =VLOOKUP(A7,Feuil1!H:I,2,FALSE) -> D1884, D1885 | M7: le | N7: à | O7: exerçant la profession de
A8: 7 | B8: ='Noms en colonnes'!B8 -> Madame | C8: ='Noms en colonnes'!D8 -> G | D8: =PROPER('Noms en colonnes'!G8) -> Elvire | E8: =PROPER('Noms en colonnes'!H8) -> Marcelle | F8: =PROPER('Noms en colonnes'!I8) -> Louise | G8: =IF(AND(B8="Madame",'Noms en colonnes'!K8<>""),CONCATENATE("née ",'Noms en colonnes'!K8),"") -> née O | H8: =CONCATENATE("demeurant "&PROPER('Adresse clean'!B8)&" "&'Adresse clean'!C8&" "&'Adresse clean'!D8) -> demeurant Avenue Inconnue 04210 VILLE | L8: =VLOOKUP(A8,Feuil1!H:I,2,FALSE) -> AP317, D3286, D3287 | M8: le | N8: à | O8: exerçant la profession de
A9: 8 | B9: ='Noms en colonnes'!B9 -> Monsieur | C9: ='Noms en colonnes'!D9 -> H | D9: =PROPER('Noms en colonnes'!G9) -> Jean-Paul | E9: =PROPER('Noms en colonnes'!H9) -> Gaston | F9: =PROPER('Noms en colonnes'!I9) ->  | G9: =IF(AND(B9="Madame",'Noms en colonnes'!K9<>""),CONCATENATE("née ",'Noms en colonnes'!K9),"") ->  | H9: =CONCATENATE("demeurant "&PROPER('Adresse clean'!B9)&" "&'Adresse clean'!C9&" "&'Adresse clean'!D9) -> demeurant Rue Sanom 04210 VILLE | L9: =VLOOKUP(A9,Feuil1!H:I,2,FALSE) -> AK137, AK140 | M9: le | N9: à | O9: exerçant la profession de
A10: 9 | B10: ='Noms en colonnes'!B10 -> Monsieur | C10: ='Noms en colonnes'!D10 -> I | D10: =PROPER('Noms en colonnes'!G10) -> Paul | E10: =PROPER('Noms en colonnes'!H10) -> Marc | F10: =PROPER('Noms en colonnes'!I10) ->  | G10: =IF(AND(B10="Madame",'Noms en colonnes'!K10<>""),CONCATENATE("née ",'Noms en colonnes'!K10),"") ->  | H10: =CONCATENATE("demeurant "&PROPER('Adresse clean'!B10)&" "&'Adresse clean'!C10&" "&'Adresse clean'!D10) -> demeurant Allée Des Pins 04210 VILLE | L10: =VLOOKUP(A10,Feuil1!H:I,2,FALSE) -> AK137, AK140 | M10: le | N10: à | O10: exerçant la profession de
A11: 10 | B11: ='Noms en colonnes'!B11 -> Societe | C11: ='Noms en colonnes'!D11 -> J | D11: =PROPER('Noms en colonnes'!G11) ->  | E11: =PROPER('Noms en colonnes'!H11) ->  | F11: =PROPER('Noms en colonnes'!I11) ->  | G11: =IF(AND(B11="Madame",'Noms en colonnes'!K11<>""),CONCATENATE("née ",'Noms en colonnes'!K11),"") ->  | H11: =CONCATENATE("demeurant "&PROPER('Adresse clean'!B11)&" "&'Adresse clean'!C11&" "&'Adresse clean'!D11) -> demeurant Place Des Hêtres 04210 VILLE | L11: =VLOOKUP(A11,Feuil1!H:I,2,FALSE) -> AM254, AM319, AM321, AP263, AP319 | M11: le | N11: à | O11: exerçant la profession de
A12: 11 | B12: ='Noms en colonnes'!B12 -> Madame | C12: ='Noms en colonnes'!D12 -> K | D12: =PROPER('Noms en colonnes'!G12) -> Annie | E12: =PROPER('Noms en colonnes'!H12) -> Odette | F12: =PROPER('Noms en colonnes'!I12) -> Denise | G12: =IF(AND(B12="Madame",'Noms en colonnes'!K12<>""),CONCATENATE("née ",'Noms en colonnes'!K12),"") -> née P | H12: =CONCATENATE("demeurant "&PROPER('Adresse clean'!B12)&" "&'Adresse clean'!C12&" "&'Adresse clean'!D12) -> demeurant Rue Des Cyprès 04210 VILLE | L12: =VLOOKUP(A12,Feuil1!H:I,2,FALSE) -> AP318 | M12: le | N12: à | O12: exerçant la profession de
A13: 12 | B13: ='Noms en colonnes'!B13 -> Monsieur | C13: ='Noms en colonnes'!D13 -> L | D13: =PROPER('Noms en colonnes'!G13) -> Fabien | E13: =PROPER('Noms en colonnes'!H13) -> Elie | F13: =PROPER('Noms en colonnes'!I13) ->  | G13: =IF(AND(B13="Madame",'Noms en colonnes'!K13<>""),CONCATENATE("née ",'Noms en colonnes'!K13),"") ->  | H13: =CONCATENATE("demeurant "&PROPER('Adresse clean'!B13)&" "&'Adresse clean'!C13&" "&'Adresse clean'!D13) -> demeurant Impasse Fleurie 04210 VILLE | L13: =VLOOKUP(A13,Feuil1!H:I,2,FALSE) -> AP318 | M13: le | N13: à | O13: exerçant la profession de

Sheet Etat complet
A1: N° extrait propriétaire | B1: Section | C1: Parcelle | D1: Concat | E1: Contenance | F1: Emprise | G1: Reliquat
A2: =Fiche_parcelle!A2 -> 1 | B2: =Fiche_parcelle!B2 -> AP | C2: =Fiche_parcelle!C2 -> 10 | D2: AP10 | E2: =INDEX('Export Geomas'!J:J,MATCH('Etat complet'!D2,'Export Geomas'!L:L,0)) -> 388 | F2: 69 | G2: 319 | H2: =A2&"-"&COUNTIF(A$2:A2,A2) -> 1-1
A3: =Fiche_parcelle!A3 -> 2 | B3: =Fiche_parcelle!B3 -> AP | C3: =Fiche_parcelle!C3 -> 10 | D3: =CONCATENATE(B3,C3) -> AP10 | E3: =INDEX('Export Geomas'!J:J,MATCH('Etat complet'!D3,'Export Geomas'!L:L,0)) -> 388 | F3: =VLOOKUP(D3,'Export Geomas'!L:N,2,FALSE) -> 69 | G3: =VLOOKUP(D3,'Export Geomas'!L:N,3,FALSE) -> 319 | H3: =A3&"-"&COUNTIF(A$2:A3,A3) -> 2-1
A4: =Fiche_parcelle!A4 -> 3 | B4: =Fiche_parcelle!B4 -> AN | C4: =Fiche_parcelle!C4 -> 171 | D4: AN171 | E4: =INDEX('Export Geomas'!J:J,MATCH('Etat complet'!D4,'Export Geomas'!L:L,0)) -> 515 | F4: =VLOOKUP(D4,'Export Geomas'!L:N,2,FALSE) -> 9 | G4: =VLOOKUP(D4,'Export Geomas'!L:N,3,FALSE) -> 506 | H4: =A4&"-"&COUNTIF(A$2:A4,A4) -> 3-1
A5: =Fiche_parcelle!A5 -> 4 | B5: =Fiche_parcelle!B5 -> AP | C5: =Fiche_parcelle!C5 -> 115 | D5: AP115 | E5: =INDEX('Export Geomas'!J:J,MATCH('Etat complet'!D5,'Export Geomas'!L:L,0)) -> 211 | F5: =VLOOKUP(D5,'Export Geomas'!L:N,2,FALSE) -> 52 | G5: =VLOOKUP(D5,'Export Geomas'!L:N,3,FALSE) -> 159 | H5: =A5&"-"&COUNTIF(A$2:A5,A5) -> 4-1
A6: =Fiche_parcelle!A6 -> 5 | B6: =Fiche_parcelle!B6 -> AP | C6: =Fiche_parcelle!C6 -> 11 | D6: AP11 | E6: =INDEX('Export Geomas'!J:J,MATCH('Etat complet'!D6,'Export Geomas'!L:L,0)) -> 420 | F6: =VLOOKUP(D6,'Export Geomas'!L:N,2,FALSE) -> 98 | G6: =VLOOKUP(D6,'Export Geomas'!L:N,3,FALSE) -> 322 | H6: =A6&"-"&COUNTIF(A$2:A6,A6) -> 5-1
A7: =Fiche_parcelle!A7 -> 6 | B7: =Fiche_parcelle!B7 -> D | C7: =Fiche_parcelle!C7 -> 1884 | D7: D1884 | E7: =INDEX('Export Geomas'!J:J,MATCH('Etat complet'!D7,'Export Geomas'!L:L,0)) -> 604 | F7: =VLOOKUP(D7,'Export Geomas'!L:N,2,FALSE) -> 16 | G7: =VLOOKUP(D7,'Export Geomas'!L:N,3,FALSE) -> 588 | H7: =A7&"-"&COUNTIF(A$2:A7,A7) -> 6-1
A8: =Fiche_parcelle!A8 -> 6 | B8: =Fiche_parcelle!B8 -> D | C8: =Fiche_parcelle!C8 -> 1885 | D8: D1885 | E8: =INDEX('Export Geomas'!J:J,MATCH('Etat complet'!D8,'Export Geomas'!L:L,0)) -> 84 | F8: =VLOOKUP(D8,'Export Geomas'!L:N,2,FALSE) -> 55 | G8: =VLOOKUP(D8,'Export Geomas'!L:N,3,FALSE) -> 29 | H8: =A8&"-"&COUNTIF(A$2:A8,A8) -> 6-2
A9: =Fiche_parcelle!A9 -> 7 | B9: =Fiche_parcelle!B9 -> AP | C9: =Fiche_parcelle!C9 -> 317 | D9: AP317 | E9: =INDEX('Export Geomas'!J:J,MATCH('Etat complet'!D9,'Export Geomas'!L:L,0)) -> 1135 | F9: =VLOOKUP(D9,'Export Geomas'!L:N,2,FALSE) -> 8 | G9: =VLOOKUP(D9,'Export Geomas'!L:N,3,FALSE) -> 1127 | H9: =A9&"-"&COUNTIF(A$2:A9,A9) -> 7-1
A10: =Fiche_parcelle!A10 -> 7 | B10: =Fiche_parcelle!B10 -> D | C10: =Fiche_parcelle!C10 -> 3286 | D10: D3286 | E10: =INDEX('Export Geomas'!J:J,MATCH('Etat complet'!D10,'Export Geomas'!L:L,0)) -> 480 | F10: =VLOOKUP(D10,'Export Geomas'!L:N,2,FALSE) -> 130 | G10: =VLOOKUP(D10,'Export Geomas'!L:N,3,FALSE) -> 350 | H10: =A10&"-"&COUNTIF(A$2:A10,A10) -> 7-2
A11: =Fiche_parcelle!A11 -> 7 | B11: =Fiche_parcelle!B11 -> D | C11: =Fiche_parcelle!C11 -> 3287 | D11: D3287 | E11: =INDEX('Export Geomas'!J:J,MATCH('Etat complet'!D11,'Export Geomas'!L:L,0)) -> 800 | F11: =VLOOKUP(D11,'Export Geomas'!L:N,2,FALSE) -> 200 | G11: =VLOOKUP(D11,'Export Geomas'!L:N,3,FALSE) -> 600 | H11: =A11&"-"&COUNTIF(A$2:A11,A11) -> 7-3
A12: =Fiche_parcelle!A12 -> 8 | B12: =Fiche_parcelle!B12 -> AK | C12: =Fiche_parcelle!C12 -> 137 | D12: AK137 | E12: =INDEX('Export Geomas'!J:J,MATCH('Etat complet'!D12,'Export Geomas'!L:L,0)) -> 477 | F12: =VLOOKUP(D12,'Export Geomas'!L:N,2,FALSE) -> 36 | G12: =VLOOKUP(D12,'Export Geomas'!L:N,3,FALSE) -> 441 | H12: =A12&"-"&COUNTIF(A$2:A12,A12) -> 8-1
A13: =Fiche_parcelle!A13 -> 8 | B13: =Fiche_parcelle!B13 -> AK | C13: =Fiche_parcelle!C13 -> 140 | D13: AK140 | E13: =INDEX('Export Geomas'!J:J,MATCH('Etat complet'!D13,'Export Geomas'!L:L,0)) -> 666 | F13: =VLOOKUP(D13,'Export Geomas'!L:N,2,FALSE) -> 138 | G13: =VLOOKUP(D13,'Export Geomas'!L:N,3,FALSE) -> 528 | H13: =A13&"-"&COUNTIF(A$2:A13,A13) -> 8-2
A14: =Fiche_parcelle!A14 -> 9 | B14: =Fiche_parcelle!B14 -> AK | C14: =Fiche_parcelle!C14 -> 137 | D14: AK137 | E14: =INDEX('Export Geomas'!J:J,MATCH('Etat complet'!D14,'Export Geomas'!L:L,0)) -> 477 | F14: =VLOOKUP(D14,'Export Geomas'!L:N,2,FALSE) -> 36 | G14: =VLOOKUP(D14,'Export Geomas'!L:N,3,FALSE) -> 441 | H14: =A14&"-"&COUNTIF(A$2:A14,A14) -> 9-1
A15: =Fiche_parcelle!A15 -> 9 | B15: =Fiche_parcelle!B15 -> AK | C15: =Fiche_parcelle!C15 -> 140 | D15: AK140 | E15: =INDEX('Export Geomas'!J:J,MATCH('Etat complet'!D15,'Export Geomas'!L:L,0)) -> 666 | F15: =VLOOKUP(D15,'Export Geomas'!L:N,2,FALSE) -> 138 | G15: =VLOOKUP(D15,'Export Geomas'!L:N,3,FALSE) -> 528 | H15: =A15&"-"&COUNTIF(A$2:A15,A15) -> 9-2
A16: =Fiche_parcelle!A16 -> 10 | B16: =Fiche_parcelle!B16 -> AM | C16: =Fiche_parcelle!C16 -> 254 | D16: AM254 | E16: =INDEX('Export Geomas'!J:J,MATCH('Etat complet'!D16,'Export Geomas'!L:L,0)) -> 620 | F16: =VLOOKUP(D16,'Export Geomas'!L:N,2,FALSE) -> 9 | G16: =VLOOKUP(D16,'Export Geomas'!L:N,3,FALSE) -> 611 | H16: =A16&"-"&COUNTIF(A$2:A16,A16) -> 10-1
A17: =Fiche_parcelle!A17 -> 10 | B17: =Fiche_parcelle!B17 -> AM | C17: =Fiche_parcelle!C17 -> 319 | D17: AM319 | E17: =INDEX('Export Geomas'!J:J,MATCH('Etat complet'!D17,'Export Geomas'!L:L,0)) -> 284 | F17: =VLOOKUP(D17,'Export Geomas'!L:N,2,FALSE) -> 16 | G17: =VLOOKUP(D17,'Export Geomas'!L:N,3,FALSE) -> 268 | H17: =A17&"-"&COUNTIF(A$2:A17,A17) -> 10-2
A18: =Fiche_parcelle!A18 -> 10 | B18: =Fiche_parcelle!B18 -> AM | C18: =Fiche_parcelle!C18 -> 321 | D18: AM321 | E18: =INDEX('Export Geomas'!J:J,MATCH('Etat complet'!D18,'Export Geomas'!L:L,0)) -> 199 | F18: =VLOOKUP(D18,'Export Geomas'!L:N,2,FALSE) -> 163 | G18: =VLOOKUP(D18,'Export Geomas'!L:N,3,FALSE) -> 36 | H18: =A18&"-"&COUNTIF(A$2:A18,A18) -> 10-3
A19: =Fiche_parcelle!A19 -> 10 | B19: =Fiche_parcelle!B19 -> AP | C19: =Fiche_parcelle!C19 -> 263 | D19: AP263 | E19: =INDEX('Export Geomas'!J:J,MATCH('Etat complet'!D19,'Export Geomas'!L:L,0)) -> 225 | F19: =VLOOKUP(D19,'Export Geomas'!L:N,2,FALSE) -> 22 | G19: =VLOOKUP(D19,'Export Geomas'!L:N,3,FALSE) -> 203 | H19: =A19&"-"&COUNTIF(A$2:A19,A19) -> 10-4
A20: =Fiche_parcelle!A20 -> 10 | B20: =Fiche_parcelle!B20 -> AP | C20: =Fiche_parcelle!C20 -> 319 | D20: AP319 | E20: =INDEX('Export Geomas'!J:J,MATCH('Etat complet'!D20,'Export Geomas'!L:L,0)) -> 289 | F20: =VLOOKUP(D20,'Export Geomas'!L:N,2,FALSE) -> 39 | G20: =VLOOKUP(D20,'Export Geomas'!L:N,3,FALSE) -> 250 | H20: =A20&"-"&COUNTIF(A$2:A20,A20) -> 10-5
A21: =Fiche_parcelle!A21 -> 11 | B21: =Fiche_parcelle!B21 -> AP | C21: =Fiche_parcelle!C21 -> 318 | D21: AP318 | E21: =INDEX('Export Geomas'!J:J,MATCH('Etat complet'!D21,'Export Geomas'!L:L,0)) -> 1048 | F21: =VLOOKUP(D21,'Export Geomas'!L:N,2,FALSE) -> 101 | G21: =VLOOKUP(D21,'Export Geomas'!L:N,3,FALSE) -> 947 | H21: =A21&"-"&COUNTIF(A$2:A21,A21) -> 11-1
A22: =Fiche_parcelle!A22 -> 12 | B22: =Fiche_parcelle!B22 -> AP | C22: =Fiche_parcelle!C22 -> 318 | D22: AP318 | E22: =INDEX('Export Geomas'!J:J,MATCH('Etat complet'!D22,'Export Geomas'!L:L,0)) -> 1048 | F22: =VLOOKUP(D22,'Export Geomas'!L:N,2,FALSE) -> 101 | G22: =VLOOKUP(D22,'Export Geomas'!L:N,3,FALSE) -> 947 | H22: =A22&"-"&COUNTIF(A$2:A22,A22) -> 12-1

Sheet Propriétaires en tableau
A1: Propriétaire numéro | B1: 1
A2: =VLOOKUP(B1,'Détail propriétaire'!$1:$1048576,2,FALSE)&" "&VLOOKUP(B1,'Détail propriétaire'!$1:$1048576,3,FALSE)&" "&VLOOKUP(B1,'Détail propriétaire'!$1:$1048576,4,FALSE)&" "&VLOOKUP(B1,'Détail propriétaire'!$1:$1048576,5,FALSE)&" "&VLOOKUP(B1,'Détail propriétaire'!$1:$1048576,6,FALSE)&" "&VLOOKUP(B1,'Détail propriétaire'!$1:$1048576,7,FALSE) -> Madame A Valerie née M
A3: =VLOOKUP(B1,'Détail propriétaire'!$1:$1048576,8,FALSE) -> demeurant Chemin Des Mimosas 04210 VILLE | C3: TOTAL | G3: 1 | K3: 2 | O3: 3 | S3: 4 | W3: 5 | AA3: 6 | AE3: 7 | AI3: 8 | AM3: 9 | AQ3: 10
C4: Parcelles | D4: Surface cadastrale | E4: Emprise servitude | F4: Reliquat | G4: Parcelle | H4: Surface cadastrale | I4: Emprise servitude | J4: Reliquat | K4: Parcelle | L4: Surface cadastrale | M4: Emprise servitude | N4: Reliquat | O4: Parcelle | P4: Surface cadastrale | Q4: Emprise servitude | R4: Reliquat | S4: Parcelle | T4: Surface cadastrale | U4: Emprise servitude | V4: Reliquat | W4: Parcelle | X4: Surface cadastrale | Y4: Emprise servitude | Z4: Reliquat | AA4: Parcelle | AB4: Surface cadastrale | AC4: Emprise servitude | AD4: Reliquat | AE4: Parcelle | AF4: Surface cadastrale | AG4: Emprise servitude | AH4: Reliquat | AI4: Parcelle | AJ4: Surface cadastrale | AK4: Emprise servitude | AL4: Reliquat | AM4: Parcelle | AN4: Surface cadastrale | AO4: Emprise servitude | AP4: Reliquat | AQ4: Parcelle | AR4: Surface cadastrale | AS4: Emprise servitude | AT4: Reliquat
C5: =G5&" "&K5&" "&O5&" "&S5&" "&W5&" "&AA5&" "&AE5&" "&AI5&" "&AM5&" "&AQ5 -> AP10 | D5: =SUMIF($G4:$AT4,D4,$G5:$AT5) -> 388 | E5: =SUMIF($G4:$AT4,E4,$G5:$AT5) -> 69 | F5: 319 | G5: =INDEX('Etat complet'!D:D,MATCH($B1&"-"&$G3,'Etat complet'!$H:$H,0)) -> AP10 | H5: =INDEX('Etat complet'!E:E,MATCH($B1&"-"&$G3,'Etat complet'!$H:$H,0)) -> 388 | I5: =INDEX('Etat complet'!F:F,MATCH($B1&"-"&$G3,'Etat complet'!$H:$H,0)) -> 69 | J5: =INDEX('Etat complet'!G:G,MATCH($B1&"-"&$G3,'Etat complet'!$H:$H,0)) -> 319 | K5: =IFERROR(INDEX('Etat complet'!D:D,MATCH($B1&"-"&$K3,'Etat complet'!$H:$H,0)),"") ->  | L5: =IFERROR(INDEX('Etat complet'!E:E,MATCH($B1&"-"&$K3,'Etat complet'!$H:$H,0)),"") ->  | M5: =IFERROR(INDEX('Etat complet'!F:F,MATCH($B1&"-"&$K3,'Etat complet'!$H:$H,0)),"") ->  | N5: =IFERROR(INDEX('Etat complet'!G:G,MATCH($B1&"-"&$K3,'Etat complet'!$H:$H,0)),"") ->  | O5: =IFERROR(INDEX('Etat complet'!D:D,MATCH($B1&"-"&$O3,'Etat complet'!$H:$H,0)),"") ->  | P5: =IFERROR(INDEX('Etat complet'!E:E,MATCH($B1&"-"&$O3,'Etat complet'!$H:$H,0)),"") ->  | Q5: =IFERROR(INDEX('Etat complet'!F:F,MATCH($B1&"-"&$O3,'Etat complet'!$H:$H,0)),"") ->  | R5: =IFERROR(INDEX('Etat complet'!G:G,MATCH($B1&"-"&$O3,'Etat complet'!$H:$H,0)),"") ->  | S5: =IFERROR(INDEX('Etat complet'!D:D,MATCH($B1&"-"&$S3,'Etat complet'!$H:$H,0)),"") ->  | T5: =IFERROR(INDEX('Etat complet'!E:E,MATCH($B1&"-"&$S3,'Etat complet'!$H:$H,0)),"") ->  | U5: =IFERROR(INDEX('Etat complet'!F:F,MATCH($B1&"-"&$S3,'Etat complet'!$H:$H,0)),"") ->  | V5: =IFERROR(INDEX('Etat complet'!G:G,MATCH($B1&"-"&$S3,'Etat complet'!$H:$H,0)),"") ->  | W5: =IFERROR(INDEX('Etat complet'!D:D,MATCH($B1&"-"&$W3,'Etat complet'!$H:$H,0)),"") ->  | X5: =IFERROR(INDEX('Etat complet'!E:E,MATCH($B1&"-"&$W3,'Etat complet'!$H:$H,0)),"") ->  | Y5: =IFERROR(INDEX('Etat complet'!F:F,MATCH($B1&"-"&$W3,'Etat complet'!$H:$H,0)),"") ->  | Z5: =IFERROR(INDEX('Etat complet'!G:G,MATCH($B1&"-"&$W3,'Etat complet'!$H:$H,0)),"") ->  | AA5: =IFERROR(INDEX('Etat complet'!D:D,MATCH($B1&"-"&$AA3,'Etat complet'!$H:$H,0)),"") ->  | AB5: =IFERROR(INDEX('Etat complet'!E:E,MATCH($B1&"-"&$AA3,'Etat complet'!$H:$H,0)),"") ->  | AC5: =IFERROR(INDEX('Etat complet'!F:F,MATCH($B1&"-"&$AA3,'Etat complet'!$H:$H,0)),"") ->  | AD5: =IFERROR(INDEX('Etat complet'!G:G,MATCH($B1&"-"&$AA3,'Etat complet'!$H:$H,0)),"") ->  | AE5: =IFERROR(INDEX('Etat complet'!D:D,MATCH($B1&"-"&$AE3,'Etat complet'!$H:$H,0)),"") ->  | AF5: =IFERROR(INDEX('Etat complet'!E:E,MATCH($B1&"-"&$AE3,'Etat complet'!$H:$H,0)),"") ->  | AG5: =IFERROR(INDEX('Etat complet'!F:F,MATCH($B1&"-"&$AE3,'Etat complet'!$H:$H,0)),"") ->  | AH5: =IFERROR(INDEX('Etat complet'!G:G,MATCH($B1&"-"&$AE3,'Etat complet'!$H:$H,0)),"") ->  | AI5: =IFERROR(INDEX('Etat complet'!D:D,MATCH($B1&"-"&$AI3,'Etat complet'!$H:$H,0)),"") ->  | AJ5: =IFERROR(INDEX('Etat complet'!E:E,MATCH($B1&"-"&$AI3,'Etat complet'!$H:$H,0)),"") ->  | AK5: =IFERROR(INDEX('Etat complet'!F:F,MATCH($B1&"-"&$AI3,'Etat complet'!$H:$H,0)),"") ->  | AL5: =IFERROR(INDEX('Etat complet'!G:G,MATCH($B1&"-"&$AI3,'Etat complet'!$H:$H,0)),"") ->  | AM5: =IFERROR(INDEX('Etat complet'!D:D,MATCH($B1&"-"&$AM3,'Etat complet'!$H:$H,0)),"") ->  | AN5: =IFERROR(INDEX('Etat complet'!E:E,MATCH($B1&"-"&$AM3,'Etat complet'!$H:$H,0)),"") ->  | AO5: =IFERROR(INDEX('Etat complet'!F:F,MATCH($B1&"-"&$AM3,'Etat complet'!$H:$H,0)),"") ->  | AP5: =IFERROR(INDEX('Etat complet'!G:G,MATCH($B1&"-"&$AM3,'Etat complet'!$H:$H,0)),"") ->  | AQ5: =IFERROR(INDEX('Etat complet'!D:D,MATCH($B1&"-"&$AQ3,'Etat complet'!$H:$H,0)),"") ->  | AR5: =IFERROR(INDEX('Etat complet'!E:E,MATCH($B1&"-"&$AQ3,'Etat complet'!$H:$H,0)),"") ->  | AS5: =IFERROR(INDEX('Etat complet'!F:F,MATCH($B1&"-"&$AQ3,'Etat complet'!$H:$H,0)),"") ->  | AT5: =IFERROR(INDEX('Etat complet'!G:G,MATCH($B1&"-"&$AQ3,'Etat complet'!$H:$H,0)),"") -> 
A6: Propriétaire numéro | B6: 2
A7: =VLOOKUP(B6,'Détail propriétaire'!$1:$1048576,2,FALSE)&" "&VLOOKUP(B6,'Détail propriétaire'!$1:$1048576,3,FALSE)&" "&VLOOKUP(B6,'Détail propriétaire'!$1:$1048576,4,FALSE)&" "&VLOOKUP(B6,'Détail propriétaire'!$1:$1048576,5,FALSE)&" "&VLOOKUP(B6,'Détail propriétaire'!$1:$1048576,6,FALSE)&" "&VLOOKUP(B6,'Détail propriétaire'!$1:$1048576,7,FALSE) -> Monsieur B Pascal
A8: =VLOOKUP(B6,'Détail propriétaire'!$1:$1048576,8,FALSE) -> demeurant Rue Des Pâquerettes 04210 VILLE | C8: TOTAL | G8: 1 | K8: 2 | O8: 3 | S8: 4 | W8: 5 | AA8: 6 | AE8: 7 | AI8: 8 | AM8: 9 | AQ8: 10
C9: Parcelles | D9: Surface cadastrale | E9: Emprise servitude | F9: Reliquat | G9: Parcelle | H9: Surface cadastrale | I9: Emprise servitude | J9: Reliquat | K9: Parcelle | L9: Surface cadastrale | M9: Emprise servitude | N9: Reliquat | O9: Parcelle | P9: Surface cadastrale | Q9: Emprise servitude | R9: Reliquat | S9: Parcelle | T9: Surface cadastrale | U9: Emprise servitude | V9: Reliquat | W9: Parcelle | X9: Surface cadastrale | Y9: Emprise servitude | Z9: Reliquat | AA9: Parcelle | AB9: Surface cadastrale | AC9: Emprise servitude | AD9: Reliquat | AE9: Parcelle | AF9: Surface cadastrale | AG9: Emprise servitude | AH9: Reliquat | AI9: Parcelle | AJ9: Surface cadastrale | AK9: Emprise servitude | AL9: Reliquat | AM9: Parcelle | AN9: Surface cadastrale | AO9: Emprise servitude | AP9: Reliquat | AQ9: Parcelle | AR9: Surface cadastrale | AS9: Emprise servitude | AT9: Reliquat
C10: =G10&" "&K10&" "&O10&" "&S10&" "&W10&" "&AA10&" "&AE10&" "&AI10&" "&AM10&" "&AQ10 -> AP10 | D10: =SUMIF($G9:$AT9,D9,$G10:$AT10) -> 388 | E10: =SUMIF($G9:$AT9,E9,$G10:$AT10) -> 69 | F10: =SUMIF($G9:$AT9,F9,$G10:$AT10) -> 319 | G10: =INDEX('Etat complet'!D:D,MATCH($B6&"-"&$G8,'Etat complet'!$H:$H,0)) -> AP10 | H10: =INDEX('Etat complet'!E:E,MATCH($B6&"-"&$G8,'Etat complet'!$H:$H,0)) -> 388 | I10: =INDEX('Etat complet'!F:F,MATCH($B6&"-"&$G8,'Etat complet'!$H:$H,0)) -> 69 | J10: =INDEX('Etat complet'!G:G,MATCH($B6&"-"&$G8,'Etat complet'!$H:$H,0)) -> 319 | K10: =IFERROR(INDEX('Etat complet'!D:D,MATCH($B6&"-"&$K8,'Etat complet'!$H:$H,0)),"") ->  | L10: =IFERROR(INDEX('Etat complet'!E:E,MATCH($B6&"-"&$K8,'Etat complet'!$H:$H,0)),"") ->  | M10: =IFERROR(INDEX('Etat complet'!F:F,MATCH($B6&"-"&$K8,'Etat complet'!$H:$H,0)),"") ->  | N10: =IFERROR(INDEX('Etat complet'!G:G,MATCH($B6&"-"&$K8,'Etat complet'!$H:$H,0)),"") ->  | O10: =IFERROR(INDEX('Etat complet'!D:D,MATCH($B6&"-"&$O8,'Etat complet'!$H:$H,0)),"") ->  | P10: =IFERROR(INDEX('Etat complet'!E:E,MATCH($B6&"-"&$O8,'Etat complet'!$H:$H,0)),"") ->  | Q10: =IFERROR(INDEX('Etat complet'!F:F,MATCH($B6&"-"&$O8,'Etat complet'!$H:$H,0)),"") ->  | R10: =IFERROR(INDEX('Etat complet'!G:G,MATCH($B6&"-"&$O8,'Etat complet'!$H:$H,0)),"") ->  | S10: =IFERROR(INDEX('Etat complet'!D:D,MATCH($B6&"-"&$S8,'Etat complet'!$H:$H,0)),"") ->  | T10: =IFERROR(INDEX('Etat complet'!E:E,MATCH($B6&"-"&$S8,'Etat complet'!$H:$H,0)),"") ->  | U10: =IFERROR(INDEX('Etat complet'!F:F,MATCH($B6&"-"&$S8,'Etat complet'!$H:$H,0)),"") ->  | V10: =IFERROR(INDEX('Etat complet'!G:G,MATCH($B6&"-"&$S8,'Etat complet'!$H:$H,0)),"") ->  | W10: =IFERROR(INDEX('Etat complet'!D:D,MATCH($B6&"-"&$W8,'Etat complet'!$H:$H,0)),"") ->  | X10: =IFERROR(INDEX('Etat complet'!E:E,MATCH($B6&"-"&$W8,'Etat complet'!$H:$H,0)),"") ->  | Y10: =IFERROR(INDEX('Etat complet'!F:F,MATCH($B6&"-"&$W8,'Etat complet'!$H:$H,0)),"") ->  | Z10: =IFERROR(INDEX('Etat complet'!G:G,MATCH($B6&"-"&$W8,'Etat complet'!$H:$H,0)),"") ->  | AA10: =IFERROR(INDEX('Etat complet'!D:D,MATCH($B6&"-"&$AA8,'Etat complet'!$H:$H,0)),"") ->  | AB10: =IFERROR(INDEX('Etat complet'!E:E,MATCH($B6&"-"&$AA8,'Etat complet'!$H:$H,0)),"") ->  | AC10: =IFERROR(INDEX('Etat complet'!F:F,MATCH($B6&"-"&$AA8,'Etat complet'!$H:$H,0)),"") ->  | AD10: =IFERROR(INDEX('Etat complet'!G:G,MATCH($B6&"-"&$AA8,'Etat complet'!$H:$H,0)),"") ->  | AE10: =IFERROR(INDEX('Etat complet'!D:D,MATCH($B6&"-"&$AE8,'Etat complet'!$H:$H,0)),"") ->  | AF10: =IFERROR(INDEX('Etat complet'!E:E,MATCH($B6&"-"&$AE8,'Etat complet'!$H:$H,0)),"") ->  | AG10: =IFERROR(INDEX('Etat complet'!F:F,MATCH($B6&"-"&$AE8,'Etat complet'!$H:$H,0)),"") ->  | AH10: =IFERROR(INDEX('Etat complet'!G:G,MATCH($B6&"-"&$AE8,'Etat complet'!$H:$H,0)),"") ->  | AI10: =IFERROR(INDEX('Etat complet'!D:D,MATCH($B6&"-"&$AI8,'Etat complet'!$H:$H,0)),"") ->  | AJ10: =IFERROR(INDEX('Etat complet'!E:E,MATCH($B6&"-"&$AI8,'Etat complet'!$H:$H,0)),"") ->  | AK10: =IFERROR(INDEX('Etat complet'!F:F,MATCH($B6&"-"&$AI8,'Etat complet'!$H:$H,0)),"") ->  | AL10: =IFERROR(INDEX('Etat complet'!G:G,MATCH($B6&"-"&$AI8,'Etat complet'!$H:$H,0)),"") ->  | AM10: =IFERROR(INDEX('Etat complet'!D:D,MATCH($B6&"-"&$AM8,'Etat complet'!$H:$H,0)),"") ->  | AN10: =IFERROR(INDEX('Etat complet'!E:E,MATCH($B6&"-"&$AM8,'Etat complet'!$H:$H,0)),"") ->  | AO10: =IFERROR(INDEX('Etat complet'!F:F,MATCH($B6&"-"&$AM8,'Etat complet'!$H:$H,0)),"") ->  | AP10: =IFERROR(INDEX('Etat complet'!G:G,MATCH($B6&"-"&$AM8,'Etat complet'!$H:$H,0)),"") ->  | AQ10: =IFERROR(INDEX('Etat complet'!D:D,MATCH($B6&"-"&$AQ8,'Etat complet'!$H:$H,0)),"") ->  | AR10: =IFERROR(INDEX('Etat complet'!E:E,MATCH($B6&"-"&$AQ8,'Etat complet'!$H:$H,0)),"") ->  | AS10: =IFERROR(INDEX('Etat complet'!F:F,MATCH($B6&"-"&$AQ8,'Etat complet'!$H:$H,0)),"") ->  | AT10: =IFERROR(INDEX('Etat complet'!G:G,MATCH($B6&"-"&$AQ8,'Etat complet'!$H:$H,0)),"") -> 
A11: Propriétaire numéro | B11: 3
A12: =VLOOKUP(B11,'Détail propriétaire'!$1:$1048576,2,FALSE)&" "&VLOOKUP(B11,'Détail propriétaire'!$1:$1048576,3,FALSE)&" "&VLOOKUP(B11,'Détail propriétaire'!$1:$1048576,4,FALSE)&" "&VLOOKUP(B11,'Détail propriétaire'!$1:$1048576,5,FALSE)&" "&VLOOKUP(B11,'Détail propriétaire'!$1:$1048576,6,FALSE)&" "&VLOOKUP(B11,'Détail propriétaire'!$1:$1048576,7,FALSE) -> Monsieur C Daniel Paul
A13: =VLOOKUP(B11,'Détail propriétaire'!$1:$1048576,8,FALSE) -> demeurant Boulevard Des Lilas 04210 VILLE | C13: TOTAL | G13: 1 | K13: 2 | O13: 3 | S13: 4 | W13: 5 | AA13: 6 | AE13: 7 | AI13: 8 | AM13: 9 | AQ13: 10
C14: Parcelles | D14: Surface cadastrale | E14: Emprise servitude | F14: Reliquat | G14: Parcelle | H14: Surface cadastrale | I14: Emprise servitude | J14: Reliquat | K14: Parcelle | L14: Surface cadastrale | M14: Emprise servitude | N14: Reliquat | O14: Parcelle | P14: Surface cadastrale | Q14: Emprise servitude | R14: Reliquat | S14: Parcelle | T14: Surface cadastrale | U14: Emprise servitude | V14: Reliquat | W14: Parcelle | X14: Surface cadastrale | Y14: Emprise servitude | Z14: Reliquat | AA14: Parcelle | AB14: Surface cadastrale | AC14: Emprise servitude | AD14: Reliquat | AE14: Parcelle | AF14: Surface cadastrale | AG14: Emprise servitude | AH14: Reliquat | AI14: Parcelle | AJ14: Surface cadastrale | AK14: Emprise servitude | AL14: Reliquat | AM14: Parcelle | AN14: Surface cadastrale | AO14: Emprise servitude | AP14: Reliquat | AQ14: Parcelle | AR14: Surface cadastrale | AS14: Emprise servitude | AT14: Reliquat
C15: =G15&" "&K15&" "&O15&" "&S15&" "&W15&" "&AA15&" "&AE15&" "&AI15&" "&AM15&" "&AQ15 -> AN171 | D15: =SUMIF($G14:$AT14,D14,$G15:$AT15) -> 515 | E15: =SUMIF($G14:$AT14,E14,$G15:$AT15) -> 9 | F15: =SUMIF($G14:$AT14,F14,$G15:$AT15) -> 506 | G15: =INDEX('Etat complet'!D:D,MATCH($B11&"-"&$G13,'Etat complet'!$H:$H,0)) -> AN171 | H15: =INDEX('Etat complet'!E:E,MATCH($B11&"-"&$G13,'Etat complet'!$H:$H,0)) -> 515 | I15: =INDEX('Etat complet'!F:F,MATCH($B11&"-"&$G13,'Etat complet'!$H:$H,0)) -> 9 | J15: =INDEX('Etat complet'!G:G,MATCH($B11&"-"&$G13,'Etat complet'!$H:$H,0)) -> 506 | K15: =IFERROR(INDEX('Etat complet'!D:D,MATCH($B11&"-"&$K13,'Etat complet'!$H:$H,0)),"") ->  | L15: =IFERROR(INDEX('Etat complet'!E:E,MATCH($B11&"-"&$K13,'Etat complet'!$H:$H,0)),"") ->  | M15: =IFERROR(INDEX('Etat complet'!F:F,MATCH($B11&"-"&$K13,'Etat complet'!$H:$H,0)),"") ->  | N15: =IFERROR(INDEX('Etat complet'!G:G,MATCH($B11&"-"&$K13,'Etat complet'!$H:$H,0)),"") ->  | O15: =IFERROR(INDEX('Etat complet'!D:D,MATCH($B11&"-"&$O13,'Etat complet'!$H:$H,0)),"") ->  | P15: =IFERROR(INDEX('Etat complet'!E:E,MATCH($B11&"-"&$O13,'Etat complet'!$H:$H,0)),"") ->  | Q15: =IFERROR(INDEX('Etat complet'!F:F,MATCH($B11&"-"&$O13,'Etat complet'!$H:$H,0)),"") ->  | R15: =IFERROR(INDEX('Etat complet'!G:G,MATCH($B11&"-"&$O13,'Etat complet'!$H:$H,0)),"") ->  | S15: =IFERROR(INDEX('Etat complet'!D:D,MATCH($B11&"-"&$S13,'Etat complet'!$H:$H,0)),"") ->  | T15: =IFERROR(INDEX('Etat complet'!E:E,MATCH($B11&"-"&$S13,'Etat complet'!$H:$H,0)),"") ->  | U15: =IFERROR(INDEX('Etat complet'!F:F,MATCH($B11&"-"&$S13,'Etat complet'!$H:$H,0)),"") ->  | V15: =IFERROR(INDEX('Etat complet'!G:G,MATCH($B11&"-"&$S13,'Etat complet'!$H:$H,0)),"") ->  | W15: =IFERROR(INDEX('Etat complet'!D:D,MATCH($B11&"-"&$W13,'Etat complet'!$H:$H,0)),"") ->  | X15: =IFERROR(INDEX('Etat complet'!E:E,MATCH($B11&"-"&$W13,'Etat complet'!$H:$H,0)),"") ->  | Y15: =IFERROR(INDEX('Etat complet'!F:F,MATCH($B11&"-"&$W13,'Etat complet'!$H:$H,0)),"") ->  | Z15: =IFERROR(INDEX('Etat complet'!G:G,MATCH($B11&"-"&$W13,'Etat complet'!$H:$H,0)),"") ->  | AA15: =IFERROR(INDEX('Etat complet'!D:D,MATCH($B11&"-"&$AA13,'Etat complet'!$H:$H,0)),"") ->  | AB15: =IFERROR(INDEX('Etat complet'!E:E,MATCH($B11&"-"&$AA13,'Etat complet'!$H:$H,0)),"") ->  | AC15: =IFERROR(INDEX('Etat complet'!F:F,MATCH($B11&"-"&$AA13,'Etat complet'!$H:$H,0)),"") ->  | AD15: =IFERROR(INDEX('Etat complet'!G:G,MATCH($B11&"-"&$AA13,'Etat complet'!$H:$H,0)),"") ->  | AE15: =IFERROR(INDEX('Etat complet'!D:D,MATCH($B11&"-"&$AE13,'Etat complet'!$H:$H,0)),"") ->  | AF15: =IFERROR(INDEX('Etat complet'!E:E,MATCH($B11&"-"&$AE13,'Etat complet'!$H:$H,0)),"") ->  | AG15: =IFERROR(INDEX('Etat complet'!F:F,MATCH($B11&"-"&$AE13,'Etat complet'!$H:$H,0)),"") ->  | AH15: =IFERROR(INDEX('Etat complet'!G:G,MATCH($B11&"-"&$AE13,'Etat complet'!$H:$H,0)),"") ->  | AI15: =IFERROR(INDEX('Etat complet'!D:D,MATCH($B11&"-"&$AI13,'Etat complet'!$H:$H,0)),"") ->  | AJ15: =IFERROR(INDEX('Etat complet'!E:E,MATCH($B11&"-"&$AI13,'Etat complet'!$H:$H,0)),"") ->  | AK15: =IFERROR(INDEX('Etat complet'!F:F,MATCH($B11&"-"&$AI13,'Etat complet'!$H:$H,0)),"") ->  | AL15: =IFERROR(INDEX('Etat complet'!G:G,MATCH($B11&"-"&$AI13,'Etat complet'!$H:$H,0)),"") ->  | AM15: =IFERROR(INDEX('Etat complet'!D:D,MATCH($B11&"-"&$AM13,'Etat complet'!$H:$H,0)),"") ->  | AN15: =IFERROR(INDEX('Etat complet'!E:E,MATCH($B11&"-"&$AM13,'Etat complet'!$H:$H,0)),"") ->  | AO15: =IFERROR(INDEX('Etat complet'!F:F,MATCH($B11&"-"&$AM13,'Etat complet'!$H:$H,0)),"") ->  | AP15: =IFERROR(INDEX('Etat complet'!G:G,MATCH($B11&"-"&$AM13,'Etat complet'!$H:$H,0)),"") ->  | AQ15: =IFERROR(INDEX('Etat complet'!D:D,MATCH($B11&"-"&$AQ13,'Etat complet'!$H:$H,0)),"") ->  | AR15: =IFERROR(INDEX('Etat complet'!E:E,MATCH($B11&"-"&$AQ13,'Etat complet'!$H:$H,0)),"") ->  | AS15: =IFERROR(INDEX('Etat complet'!F:F,MATCH($B11&"-"&$AQ13,'Etat complet'!$H:$H,0)),"") ->  | AT15: =IFERROR(INDEX('Etat complet'!G:G,MATCH($B11&"-"&$AQ13,'Etat complet'!$H:$H,0)),"") -> 
A16: Propriétaire numéro | B16: 4
A17: =VLOOKUP(B16,'Détail propriétaire'!$1:$1048576,2,FALSE)&" "&VLOOKUP(B16,'Détail propriétaire'!$1:$1048576,3,FALSE)&" "&VLOOKUP(B16,'Détail propriétaire'!$1:$1048576,4,FALSE)&" "&VLOOKUP(B16,'Détail propriétaire'!$1:$1048576,5,FALSE)&" "&VLOOKUP(B16,'Détail propriétaire'!$1:$1048576,6,FALSE)&" "&VLOOKUP(B16,'Détail propriétaire'!$1:$1048576,7,FALSE) -> Monsieur D Joseph Martin Nazaire
A18: =VLOOKUP(B16,'Détail propriétaire'!$1:$1048576,8,FALSE) -> demeurant Impasse Des Champs 04210 VILLE | C18: TOTAL | G18: 1 | K18: 2 | O18: 3 | S18: 4 | W18: 5 | AA18: 6 | AE18: 7 | AI18: 8 | AM18: 9 | AQ18: 10
C19: Parcelles | D19: Surface cadastrale | E19: Emprise servitude | F19: Reliquat | G19: Parcelle | H19: Surface cadastrale | I19: Emprise servitude | J19: Reliquat | K19: Parcelle | L19: Surface cadastrale | M19: Emprise servitude | N19: Reliquat | O19: Parcelle | P19: Surface cadastrale | Q19: Emprise servitude | R19: Reliquat | S19: Parcelle | T19: Surface cadastrale | U19: Emprise servitude | V19: Reliquat | W19: Parcelle | X19: Surface cadastrale | Y19: Emprise servitude | Z19: Reliquat | AA19: Parcelle | AB19: Surface cadastrale | AC19: Emprise servitude | AD19: Reliquat | AE19: Parcelle | AF19: Surface cadastrale | AG19: Emprise servitude | AH19: Reliquat | AI19: Parcelle | AJ19: Surface cadastrale | AK19: Emprise servitude | AL19: Reliquat | AM19: Parcelle | AN19: Surface cadastrale | AO19: Emprise servitude | AP19: Reliquat | AQ19: Parcelle | AR19: Surface cadastrale | AS19: Emprise servitude | AT19: Reliquat
C20: =G20&" "&K20&" "&O20&" "&S20&" "&W20&" "&AA20&" "&AE20&" "&AI20&" "&AM20&" "&AQ20 -> AP115 | D20: =SUMIF($G19:$AT19,D19,$G20:$AT20) -> 211 | E20: =SUMIF($G19:$AT19,E19,$G20:$AT20) -> 52 | F20: =SUMIF($G19:$AT19,F19,$G20:$AT20) -> 159 | G20: =INDEX('Etat complet'!D:D,MATCH($B16&"-"&$G18,'Etat complet'!$H:$H,0)) -> AP115 | H20: =INDEX('Etat complet'!E:E,MATCH($B16&"-"&$G18,'Etat complet'!$H:$H,0)) -> 211 | I20: =INDEX('Etat complet'!F:F,MATCH($B16&"-"&$G18,'Etat complet'!$H:$H,0)) -> 52 | J20: =INDEX('Etat complet'!G:G,MATCH($B16&"-"&$G18,'Etat complet'!$H:$H,0)) -> 159 | K20: =IFERROR(INDEX('Etat complet'!D:D,MATCH($B16&"-"&$K18,'Etat complet'!$H:$H,0)),"") ->  | L20: =IFERROR(INDEX('Etat complet'!E:E,MATCH($B16&"-"&$K18,'Etat complet'!$H:$H,0)),"") ->  | M20: =IFERROR(INDEX('Etat complet'!F:F,MATCH($B16&"-"&$K18,'Etat complet'!$H:$H,0)),"") ->  | N20: =IFERROR(INDEX('Etat complet'!G:G,MATCH($B16&"-"&$K18,'Etat complet'!$H:$H,0)),"") ->  | O20: =IFERROR(INDEX('Etat complet'!D:D,MATCH($B16&"-"&$O18,'Etat complet'!$H:$H,0)),"") ->  | P20: =IFERROR(INDEX('Etat complet'!E:E,MATCH($B16&"-"&$O18,'Etat complet'!$H:$H,0)),"") ->  | Q20: =IFERROR(INDEX('Etat complet'!F:F,MATCH($B16&"-"&$O18,'Etat complet'!$H:$H,0)),"") ->  | R20: =IFERROR(INDEX('Etat complet'!G:G,MATCH($B16&"-"&$O18,'Etat complet'!$H:$H,0)),"") ->  | S20: =IFERROR(INDEX('Etat complet'!D:D,MATCH($B16&"-"&$S18,'Etat complet'!$H:$H,0)),"") ->  | T20: =IFERROR(INDEX('Etat complet'!E:E,MATCH($B16&"-"&$S18,'Etat complet'!$H:$H,0)),"") ->  | U20: =IFERROR(INDEX('Etat complet'!F:F,MATCH($B16&"-"&$S18,'Etat complet'!$H:$H,0)),"") ->  | V20: =IFERROR(INDEX('Etat complet'!G:G,MATCH($B16&"-"&$S18,'Etat complet'!$H:$H,0)),"") ->  | W20: =IFERROR(INDEX('Etat complet'!D:D,MATCH($B16&"-"&$W18,'Etat complet'!$H:$H,0)),"") ->  | X20: =IFERROR(INDEX('Etat complet'!E:E,MATCH($B16&"-"&$W18,'Etat complet'!$H:$H,0)),"") ->  | Y20: =IFERROR(INDEX('Etat complet'!F:F,MATCH($B16&"-"&$W18,'Etat complet'!$H:$H,0)),"") ->  | Z20: =IFERROR(INDEX('Etat complet'!G:G,MATCH($B16&"-"&$W18,'Etat complet'!$H:$H,0)),"") ->  | AA20: =IFERROR(INDEX('Etat complet'!D:D,MATCH($B16&"-"&$AA18,'Etat complet'!$H:$H,0)),"") ->  | AB20: =IFERROR(INDEX('Etat complet'!E:E,MATCH($B16&"-"&$AA18,'Etat complet'!$H:$H,0)),"") ->  | AC20: =IFERROR(INDEX('Etat complet'!F:F,MATCH($B16&"-"&$AA18,'Etat complet'!$H:$H,0)),"") ->  | AD20: =IFERROR(INDEX('Etat complet'!G:G,MATCH($B16&"-"&$AA18,'Etat complet'!$H:$H,0)),"") ->  | AE20: =IFERROR(INDEX('Etat complet'!D:D,MATCH($B16&"-"&$AE18,'Etat complet'!$H:$H,0)),"") ->  | AF20: =IFERROR(INDEX('Etat complet'!E:E,MATCH($B16&"-"&$AE18,'Etat complet'!$H:$H,0)),"") ->  | AG20: =IFERROR(INDEX('Etat complet'!F:F,MATCH($B16&"-"&$AE18,'Etat complet'!$H:$H,0)),"") ->  | AH20: =IFERROR(INDEX('Etat complet'!G:G,MATCH($B16&"-"&$AE18,'Etat complet'!$H:$H,0)),"") ->  | AI20: =IFERROR(INDEX('Etat complet'!D:D,MATCH($B16&"-"&$AI18,'Etat complet'!$H:$H,0)),"") ->  | AJ20: =IFERROR(INDEX('Etat complet'!E:E,MATCH($B16&"-"&$AI18,'Etat complet'!$H:$H,0)),"") ->  | AK20: =IFERROR(INDEX('Etat complet'!F:F,MATCH($B16&"-"&$AI18,'Etat complet'!$H:$H,0)),"") ->  | AL20: =IFERROR(INDEX('Etat complet'!G:G,MATCH($B16&"-"&$AI18,'Etat complet'!$H:$H,0)),"") ->  | AM20: =IFERROR(INDEX('Etat complet'!D:D,MATCH($B16&"-"&$AM18,'Etat complet'!$H:$H,0)),"") ->  | AN20: =IFERROR(INDEX('Etat complet'!E:E,MATCH($B16&"-"&$AM18,'Etat complet'!$H:$H,0)),"") ->  | AO20: =IFERROR(INDEX('Etat complet'!F:F,MATCH($B16&"-"&$AM18,'Etat complet'!$H:$H,0)),"") ->  | AP20: =IFERROR(INDEX('Etat complet'!G:G,MATCH($B16&"-"&$AM18,'Etat complet'!$H:$H,0)),"") ->  | AQ20: =IFERROR(INDEX('Etat complet'!D:D,MATCH($B16&"-"&$AQ18,'Etat complet'!$H:$H,0)),"") ->  | AR20: =IFERROR(INDEX('Etat complet'!E:E,MATCH($B16&"-"&$AQ18,'Etat complet'!$H:$H,0)),"") ->  | AS20: =IFERROR(INDEX('Etat complet'!F:F,MATCH($B16&"-"&$AQ18,'Etat complet'!$H:$H,0)),"") ->  | AT20: =IFERROR(INDEX('Etat complet'!G:G,MATCH($B16&"-"&$AQ18,'Etat complet'!$H:$H,0)),"") -> 
A21: Propriétaire numéro | B21: 5
A22: =VLOOKUP(B21,'Détail propriétaire'!$1:$1048576,2,FALSE)&" "&VLOOKUP(B21,'Détail propriétaire'!$1:$1048576,3,FALSE)&" "&VLOOKUP(B21,'Détail propriétaire'!$1:$1048576,4,FALSE)&" "&VLOOKUP(B21,'Détail propriétaire'!$1:$1048576,5,FALSE)&" "&VLOOKUP(B21,'Détail propriétaire'!$1:$1048576,6,FALSE)&" "&VLOOKUP(B21,'Détail propriétaire'!$1:$1048576,7,FALSE) -> Société E
A23: =VLOOKUP(B21,'Détail propriétaire'!$1:$1048576,8,FALSE) -> demeurant Rue Des Tilleuls 04210 VILLE | C23: TOTAL | G23: 1 | K23: 2 | O23: 3 | S23: 4 | W23: 5 | AA23: 6 | AE23: 7 | AI23: 8 | AM23: 9 | AQ23: 10
C24: Parcelles | D24: Surface cadastrale | E24: Emprise servitude | F24: Reliquat | G24: Parcelle | H24: Surface cadastrale | I24: Emprise servitude | J24: Reliquat | K24: Parcelle | L24: Surface cadastrale | M24: Emprise servitude | N24: Reliquat | O24: Parcelle | P24: Surface cadastrale | Q24: Emprise servitude | R24: Reliquat | S24: Parcelle | T24: Surface cadastrale | U24: Emprise servitude | V24: Reliquat | W24: Parcelle | X24: Surface cadastrale | Y24: Emprise servitude | Z24: Reliquat | AA24: Parcelle | AB24: Surface cadastrale | AC24: Emprise servitude | AD24: Reliquat | AE24: Parcelle | AF24: Surface cadastrale | AG24: Emprise servitude | AH24: Reliquat | AI24: Parcelle | AJ24: Surface cadastrale | AK24: Emprise servitude | AL24: Reliquat | AM24: Parcelle | AN24: Surface cadastrale | AO24: Emprise servitude | AP24: Reliquat | AQ24: Parcelle | AR24: Surface cadastrale | AS24: Emprise servitude | AT24: Reliquat
D25: =SUMIF($G24:$AT24,D24,$G25:$AT25) -> 420 | E25: =SUMIF($G24:$AT24,E24,$G25:$AT25) -> 98 | F25: =SUMIF($G24:$AT24,F24,$G25:$AT25) -> 322 | G25: =INDEX('Etat complet'!D:D,MATCH($B21&"-"&$G23,'Etat complet'!$H:$H,0)) -> AP11 | H25: =INDEX('Etat complet'!E:E,MATCH($B21&"-"&$G23,'Etat complet'!$H:$H,0)) -> 420 | I25: =INDEX('Etat complet'!F:F,MATCH($B21&"-"&$G23,'Etat complet'!$H:$H,0)) -> 98 | J25: =INDEX('Etat complet'!G:G,MATCH($B21&"-"&$G23,'Etat complet'!$H:$H,0)) -> 322 | K25: =IFERROR(INDEX('Etat complet'!D:D,MATCH($B21&"-"&$K23,'Etat complet'!$H:$H,0)),"") ->  | L25: =IFERROR(INDEX('Etat complet'!E:E,MATCH($B21&"-"&$K23,'Etat complet'!$H:$H,0)),"") ->  | M25: =IFERROR(INDEX('Etat complet'!F:F,MATCH($B21&"-"&$K23,'Etat complet'!$H:$H,0)),"") ->  | N25: =IFERROR(INDEX('Etat complet'!G:G,MATCH($B21&"-"&$K23,'Etat complet'!$H:$H,0)),"") ->  | O25: =IFERROR(INDEX('Etat complet'!D:D,MATCH($B21&"-"&$O23,'Etat complet'!$H:$H,0)),"") ->  | P25: =IFERROR(INDEX('Etat complet'!E:E,MATCH($B21&"-"&$O23,'Etat complet'!$H:$H,0)),"") ->  | Q25: =IFERROR(INDEX('Etat complet'!F:F,MATCH($B21&"-"&$O23,'Etat complet'!$H:$H,0)),"") ->  | R25: =IFERROR(INDEX('Etat complet'!G:G,MATCH($B21&"-"&$O23,'Etat complet'!$H:$H,0)),"") ->  | S25: =IFERROR(INDEX('Etat complet'!D:D,MATCH($B21&"-"&$S23,'Etat complet'!$H:$H,0)),"") ->  | T25: =IFERROR(INDEX('Etat complet'!E:E,MATCH($B21&"-"&$S23,'Etat complet'!$H:$H,0)),"") ->  | U25: =IFERROR(INDEX('Etat complet'!F:F,MATCH($B21&"-"&$S23,'Etat complet'!$H:$H,0)),"") ->  | V25: =IFERROR(INDEX('Etat complet'!G:G,MATCH($B21&"-"&$S23,'Etat complet'!$H:$H,0)),"") ->  | W25: =IFERROR(INDEX('Etat complet'!D:D,MATCH($B21&"-"&$W23,'Etat complet'!$H:$H,0)),"") ->  | X25: =IFERROR(INDEX('Etat complet'!E:E,MATCH($B21&"-"&$W23,'Etat complet'!$H:$H,0)),"") ->  | Y25: =IFERROR(INDEX('Etat complet'!F:F,MATCH($B21&"-"&$W23,'Etat complet'!$H:$H,0)),"") ->  | Z25: =IFERROR(INDEX('Etat complet'!G:G,MATCH($B21&"-"&$W23,'Etat complet'!$H:$H,0)),"") ->  | AA25: =IFERROR(INDEX('Etat complet'!D:D,MATCH($B21&"-"&$AA23,'Etat complet'!$H:$H,0)),"") ->  | AB25: =IFERROR(INDEX('Etat complet'!E:E,MATCH($B21&"-"&$AA23,'Etat complet'!$H:$H,0)),"") ->  | AC25: =IFERROR(INDEX('Etat complet'!F:F,MATCH($B21&"-"&$AA23,'Etat complet'!$H:$H,0)),"") ->  | AD25: =IFERROR(INDEX('Etat complet'!G:G,MATCH($B21&"-"&$AA23,'Etat complet'!$H:$H,0)),"") ->  | AE25: =IFERROR(INDEX('Etat complet'!D:D,MATCH($B21&"-"&$AE23,'Etat complet'!$H:$H,0)),"") ->  | AF25: =IFERROR(INDEX('Etat complet'!E:E,MATCH($B21&"-"&$AE23,'Etat complet'!$H:$H,0)),"") ->  | AG25: =IFERROR(INDEX('Etat complet'!F:F,MATCH($B21&"-"&$AE23,'Etat complet'!$H:$H,0)),"") ->  | AH25: =IFERROR(INDEX('Etat complet'!G:G,MATCH($B21&"-"&$AE23,'Etat complet'!$H:$H,0)),"") ->  | AI25: =IFERROR(INDEX('Etat complet'!D:D,MATCH($B21&"-"&$AI23,'Etat complet'!$H:$H,0)),"") ->  | AJ25: =IFERROR(INDEX('Etat complet'!E:E,MATCH($B21&"-"&$AI23,'Etat complet'!$H:$H,0)),"") ->  | AK25: =IFERROR(INDEX('Etat complet'!F:F,MATCH($B21&"-"&$AI23,'Etat complet'!$H:$H,0)),"") ->  | AL25: =IFERROR(INDEX('Etat complet'!G:G,MATCH($B21&"-"&$AI23,'Etat complet'!$H:$H,0)),"") ->  | AM25: =IFERROR(INDEX('Etat complet'!D:D,MATCH($B21&"-"&$AM23,'Etat complet'!$H:$H,0)),"") ->  | AN25: =IFERROR(INDEX('Etat complet'!E:E,MATCH($B21&"-"&$AM23,'Etat complet'!$H:$H,0)),"") ->  | AO25: =IFERROR(INDEX('Etat complet'!F:F,MATCH($B21&"-"&$AM23,'Etat complet'!$H:$H,0)),"") ->  | AP25: =IFERROR(INDEX('Etat complet'!G:G,MATCH($B21&"-"&$AM23,'Etat complet'!$H:$H,0)),"") ->  | AQ25: =IFERROR(INDEX('Etat complet'!D:D,MATCH($B21&"-"&$AQ23,'Etat complet'!$H:$H,0)),"") ->  | AR25: =IFERROR(INDEX('Etat complet'!E:E,MATCH($B21&"-"&$AQ23,'Etat complet'!$H:$H,0)),"") ->  | AS25: =IFERROR(INDEX('Etat complet'!F:F,MATCH($B21&"-"&$AQ23,'Etat complet'!$H:$H,0)),"") ->  | AT25: =IFERROR(INDEX('Etat complet'!G:G,MATCH($B21&"-"&$AQ23,'Etat complet'!$H:$H,0)),"") -> 
A26: Propriétaire numéro | B26: 6
A27: =VLOOKUP(B26,'Détail propriétaire'!$1:$1048576,2,FALSE)&" "&VLOOKUP(B26,'Détail propriétaire'!$1:$1048576,3,FALSE)&" "&VLOOKUP(B26,'Détail propriétaire'!$1:$1048576,4,FALSE)&" "&VLOOKUP(B26,'Détail propriétaire'!$1:$1048576,5,FALSE)&" "&VLOOKUP(B26,'Détail propriétaire'!$1:$1048576,6,FALSE)&" "&VLOOKUP(B26,'Détail propriétaire'!$1:$1048576,7,FALSE) -> Madame F Arlette Emilia née N
A28: =VLOOKUP(B26,'Détail propriétaire'!$1:$1048576,8,FALSE) -> demeurant Place Aux Roses 04210 VILLE | C28: TOTAL | G28: 1 | K28: 2 | O28: 3 | S28: 4 | W28: 5 | AA28: 6 | AE28: 7 | AI28: 8 | AM28: 9 | AQ28: 10
C29: Parcelles | D29: Surface cadastrale | E29: Emprise servitude | F29: Reliquat | G29: Parcelle | H29: Surface cadastrale | I29: Emprise servitude | J29: Reliquat | K29: Parcelle | L29: Surface cadastrale | M29: Emprise servitude | N29: Reliquat | O29: Parcelle | P29: Surface cadastrale | Q29: Emprise servitude | R29: Reliquat | S29: Parcelle | T29: Surface cadastrale | U29: Emprise servitude | V29: Reliquat | W29: Parcelle | X29: Surface cadastrale | Y29: Emprise servitude | Z29: Reliquat | AA29: Parcelle | AB29: Surface cadastrale | AC29: Emprise servitude | AD29: Reliquat | AE29: Parcelle | AF29: Surface cadastrale | AG29: Emprise servitude | AH29: Reliquat | AI29: Parcelle | AJ29: Surface cadastrale | AK29: Emprise servitude | AL29: Reliquat | AM29: Parcelle | AN29: Surface cadastrale | AO29: Emprise servitude | AP29: Reliquat | AQ29: Parcelle | AR29: Surface cadastrale | AS29: Emprise servitude | AT29: Reliquat
C30: =G30&" "&K30&" "&O30&" "&S30&" "&W30&" "&AA30&" "&AE30&" "&AI30&" "&AM30&" "&AQ30 -> D1884 D1885 | D30: =SUMIF($G29:$AT29,D29,$G30:$AT30) -> 688 | E30: =SUMIF($G29:$AT29,E29,$G30:$AT30) -> 71 | F30: =SUMIF($G29:$AT29,F29,$G30:$AT30) -> 617 | G30: =INDEX('Etat complet'!D:D,MATCH($B26&"-"&$G28,'Etat complet'!$H:$H,0)) -> D1884 | H30: =INDEX('Etat complet'!E:E,MATCH($B26&"-"&$G28,'Etat complet'!$H:$H,0)) -> 604 | I30: =INDEX('Etat complet'!F:F,MATCH($B26&"-"&$G28,'Etat complet'!$H:$H,0)) -> 16 | J30: =INDEX('Etat complet'!G:G,MATCH($B26&"-"&$G28,'Etat complet'!$H:$H,0)) -> 588 | K30: =IFERROR(INDEX('Etat complet'!D:D,MATCH($B26&"-"&$K28,'Etat complet'!$H:$H,0)),"") -> D1885 | L30: =IFERROR(INDEX('Etat complet'!E:E,MATCH($B26&"-"&$K28,'Etat complet'!$H:$H,0)),"") -> 84 | M30: =IFERROR(INDEX('Etat complet'!F:F,MATCH($B26&"-"&$K28,'Etat complet'!$H:$H,0)),"") -> 55 | N30: =IFERROR(INDEX('Etat complet'!G:G,MATCH($B26&"-"&$K28,'Etat complet'!$H:$H,0)),"") -> 29 | O30: =IFERROR(INDEX('Etat complet'!D:D,MATCH($B26&"-"&$O28,'Etat complet'!$H:$H,0)),"") ->  | P30: =IFERROR(INDEX('Etat complet'!E:E,MATCH($B26&"-"&$O28,'Etat complet'!$H:$H,0)),"") ->  | Q30: =IFERROR(INDEX('Etat complet'!F:F,MATCH($B26&"-"&$O28,'Etat complet'!$H:$H,0)),"") ->  | R30: =IFERROR(INDEX('Etat complet'!G:G,MATCH($B26&"-"&$O28,'Etat complet'!$H:$H,0)),"") ->  | S30: =IFERROR(INDEX('Etat complet'!D:D,MATCH($B26&"-"&$S28,'Etat complet'!$H:$H,0)),"") ->  | T30: =IFERROR(INDEX('Etat complet'!E:E,MATCH($B26&"-"&$S28,'Etat complet'!$H:$H,0)),"") ->  | U30: =IFERROR(INDEX('Etat complet'!F:F,MATCH($B26&"-"&$S28,'Etat complet'!$H:$H,0)),"") ->  | V30: =IFERROR(INDEX('Etat complet'!G:G,MATCH($B26&"-"&$S28,'Etat complet'!$H:$H,0)),"") ->  | W30: =IFERROR(INDEX('Etat complet'!D:D,MATCH($B26&"-"&$W28,'Etat complet'!$H:$H,0)),"") ->  | X30: =IFERROR(INDEX('Etat complet'!E:E,MATCH($B26&"-"&$W28,'Etat complet'!$H:$H,0)),"") ->  | Y30: =IFERROR(INDEX('Etat complet'!F:F,MATCH($B26&"-"&$W28,'Etat complet'!$H:$H,0)),"") ->  | Z30: =IFERROR(INDEX('Etat complet'!G:G,MATCH($B26&"-"&$W28,'Etat complet'!$H:$H,0)),"") ->  | AA30: =IFERROR(INDEX('Etat complet'!D:D,MATCH($B26&"-"&$AA28,'Etat complet'!$H:$H,0)),"") ->  | AB30: =IFERROR(INDEX('Etat complet'!E:E,MATCH($B26&"-"&$AA28,'Etat complet'!$H:$H,0)),"") ->  | AC30: =IFERROR(INDEX('Etat complet'!F:F,MATCH($B26&"-"&$AA28,'Etat complet'!$H:$H,0)),"") ->  | AD30: =IFERROR(INDEX('Etat complet'!G:G,MATCH($B26&"-"&$AA28,'Etat complet'!$H:$H,0)),"") ->  | AE30: =IFERROR(INDEX('Etat complet'!D:D,MATCH($B26&"-"&$AE28,'Etat complet'!$H:$H,0)),"") ->  | AF30: =IFERROR(INDEX('Etat complet'!E:E,MATCH($B26&"-"&$AE28,'Etat complet'!$H:$H,0)),"") ->  | AG30: =IFERROR(INDEX('Etat complet'!F:F,MATCH($B26&"-"&$AE28,'Etat complet'!$H:$H,0)),"") ->  | AH30: =IFERROR(INDEX('Etat complet'!G:G,MATCH($B26&"-"&$AE28,'Etat complet'!$H:$H,0)),"") ->  | AI30: =IFERROR(INDEX('Etat complet'!D:D,MATCH($B26&"-"&$AI28,'Etat complet'!$H:$H,0)),"") ->  | AJ30: =IFERROR(INDEX('Etat complet'!E:E,MATCH($B26&"-"&$AI28,'Etat complet'!$H:$H,0)),"") ->  | AK30: =IFERROR(INDEX('Etat complet'!F:F,MATCH($B26&"-"&$AI28,'Etat complet'!$H:$H,0)),"") ->  | AL30: =IFERROR(INDEX('Etat complet'!G:G,MATCH($B26&"-"&$AI28,'Etat complet'!$H:$H,0)),"") ->  | AM30: =IFERROR(INDEX('Etat complet'!D:D,MATCH($B26&"-"&$AM28,'Etat complet'!$H:$H,0)),"") ->  | AN30: =IFERROR(INDEX('Etat complet'!E:E,MATCH($B26&"-"&$AM28,'Etat complet'!$H:$H,0)),"") ->  | AO30: =IFERROR(INDEX('Etat complet'!F:F,MATCH($B26&"-"&$AM28,'Etat complet'!$H:$H,0)),"") ->  | AP30: =IFERROR(INDEX('Etat complet'!G:G,MATCH($B26&"-"&$AM28,'Etat complet'!$H:$H,0)),"") ->  | AQ30: =IFERROR(INDEX('Etat complet'!D:D,MATCH($B26&"-"&$AQ28,'Etat complet'!$H:$H,0)),"") ->  | AR30: =IFERROR(INDEX('Etat complet'!E:E,MATCH($B26&"-"&$AQ28,'Etat complet'!$H:$H,0)),"") ->  | AS30: =IFERROR(INDEX('Etat complet'!F:F,MATCH($B26&"-"&$AQ28,'Etat complet'!$H:$H,0)),"") ->  | AT30: =IFERROR(INDEX('Etat complet'!G:G,MATCH($B26&"-"&$AQ28,'Etat complet'!$H:$H,0)),"") -> 
A31: Propriétaire numéro | B31: 7
A32: =VLOOKUP(B31,'Détail propriétaire'!$1:$1048576,2,FALSE)&" "&VLOOKUP(B31,'Détail propriétaire'!$1:$1048576,3,FALSE)&" "&VLOOKUP(B31,'Détail propriétaire'!$1:$1048576,4,FALSE)&" "&VLOOKUP(B31,'Détail propriétaire'!$1:$1048576,5,FALSE)&" "&VLOOKUP(B31,'Détail propriétaire'!$1:$1048576,6,FALSE)&" "&VLOOKUP(B31,'Détail propriétaire'!$1:$1048576,7,FALSE) -> Madame G Elvire Marcelle Louise née O
A33: =VLOOKUP(B31,'Détail propriétaire'!$1:$1048576,8,FALSE) -> demeurant Avenue Inconnue 04210 VILLE | C33: TOTAL | G33: 1 | K33: 2 | O33: 3 | S33: 4 | W33: 5 | AA33: 6 | AE33: 7 | AI33: 8 | AM33: 9 | AQ33: 10
C34: Parcelles | D34: Surface cadastrale | E34: Emprise servitude | F34: Reliquat | G34: Parcelle | H34: Surface cadastrale | I34: Emprise servitude | J34: Reliquat | K34: Parcelle | L34: Surface cadastrale | M34: Emprise servitude | N34: Reliquat | O34: Parcelle | P34: Surface cadastrale | Q34: Emprise servitude | R34: Reliquat | S34: Parcelle | T34: Surface cadastrale | U34: Emprise servitude | V34: Reliquat | W34: Parcelle | X34: Surface cadastrale | Y34: Emprise servitude | Z34: Reliquat | AA34: Parcelle | AB34: Surface cadastrale | AC34: Emprise servitude | AD34: Reliquat | AE34: Parcelle | AF34: Surface cadastrale | AG34: Emprise servitude | AH34: Reliquat | AI34: Parcelle | AJ34: Surface cadastrale | AK34: Emprise servitude | AL34: Reliquat | AM34: Parcelle | AN34: Surface cadastrale | AO34: Emprise servitude | AP34: Reliquat | AQ34: Parcelle | AR34: Surface cadastrale | AS34: Emprise servitude | AT34: Reliquat
C35: =G35&" "&K35&" "&O35&" "&S35&" "&W35&" "&AA35&" "&AE35&" "&AI35&" "&AM35&" "&AQ35 -> AP317 D3286 D3287 | D35: =SUMIF($G34:$AT34,D34,$G35:$AT35) -> 2415 | E35: =SUMIF($G34:$AT34,E34,$G35:$AT35) -> 338 | F35: =SUMIF($G34:$AT34,F34,$G35:$AT35) -> 2077 | G35: =INDEX('Etat complet'!D:D,MATCH($B31&"-"&$G33,'Etat complet'!$H:$H,0)) -> AP317 | H35: =INDEX('Etat complet'!E:E,MATCH($B31&"-"&$G33,'Etat complet'!$H:$H,0)) -> 1135 | I35: =INDEX('Etat complet'!F:F,MATCH($B31&"-"&$G33,'Etat complet'!$H:$H,0)) -> 8 | J35: =INDEX('Etat complet'!G:G,MATCH($B31&"-"&$G33,'Etat complet'!$H:$H,0)) -> 1127 | K35: =IFERROR(INDEX('Etat complet'!D:D,MATCH($B31&"-"&$K33,'Etat complet'!$H:$H,0)),"") -> D3286 | L35: =IFERROR(INDEX('Etat complet'!E:E,MATCH($B31&"-"&$K33,'Etat complet'!$H:$H,0)),"") -> 480 | M35: =IFERROR(INDEX('Etat complet'!F:F,MATCH($B31&"-"&$K33,'Etat complet'!$H:$H,0)),"") -> 130 | N35: =IFERROR(INDEX('Etat complet'!G:G,MATCH($B31&"-"&$K33,'Etat complet'!$H:$H,0)),"") -> 350 | O35: =IFERROR(INDEX('Etat complet'!D:D,MATCH($B31&"-"&$O33,'Etat complet'!$H:$H,0)),"") -> D3287 | P35: =IFERROR(INDEX('Etat complet'!E:E,MATCH($B31&"-"&$O33,'Etat complet'!$H:$H,0)),"") -> 800 | Q35: =IFERROR(INDEX('Etat complet'!F:F,MATCH($B31&"-"&$O33,'Etat complet'!$H:$H,0)),"") -> 200 | R35: =IFERROR(INDEX('Etat complet'!G:G,MATCH($B31&"-"&$O33,'Etat complet'!$H:$H,0)),"") -> 600 | S35: =IFERROR(INDEX('Etat complet'!D:D,MATCH($B31&"-"&$S33,'Etat complet'!$H:$H,0)),"") ->  | T35: =IFERROR(INDEX('Etat complet'!E:E,MATCH($B31&"-"&$S33,'Etat complet'!$H:$H,0)),"") ->  | U35: =IFERROR(INDEX('Etat complet'!F:F,MATCH($B31&"-"&$S33,'Etat complet'!$H:$H,0)),"") ->  | V35: =IFERROR(INDEX('Etat complet'!G:G,MATCH($B31&"-"&$S33,'Etat complet'!$H:$H,0)),"") ->  | W35: =IFERROR(INDEX('Etat complet'!D:D,MATCH($B31&"-"&$W33,'Etat complet'!$H:$H,0)),"") ->  | X35: =IFERROR(INDEX('Etat complet'!E:E,MATCH($B31&"-"&$W33,'Etat complet'!$H:$H,0)),"") ->  | Y35: =IFERROR(INDEX('Etat complet'!F:F,MATCH($B31&"-"&$W33,'Etat complet'!$H:$H,0)),"") ->  | Z35: =IFERROR(INDEX('Etat complet'!G:G,MATCH($B31&"-"&$W33,'Etat complet'!$H:$H,0)),"") ->  | AA35: =IFERROR(INDEX('Etat complet'!D:D,MATCH($B31&"-"&$AA33,'Etat complet'!$H:$H,0)),"") ->  | AB35: =IFERROR(INDEX('Etat complet'!E:E,MATCH($B31&"-"&$AA33,'Etat complet'!$H:$H,0)),"") ->  | AC35: =IFERROR(INDEX('Etat complet'!F:F,MATCH($B31&"-"&$AA33,'Etat complet'!$H:$H,0)),"") ->  | AD35: =IFERROR(INDEX('Etat complet'!G:G,MATCH($B31&"-"&$AA33,'Etat complet'!$H:$H,0)),"") ->  | AE35: =IFERROR(INDEX('Etat complet'!D:D,MATCH($B31&"-"&$AE33,'Etat complet'!$H:$H,0)),"") ->  | AF35: =IFERROR(INDEX('Etat complet'!E:E,MATCH($B31&"-"&$AE33,'Etat complet'!$H:$H,0)),"") ->  | AG35: =IFERROR(INDEX('Etat complet'!F:F,MATCH($B31&"-"&$AE33,'Etat complet'!$H:$H,0)),"") ->  | AH35: =IFERROR(INDEX('Etat complet'!G:G,MATCH($B31&"-"&$AE33,'Etat complet'!$H:$H,0)),"") ->  | AI35: =IFERROR(INDEX('Etat complet'!D:D,MATCH($B31&"-"&$AI33,'Etat complet'!$H:$H,0)),"") ->  | AJ35: =IFERROR(INDEX('Etat complet'!E:E,MATCH($B31&"-"&$AI33,'Etat complet'!$H:$H,0)),"") ->  | AK35: =IFERROR(INDEX('Etat complet'!F:F,MATCH($B31&"-"&$AI33,'Etat complet'!$H:$H,0)),"") ->  | AL35: =IFERROR(INDEX('Etat complet'!G:G,MATCH($B31&"-"&$AI33,'Etat complet'!$H:$H,0)),"") ->  | AM35: =IFERROR(INDEX('Etat complet'!D:D,MATCH($B31&"-"&$AM33,'Etat complet'!$H:$H,0)),"") ->  | AN35: =IFERROR(INDEX('Etat complet'!E:E,MATCH($B31&"-"&$AM33,'Etat complet'!$H:$H,0)),"") ->  | AO35: =IFERROR(INDEX('Etat complet'!F:F,MATCH($B31&"-"&$AM33,'Etat complet'!$H:$H,0)),"") ->  | AP35: =IFERROR(INDEX('Etat complet'!G:G,MATCH($B31&"-"&$AM33,'Etat complet'!$H:$H,0)),"") ->  | AQ35: =IFERROR(INDEX('Etat complet'!D:D,MATCH($B31&"-"&$AQ33,'Etat complet'!$H:$H,0)),"") ->  | AR35: =IFERROR(INDEX('Etat complet'!E:E,MATCH($B31&"-"&$AQ33,'Etat complet'!$H:$H,0)),"") ->  | AS35: =IFERROR(INDEX('Etat complet'!F:F,MATCH($B31&"-"&$AQ33,'Etat complet'!$H:$H,0)),"") ->  | AT35: =IFERROR(INDEX('Etat complet'!G:G,MATCH($B31&"-"&$AQ33,'Etat complet'!$H:$H,0)),"") -> 
A36: Propriétaire numéro | B36: 8
A37: =VLOOKUP(B36,'Détail propriétaire'!$1:$1048576,2,FALSE)&" "&VLOOKUP(B36,'Détail propriétaire'!$1:$1048576,3,FALSE)&" "&VLOOKUP(B36,'Détail propriétaire'!$1:$1048576,4,FALSE)&" "&VLOOKUP(B36,'Détail propriétaire'!$1:$1048576,5,FALSE)&" "&VLOOKUP(B36,'Détail propriétaire'!$1:$1048576,6,FALSE)&" "&VLOOKUP(B36,'Détail propriétaire'!$1:$1048576,7,FALSE) -> Monsieur H Jean-Paul Gaston
A38: =VLOOKUP(B36,'Détail propriétaire'!$1:$1048576,8,FALSE) -> demeurant Rue Sanom 04210 VILLE | C38: TOTAL | G38: 1 | K38: 2 | O38: 3 | S38: 4 | W38: 5 | AA38: 6 | AE38: 7 | AI38: 8 | AM38: 9 | AQ38: 10
C39: Parcelles | D39: Surface cadastrale | E39: Emprise servitude | F39: Reliquat | G39: Parcelle | H39: Surface cadastrale | I39: Emprise servitude | J39: Reliquat | K39: Parcelle | L39: Surface cadastrale | M39: Emprise servitude | N39: Reliquat | O39: Parcelle | P39: Surface cadastrale | Q39: Emprise servitude | R39: Reliquat | S39: Parcelle | T39: Surface cadastrale | U39: Emprise servitude | V39: Reliquat | W39: Parcelle | X39: Surface cadastrale | Y39: Emprise servitude | Z39: Reliquat | AA39: Parcelle | AB39: Surface cadastrale | AC39: Emprise servitude | AD39: Reliquat | AE39: Parcelle | AF39: Surface cadastrale | AG39: Emprise servitude | AH39: Reliquat | AI39: Parcelle | AJ39: Surface cadastrale | AK39: Emprise servitude | AL39: Reliquat | AM39: Parcelle | AN39: Surface cadastrale | AO39: Emprise servitude | AP39: Reliquat | AQ39: Parcelle | AR39: Surface cadastrale | AS39: Emprise servitude | AT39: Reliquat
D40: =SUMIF($G39:$AT39,D39,$G40:$AT40) -> 1143 | E40: =SUMIF($G39:$AT39,E39,$G40:$AT40) -> 174 | F40: =SUMIF($G39:$AT39,F39,$G40:$AT40) -> 969 | G40: =INDEX('Etat complet'!D:D,MATCH($B36&"-"&$G38,'Etat complet'!$H:$H,0)) -> AK137 | H40: =INDEX('Etat complet'!E:E,MATCH($B36&"-"&$G38,'Etat complet'!$H:$H,0)) -> 477 | I40: =INDEX('Etat complet'!F:F,MATCH($B36&"-"&$G38,'Etat complet'!$H:$H,0)) -> 36 | J40: =INDEX('Etat complet'!G:G,MATCH($B36&"-"&$G38,'Etat complet'!$H:$H,0)) -> 441 | K40: =IFERROR(INDEX('Etat complet'!D:D,MATCH($B36&"-"&$K38,'Etat complet'!$H:$H,0)),"") -> AK140 | L40: =IFERROR(INDEX('Etat complet'!E:E,MATCH($B36&"-"&$K38,'Etat complet'!$H:$H,0)),"") -> 666 | M40: =IFERROR(INDEX('Etat complet'!F:F,MATCH($B36&"-"&$K38,'Etat complet'!$H:$H,0)),"") -> 138 | N40: =IFERROR(INDEX('Etat complet'!G:G,MATCH($B36&"-"&$K38,'Etat complet'!$H:$H,0)),"") -> 528 | O40: =IFERROR(INDEX('Etat complet'!D:D,MATCH($B36&"-"&$O38,'Etat complet'!$H:$H,0)),"") ->  | P40: =IFERROR(INDEX('Etat complet'!E:E,MATCH($B36&"-"&$O38,'Etat complet'!$H:$H,0)),"") ->  | Q40: =IFERROR(INDEX('Etat complet'!F:F,MATCH($B36&"-"&$O38,'Etat complet'!$H:$H,0)),"") ->  | R40: =IFERROR(INDEX('Etat complet'!G:G,MATCH($B36&"-"&$O38,'Etat complet'!$H:$H,0)),"") ->  | S40: =IFERROR(INDEX('Etat complet'!D:D,MATCH($B36&"-"&$S38,'Etat complet'!$H:$H,0)),"") ->  | T40: =IFERROR(INDEX('Etat complet'!E:E,MATCH($B36&"-"&$S38,'Etat complet'!$H:$H,0)),"") ->  | U40: =IFERROR(INDEX('Etat complet'!F:F,MATCH($B36&"-"&$S38,'Etat complet'!$H:$H,0)),"") ->  | V40: =IFERROR(INDEX('Etat complet'!G:G,MATCH($B36&"-"&$S38,'Etat complet'!$H:$H,0)),"") ->  | W40: =IFERROR(INDEX('Etat complet'!D:D,MATCH($B36&"-"&$W38,'Etat complet'!$H:$H,0)),"") ->  | X40: =IFERROR(INDEX('Etat complet'!E:E,MATCH($B36&"-"&$W38,'Etat complet'!$H:$H,0)),"") ->  | Y40: =IFERROR(INDEX('Etat complet'!F:F,MATCH($B36&"-"&$W38,'Etat complet'!$H:$H,0)),"") ->  | Z40: =IFERROR(INDEX('Etat complet'!G:G,MATCH($B36&"-"&$W38,'Etat complet'!$H:$H,0)),"") ->  | AA40: =IFERROR(INDEX('Etat complet'!D:D,MATCH($B36&"-"&$AA38,'Etat complet'!$H:$H,0)),"") ->  | AB40: =IFERROR(INDEX('Etat complet'!E:E,MATCH($B36&"-"&$AA38,'Etat complet'!$H:$H,0)),"") ->  | AC40: =IFERROR(INDEX('Etat complet'!F:F,MATCH($B36&"-"&$AA38,'Etat complet'!$H:$H,0)),"") ->  | AD40: =IFERROR(INDEX('Etat complet'!G:G,MATCH($B36&"-"&$AA38,'Etat complet'!$H:$H,0)),"") ->  | AE40: =IFERROR(INDEX('Etat complet'!D:D,MATCH($B36&"-"&$AE38,'Etat complet'!$H:$H,0)),"") ->  | AF40: =IFERROR(INDEX('Etat complet'!E:E,MATCH($B36&"-"&$AE38,'Etat complet'!$H:$H,0)),"") ->  | AG40: =IFERROR(INDEX('Etat complet'!F:F,MATCH($B36&"-"&$AE38,'Etat complet'!$H:$H,0)),"") ->  | AH40: =IFERROR(INDEX('Etat complet'!G:G,MATCH($B36&"-"&$AE38,'Etat complet'!$H:$H,0)),"") ->  | AI40: =IFERROR(INDEX('Etat complet'!D:D,MATCH($B36&"-"&$AI38,'Etat complet'!$H:$H,0)),"") ->  | AJ40: =IFERROR(INDEX('Etat complet'!E:E,MATCH($B36&"-"&$AI38,'Etat complet'!$H:$H,0)),"") ->  | AK40: =IFERROR(INDEX('Etat complet'!F:F,MATCH($B36&"-"&$AI38,'Etat complet'!$H:$H,0)),"") ->  | AL40: =IFERROR(INDEX('Etat complet'!G:G,MATCH($B36&"-"&$AI38,'Etat complet'!$H:$H,0)),"") ->  | AM40: =IFERROR(INDEX('Etat complet'!D:D,MATCH($B36&"-"&$AM38,'Etat complet'!$H:$H,0)),"") ->  | AN40: =IFERROR(INDEX('Etat complet'!E:E,MATCH($B36&"-"&$AM38,'Etat complet'!$H:$H,0)),"") ->  | AO40: =IFERROR(INDEX('Etat complet'!F:F,MATCH($B36&"-"&$AM38,'Etat complet'!$H:$H,0)),"") ->  | AP40: =IFERROR(INDEX('Etat complet'!G:G,MATCH($B36&"-"&$AM38,'Etat complet'!$H:$H,0)),"") ->  | AQ40: =IFERROR(INDEX('Etat complet'!D:D,MATCH($B36&"-"&$AQ38,'Etat complet'!$H:$H,0)),"") ->  | AR40: =IFERROR(INDEX('Etat complet'!E:E,MATCH($B36&"-"&$AQ38,'Etat complet'!$H:$H,0)),"") ->  | AS40: =IFERROR(INDEX('Etat complet'!F:F,MATCH($B36&"-"&$AQ38,'Etat complet'!$H:$H,0)),"") ->  | AT40: =IFERROR(INDEX('Etat complet'!G:G,MATCH($B36&"-"&$AQ38,'Etat complet'!$H:$H,0)),"") -> 
A41: Propriétaire numéro | B41: 9
A42: =VLOOKUP(B41,'Détail propriétaire'!$1:$1048576,2,FALSE)&" "&VLOOKUP(B41,'Détail propriétaire'!$1:$1048576,3,FALSE)&" "&VLOOKUP(B41,'Détail propriétaire'!$1:$1048576,4,FALSE)&" "&VLOOKUP(B41,'Détail propriétaire'!$1:$1048576,5,FALSE)&" "&VLOOKUP(B41,'Détail propriétaire'!$1:$1048576,6,FALSE)&" "&VLOOKUP(B41,'Détail propriétaire'!$1:$1048576,7,FALSE) -> Monsieur I Paul Marc
A43: =VLOOKUP(B41,'Détail propriétaire'!$1:$1048576,8,FALSE) -> demeurant Allée Des Pins 04210 VILLE | C43: TOTAL | G43: 1 | K43: 2 | O43: 3 | S43: 4 | W43: 5 | AA43: 6 | AE43: 7 | AI43: 8 | AM43: 9 | AQ43: 10
C44: Parcelles | D44: Surface cadastrale | E44: Emprise servitude | F44: Reliquat | G44: Parcelle | H44: Surface cadastrale | I44: Emprise servitude | J44: Reliquat | K44: Parcelle | L44: Surface cadastrale | M44: Emprise servitude | N44: Reliquat | O44: Parcelle | P44: Surface cadastrale | Q44: Emprise servitude | R44: Reliquat | S44: Parcelle | T44: Surface cadastrale | U44: Emprise servitude | V44: Reliquat | W44: Parcelle | X44: Surface cadastrale | Y44: Emprise servitude | Z44: Reliquat | AA44: Parcelle | AB44: Surface cadastrale | AC44: Emprise servitude | AD44: Reliquat | AE44: Parcelle | AF44: Surface cadastrale | AG44: Emprise servitude | AH44: Reliquat | AI44: Parcelle | AJ44: Surface cadastrale | AK44: Emprise servitude | AL44: Reliquat | AM44: Parcelle | AN44: Surface cadastrale | AO44: Emprise servitude | AP44: Reliquat | AQ44: Parcelle | AR44: Surface cadastrale | AS44: Emprise servitude | AT44: Reliquat
C45: =G45&" "&K45&" "&O45&" "&S45&" "&W45&" "&AA45&" "&AE45&" "&AI45&" "&AM45&" "&AQ45 -> AK137 AK140 | D45: =SUMIF($G44:$AT44,D44,$G45:$AT45) -> 1143 | E45: =SUMIF($G44:$AT44,E44,$G45:$AT45) -> 174 | F45: =SUMIF($G44:$AT44,F44,$G45:$AT45) -> 969 | G45: =INDEX('Etat complet'!D:D,MATCH($B41&"-"&$G43,'Etat complet'!$H:$H,0)) -> AK137 | H45: =INDEX('Etat complet'!E:E,MATCH($B41&"-"&$G43,'Etat complet'!$H:$H,0)) -> 477 | I45: =INDEX('Etat complet'!F:F,MATCH($B41&"-"&$G43,'Etat complet'!$H:$H,0)) -> 36 | J45: =INDEX('Etat complet'!G:G,MATCH($B41&"-"&$G43,'Etat complet'!$H:$H,0)) -> 441 | K45: =IFERROR(INDEX('Etat complet'!D:D,MATCH($B41&"-"&$K43,'Etat complet'!$H:$H,0)),"") -> AK140 | L45: =IFERROR(INDEX('Etat complet'!E:E,MATCH($B41&"-"&$K43,'Etat complet'!$H:$H,0)),"") -> 666 | M45: =IFERROR(INDEX('Etat complet'!F:F,MATCH($B41&"-"&$K43,'Etat complet'!$H:$H,0)),"") -> 138 | N45: =IFERROR(INDEX('Etat complet'!G:G,MATCH($B41&"-"&$K43,'Etat complet'!$H:$H,0)),"") -> 528 | O45: =IFERROR(INDEX('Etat complet'!D:D,MATCH($B41&"-"&$O43,'Etat complet'!$H:$H,0)),"") ->  | P45: =IFERROR(INDEX('Etat complet'!E:E,MATCH($B41&"-"&$O43,'Etat complet'!$H:$H,0)),"") ->  | Q45: =IFERROR(INDEX('Etat complet'!F:F,MATCH($B41&"-"&$O43,'Etat complet'!$H:$H,0)),"") ->  | R45: =IFERROR(INDEX('Etat complet'!G:G,MATCH($B41&"-"&$O43,'Etat complet'!$H:$H,0)),"") ->  | S45: =IFERROR(INDEX('Etat complet'!D:D,MATCH($B41&"-"&$S43,'Etat complet'!$H:$H,0)),"") ->  | T45: =IFERROR(INDEX('Etat complet'!E:E,MATCH($B41&"-"&$S43,'Etat complet'!$H:$H,0)),"") ->  | U45: =IFERROR(INDEX('Etat complet'!F:F,MATCH($B41&"-"&$S43,'Etat complet'!$H:$H,0)),"") ->  | V45: =IFERROR(INDEX('Etat complet'!G:G,MATCH($B41&"-"&$S43,'Etat complet'!$H:$H,0)),"") ->  | W45: =IFERROR(INDEX('Etat complet'!D:D,MATCH($B41&"-"&$W43,'Etat complet'!$H:$H,0)),"") ->  | X45: =IFERROR(INDEX('Etat complet'!E:E,MATCH($B41&"-"&$W43,'Etat complet'!$H:$H,0)),"") ->  | Y45: =IFERROR(INDEX('Etat complet'!F:F,MATCH($B41&"-"&$W43,'Etat complet'!$H:$H,0)),"") ->  | Z45: =IFERROR(INDEX('Etat complet'!G:G,MATCH($B41&"-"&$W43,'Etat complet'!$H:$H,0)),"") ->  | AA45: =IFERROR(INDEX('Etat complet'!D:D,MATCH($B41&"-"&$AA43,'Etat complet'!$H:$H,0)),"") ->  | AB45: =IFERROR(INDEX('Etat complet'!E:E,MATCH($B41&"-"&$AA43,'Etat complet'!$H:$H,0)),"") ->  | AC45: =IFERROR(INDEX('Etat complet'!F:F,MATCH($B41&"-"&$AA43,'Etat complet'!$H:$H,0)),"") ->  | AD45: =IFERROR(INDEX('Etat complet'!G:G,MATCH($B41&"-"&$AA43,'Etat complet'!$H:$H,0)),"") ->  | AE45: =IFERROR(INDEX('Etat complet'!D:D,MATCH($B41&"-"&$AE43,'Etat complet'!$H:$H,0)),"") ->  | AF45: =IFERROR(INDEX('Etat complet'!E:E,MATCH($B41&"-"&$AE43,'Etat complet'!$H:$H,0)),"") ->  | AG45: =IFERROR(INDEX('Etat complet'!F:F,MATCH($B41&"-"&$AE43,'Etat complet'!$H:$H,0)),"") ->  | AH45: =IFERROR(INDEX('Etat complet'!G:G,MATCH($B41&"-"&$AE43,'Etat complet'!$H:$H,0)),"") ->  | AI45: =IFERROR(INDEX('Etat complet'!D:D,MATCH($B41&"-"&$AI43,'Etat complet'!$H:$H,0)),"") ->  | AJ45: =IFERROR(INDEX('Etat complet'!E:E,MATCH($B41&"-"&$AI43,'Etat complet'!$H:$H,0)),"") ->  | AK45: =IFERROR(INDEX('Etat complet'!F:F,MATCH($B41&"-"&$AI43,'Etat complet'!$H:$H,0)),"") ->  | AL45: =IFERROR(INDEX('Etat complet'!G:G,MATCH($B41&"-"&$AI43,'Etat complet'!$H:$H,0)),"") ->  | AM45: =IFERROR(INDEX('Etat complet'!D:D,MATCH($B41&"-"&$AM43,'Etat complet'!$H:$H,0)),"") ->  | AN45: =IFERROR(INDEX('Etat complet'!E:E,MATCH($B41&"-"&$AM43,'Etat complet'!$H:$H,0)),"") ->  | AO45: =IFERROR(INDEX('Etat complet'!F:F,MATCH($B41&"-"&$AM43,'Etat complet'!$H:$H,0)),"") ->  | AP45: =IFERROR(INDEX('Etat complet'!G:G,MATCH($B41&"-"&$AM43,'Etat complet'!$H:$H,0)),"") ->  | AQ45: =IFERROR(INDEX('Etat complet'!D:D,MATCH($B41&"-"&$AQ43,'Etat complet'!$H:$H,0)),"") ->  | AR45: =IFERROR(INDEX('Etat complet'!E:E,MATCH($B41&"-"&$AQ43,'Etat complet'!$H:$H,0)),"") ->  | AS45: =IFERROR(INDEX('Etat complet'!F:F,MATCH($B41&"-"&$AQ43,'Etat complet'!$H:$H,0)),"") ->  | AT45: =IFERROR(INDEX('Etat complet'!G:G,MATCH($B41&"-"&$AQ43,'Etat complet'!$H:$H,0)),"") -> 
A46: Propriétaire numéro | B46: 10
A47: =VLOOKUP(B46,'Détail propriétaire'!$1:$1048576,2,FALSE)&" "&VLOOKUP(B46,'Détail propriétaire'!$1:$1048576,3,FALSE)&" "&VLOOKUP(B46,'Détail propriétaire'!$1:$1048576,4,FALSE)&" "&VLOOKUP(B46,'Détail propriétaire'!$1:$1048576,5,FALSE)&" "&VLOOKUP(B46,'Détail propriétaire'!$1:$1048576,6,FALSE)&" "&VLOOKUP(B46,'Détail propriétaire'!$1:$1048576,7,FALSE) -> Societe J
A48: =VLOOKUP(B46,'Détail propriétaire'!$1:$1048576,8,FALSE) -> demeurant Place Des Hêtres 04210 VILLE | C48: TOTAL | G48: 1 | K48: 2 | O48: 3 | S48: 4 | W48: 5 | AA48: 6 | AE48: 7 | AI48: 8 | AM48: 9 | AQ48: 10
C49: Parcelles | D49: Surface cadastrale | E49: Emprise servitude | F49: Reliquat | G49: Parcelle | H49: Surface cadastrale | I49: Emprise servitude | J49: Reliquat | K49: Parcelle | L49: Surface cadastrale | M49: Emprise servitude | N49: Reliquat | O49: Parcelle | P49: Surface cadastrale | Q49: Emprise servitude | R49: Reliquat | S49: Parcelle | T49: Surface cadastrale | U49: Emprise servitude | V49: Reliquat | W49: Parcelle | X49: Surface cadastrale | Y49: Emprise servitude | Z49: Reliquat | AA49: Parcelle | AB49: Surface cadastrale | AC49: Emprise servitude | AD49: Reliquat | AE49: Parcelle | AF49: Surface cadastrale | AG49: Emprise servitude | AH49: Reliquat | AI49: Parcelle | AJ49: Surface cadastrale | AK49: Emprise servitude | AL49: Reliquat | AM49: Parcelle | AN49: Surface cadastrale | AO49: Emprise servitude | AP49: Reliquat | AQ49: Parcelle | AR49: Surface cadastrale | AS49: Emprise servitude | AT49: Reliquat
C50: =G50&" "&K50&" "&O50&" "&S50&" "&W50&" "&AA50&" "&AE50&" "&AI50&" "&AM50&" "&AQ50 -> AM254 AM319 AM321 AP263 AP319 | D50: =SUMIF($G49:$AT49,D49,$G50:$AT50) -> 1617 | E50: =SUMIF($G49:$AT49,E49,$G50:$AT50) -> 249 | F50: =SUMIF($G49:$AT49,F49,$G50:$AT50) -> 1368 | G50: =INDEX('Etat complet'!D:D,MATCH($B46&"-"&$G48,'Etat complet'!$H:$H,0)) -> AM254 | H50: =INDEX('Etat complet'!E:E,MATCH($B46&"-"&$G48,'Etat complet'!$H:$H,0)) -> 620 | I50: =INDEX('Etat complet'!F:F,MATCH($B46&"-"&$G48,'Etat complet'!$H:$H,0)) -> 9 | J50: =INDEX('Etat complet'!G:G,MATCH($B46&"-"&$G48,'Etat complet'!$H:$H,0)) -> 611 | K50: =IFERROR(INDEX('Etat complet'!D:D,MATCH($B46&"-"&$K48,'Etat complet'!$H:$H,0)),"") -> AM319 | L50: =IFERROR(INDEX('Etat complet'!E:E,MATCH($B46&"-"&$K48,'Etat complet'!$H:$H,0)),"") -> 284 | M50: =IFERROR(INDEX('Etat complet'!F:F,MATCH($B46&"-"&$K48,'Etat complet'!$H:$H,0)),"") -> 16 | N50: =IFERROR(INDEX('Etat complet'!G:G,MATCH($B46&"-"&$K48,'Etat complet'!$H:$H,0)),"") -> 268 | O50: =IFERROR(INDEX('Etat complet'!D:D,MATCH($B46&"-"&$O48,'Etat complet'!$H:$H,0)),"") -> AM321 | P50: =IFERROR(INDEX('Etat complet'!E:E,MATCH($B46&"-"&$O48,'Etat complet'!$H:$H,0)),"") -> 199 | Q50: =IFERROR(INDEX('Etat complet'!F:F,MATCH($B46&"-"&$O48,'Etat complet'!$H:$H,0)),"") -> 163 | R50: =IFERROR(INDEX('Etat complet'!G:G,MATCH($B46&"-"&$O48,'Etat complet'!$H:$H,0)),"") -> 36 | S50: =IFERROR(INDEX('Etat complet'!D:D,MATCH($B46&"-"&$S48,'Etat complet'!$H:$H,0)),"") -> AP263 | T50: =IFERROR(INDEX('Etat complet'!E:E,MATCH($B46&"-"&$S48,'Etat complet'!$H:$H,0)),"") -> 225 | U50: =IFERROR(INDEX('Etat complet'!F:F,MATCH($B46&"-"&$S48,'Etat complet'!$H:$H,0)),"") -> 22 | V50: =IFERROR(INDEX('Etat complet'!G:G,MATCH($B46&"-"&$S48,'Etat complet'!$H:$H,0)),"") -> 203 | W50: =IFERROR(INDEX('Etat complet'!D:D,MATCH($B46&"-"&$W48,'Etat complet'!$H:$H,0)),"") -> AP319 | X50: =IFERROR(INDEX('Etat complet'!E:E,MATCH($B46&"-"&$W48,'Etat complet'!$H:$H,0)),"") -> 289 | Y50: =IFERROR(INDEX('Etat complet'!F:F,MATCH($B46&"-"&$W48,'Etat complet'!$H:$H,0)),"") -> 39 | Z50: =IFERROR(INDEX('Etat complet'!G:G,MATCH($B46&"-"&$W48,'Etat complet'!$H:$H,0)),"") -> 250 | AA50: =IFERROR(INDEX('Etat complet'!D:D,MATCH($B46&"-"&$AA48,'Etat complet'!$H:$H,0)),"") ->  | AB50: =IFERROR(INDEX('Etat complet'!E:E,MATCH($B46&"-"&$AA48,'Etat complet'!$H:$H,0)),"") ->  | AC50: =IFERROR(INDEX('Etat complet'!F:F,MATCH($B46&"-"&$AA48,'Etat complet'!$H:$H,0)),"") ->  | AD50: =IFERROR(INDEX('Etat complet'!G:G,MATCH($B46&"-"&$AA48,'Etat complet'!$H:$H,0)),"") ->  | AE50: =IFERROR(INDEX('Etat complet'!D:D,MATCH($B46&"-"&$AE48,'Etat complet'!$H:$H,0)),"") ->  | AF50: =IFERROR(INDEX('Etat complet'!E:E,MATCH($B46&"-"&$AE48,'Etat complet'!$H:$H,0)),"") ->  | AG50: =IFERROR(INDEX('Etat complet'!F:F,MATCH($B46&"-"&$AE48,'Etat complet'!$H:$H,0)),"") ->  | AH50: =IFERROR(INDEX('Etat complet'!G:G,MATCH($B46&"-"&$AE48,'Etat complet'!$H:$H,0)),"") ->  | AI50: =IFERROR(INDEX('Etat complet'!D:D,MATCH($B46&"-"&$AI48,'Etat complet'!$H:$H,0)),"") ->  | AJ50: =IFERROR(INDEX('Etat complet'!E:E,MATCH($B46&"-"&$AI48,'Etat complet'!$H:$H,0)),"") ->  | AK50: =IFERROR(INDEX('Etat complet'!F:F,MATCH($B46&"-"&$AI48,'Etat complet'!$H:$H,0)),"") ->  | AL50: =IFERROR(INDEX('Etat complet'!G:G,MATCH($B46&"-"&$AI48,'Etat complet'!$H:$H,0)),"") ->  | AM50: =IFERROR(INDEX('Etat complet'!D:D,MATCH($B46&"-"&$AM48,'Etat complet'!$H:$H,0)),"") ->  | AN50: =IFERROR(INDEX('Etat complet'!E:E,MATCH($B46&"-"&$AM48,'Etat complet'!$H:$H,0)),"") ->  | AO50: =IFERROR(INDEX('Etat complet'!F:F,MATCH($B46&"-"&$AM48,'Etat complet'!$H:$H,0)),"") ->  | AP50: =IFERROR(INDEX('Etat complet'!G:G,MATCH($B46&"-"&$AM48,'Etat complet'!$H:$H,0)),"") ->  | AQ50: =IFERROR(INDEX('Etat complet'!D:D,MATCH($B46&"-"&$AQ48,'Etat complet'!$H:$H,0)),"") ->  | AR50: =IFERROR(INDEX('Etat complet'!E:E,MATCH($B46&"-"&$AQ48,'Etat complet'!$H:$H,0)),"") ->  | AS50: =IFERROR(INDEX('Etat complet'!F:F,MATCH($B46&"-"&$AQ48,'Etat complet'!$H:$H,0)),"") ->  | AT50: =IFERROR(INDEX('Etat complet'!G:G,MATCH($B46&"-"&$AQ48,'Etat complet'!$H:$H,0)),"") -> 
A51: Propriétaire numéro | B51: 11
A52: =VLOOKUP(B51,'Détail propriétaire'!$1:$1048576,2,FALSE)&" "&VLOOKUP(B51,'Détail propriétaire'!$1:$1048576,3,FALSE)&" "&VLOOKUP(B51,'Détail propriétaire'!$1:$1048576,4,FALSE)&" "&VLOOKUP(B51,'Détail propriétaire'!$1:$1048576,5,FALSE)&" "&VLOOKUP(B51,'Détail propriétaire'!$1:$1048576,6,FALSE)&" "&VLOOKUP(B51,'Détail propriétaire'!$1:$1048576,7,FALSE) -> Madame K Annie Odette Denise née P
A53: =VLOOKUP(B51,'Détail propriétaire'!$1:$1048576,8,FALSE) -> demeurant Rue Des Cyprès 04210 VILLE | C53: TOTAL | G53: 1 | K53: 2 | O53: 3 | S53: 4 | W53: 5 | AA53: 6 | AE53: 7 | AI53: 8 | AM53: 9 | AQ53: 10
C54: Parcelles | D54: Surface cadastrale | E54: Emprise servitude | F54: Reliquat | G54: Parcelle | H54: Surface cadastrale | I54: Emprise servitude | J54: Reliquat | K54: Parcelle | L54: Surface cadastrale | M54: Emprise servitude | N54: Reliquat | O54: Parcelle | P54: Surface cadastrale | Q54: Emprise servitude | R54: Reliquat | S54: Parcelle | T54: Surface cadastrale | U54: Emprise servitude | V54: Reliquat | W54: Parcelle | X54: Surface cadastrale | Y54: Emprise servitude | Z54: Reliquat | AA54: Parcelle | AB54: Surface cadastrale | AC54: Emprise servitude | AD54: Reliquat | AE54: Parcelle | AF54: Surface cadastrale | AG54: Emprise servitude | AH54: Reliquat | AI54: Parcelle | AJ54: Surface cadastrale | AK54: Emprise servitude | AL54: Reliquat | AM54: Parcelle | AN54: Surface cadastrale | AO54: Emprise servitude | AP54: Reliquat | AQ54: Parcelle | AR54: Surface cadastrale | AS54: Emprise servitude | AT54: Reliquat
C55: =G55&" "&K55&" "&O55&" "&S55&" "&W55&" "&AA55&" "&AE55&" "&AI55&" "&AM55&" "&AQ55 -> AP318 | D55: =SUMIF($G54:$AT54,D54,$G55:$AT55) -> 1048 | E55: =SUMIF($G54:$AT54,E54,$G55:$AT55) -> 101 | F55: =SUMIF($G54:$AT54,F54,$G55:$AT55) -> 947 | G55: =INDEX('Etat complet'!D:D,MATCH($B51&"-"&$G53,'Etat complet'!$H:$H,0)) -> AP318 | H55: =INDEX('Etat complet'!E:E,MATCH($B51&"-"&$G53,'Etat complet'!$H:$H,0)) -> 1048 | I55: =INDEX('Etat complet'!F:F,MATCH($B51&"-"&$G53,'Etat complet'!$H:$H,0)) -> 101 | J55: =INDEX('Etat complet'!G:G,MATCH($B51&"-"&$G53,'Etat complet'!$H:$H,0)) -> 947 | K55: =IFERROR(INDEX('Etat complet'!D:D,MATCH($B51&"-"&$K53,'Etat complet'!$H:$H,0)),"") ->  | L55: =IFERROR(INDEX('Etat complet'!E:E,MATCH($B51&"-"&$K53,'Etat complet'!$H:$H,0)),"") ->  | M55: =IFERROR(INDEX('Etat complet'!F:F,MATCH($B51&"-"&$K53,'Etat complet'!$H:$H,0)),"") ->  | N55: =IFERROR(INDEX('Etat complet'!G:G,MATCH($B51&"-"&$K53,'Etat complet'!$H:$H,0)),"") ->  | O55: =IFERROR(INDEX('Etat complet'!D:D,MATCH($B51&"-"&$O53,'Etat complet'!$H:$H,0)),"") ->  | P55: =IFERROR(INDEX('Etat complet'!E:E,MATCH($B51&"-"&$O53,'Etat complet'!$H:$H,0)),"") ->  | Q55: =IFERROR(INDEX('Etat complet'!F:F,MATCH($B51&"-"&$O53,'Etat complet'!$H:$H,0)),"") ->  | R55: =IFERROR(INDEX('Etat complet'!G:G,MATCH($B51&"-"&$O53,'Etat complet'!$H:$H,0)),"") ->  | S55: =IFERROR(INDEX('Etat complet'!D:D,MATCH($B51&"-"&$S53,'Etat complet'!$H:$H,0)),"") ->  | T55: =IFERROR(INDEX('Etat complet'!E:E,MATCH($B51&"-"&$S53,'Etat complet'!$H:$H,0)),"") ->  | U55: =IFERROR(INDEX('Etat complet'!F:F,MATCH($B51&"-"&$S53,'Etat complet'!$H:$H,0)),"") ->  | V55: =IFERROR(INDEX('Etat complet'!G:G,MATCH($B51&"-"&$S53,'Etat complet'!$H:$H,0)),"") ->  | W55: =IFERROR(INDEX('Etat complet'!D:D,MATCH($B51&"-"&$W53,'Etat complet'!$H:$H,0)),"") ->  | X55: =IFERROR(INDEX('Etat complet'!E:E,MATCH($B51&"-"&$W53,'Etat complet'!$H:$H,0)),"") ->  | Y55: =IFERROR(INDEX('Etat complet'!F:F,MATCH($B51&"-"&$W53,'Etat complet'!$H:$H,0)),"") ->  | Z55: =IFERROR(INDEX('Etat complet'!G:G,MATCH($B51&"-"&$W53,'Etat complet'!$H:$H,0)),"") ->  | AA55: =IFERROR(INDEX('Etat complet'!D:D,MATCH($B51&"-"&$AA53,'Etat complet'!$H:$H,0)),"") ->  | AB55: =IFERROR(INDEX('Etat complet'!E:E,MATCH($B51&"-"&$AA53,'Etat complet'!$H:$H,0)),"") ->  | AC55: =IFERROR(INDEX('Etat complet'!F:F,MATCH($B51&"-"&$AA53,'Etat complet'!$H:$H,0)),"") ->  | AD55: =IFERROR(INDEX('Etat complet'!G:G,MATCH($B51&"-"&$AA53,'Etat complet'!$H:$H,0)),"") ->  | AE55: =IFERROR(INDEX('Etat complet'!D:D,MATCH($B51&"-"&$AE53,'Etat complet'!$H:$H,0)),"") ->  | AF55: =IFERROR(INDEX('Etat complet'!E:E,MATCH($B51&"-"&$AE53,'Etat complet'!$H:$H,0)),"") ->  | AG55: =IFERROR(INDEX('Etat complet'!F:F,MATCH($B51&"-"&$AE53,'Etat complet'!$H:$H,0)),"") ->  | AH55: =IFERROR(INDEX('Etat complet'!G:G,MATCH($B51&"-"&$AE53,'Etat complet'!$H:$H,0)),"") ->  | AI55: =IFERROR(INDEX('Etat complet'!D:D,MATCH($B51&"-"&$AI53,'Etat complet'!$H:$H,0)),"") ->  | AJ55: =IFERROR(INDEX('Etat complet'!E:E,MATCH($B51&"-"&$AI53,'Etat complet'!$H:$H,0)),"") ->  | AK55: =IFERROR(INDEX('Etat complet'!F:F,MATCH($B51&"-"&$AI53,'Etat complet'!$H:$H,0)),"") ->  | AL55: =IFERROR(INDEX('Etat complet'!G:G,MATCH($B51&"-"&$AI53,'Etat complet'!$H:$H,0)),"") ->  | AM55: =IFERROR(INDEX('Etat complet'!D:D,MATCH($B51&"-"&$AM53,'Etat complet'!$H:$H,0)),"") ->  | AN55: =IFERROR(INDEX('Etat complet'!E:E,MATCH($B51&"-"&$AM53,'Etat complet'!$H:$H,0)),"") ->  | AO55: =IFERROR(INDEX('Etat complet'!F:F,MATCH($B51&"-"&$AM53,'Etat complet'!$H:$H,0)),"") ->  | AP55: =IFERROR(INDEX('Etat complet'!G:G,MATCH($B51&"-"&$AM53,'Etat complet'!$H:$H,0)),"") ->  | AQ55: =IFERROR(INDEX('Etat complet'!D:D,MATCH($B51&"-"&$AQ53,'Etat complet'!$H:$H,0)),"") ->  | AR55: =IFERROR(INDEX('Etat complet'!E:E,MATCH($B51&"-"&$AQ53,'Etat complet'!$H:$H,0)),"") ->  | AS55: =IFERROR(INDEX('Etat complet'!F:F,MATCH($B51&"-"&$AQ53,'Etat complet'!$H:$H,0)),"") ->  | AT55: =IFERROR(INDEX('Etat complet'!G:G,MATCH($B51&"-"&$AQ53,'Etat complet'!$H:$H,0)),"") -> 
A56: Propriétaire numéro | B56: 12
A57: =VLOOKUP(B56,'Détail propriétaire'!$1:$1048576,2,FALSE)&" "&VLOOKUP(B56,'Détail propriétaire'!$1:$1048576,3,FALSE)&" "&VLOOKUP(B56,'Détail propriétaire'!$1:$1048576,4,FALSE)&" "&VLOOKUP(B56,'Détail propriétaire'!$1:$1048576,5,FALSE)&" "&VLOOKUP(B56,'Détail propriétaire'!$1:$1048576,6,FALSE)&" "&VLOOKUP(B56,'Détail propriétaire'!$1:$1048576,7,FALSE) -> Monsieur L Fabien Elie
A58: =VLOOKUP(B56,'Détail propriétaire'!$1:$1048576,8,FALSE) -> demeurant Impasse Fleurie 04210 VILLE | C58: TOTAL | G58: 1 | K58: 2 | O58: 3 | S58: 4 | W58: 5 | AA58: 6 | AE58: 7 | AI58: 8 | AM58: 9 | AQ58: 10
C59: Parcelles | D59: Surface cadastrale | E59: Emprise servitude | F59: Reliquat | G59: Parcelle | H59: Surface cadastrale | I59: Emprise servitude | J59: Reliquat | K59: Parcelle | L59: Surface cadastrale | M59: Emprise servitude | N59: Reliquat | O59: Parcelle | P59: Surface cadastrale | Q59: Emprise servitude | R59: Reliquat | S59: Parcelle | T59: Surface cadastrale | U59: Emprise servitude | V59: Reliquat | W59: Parcelle | X59: Surface cadastrale | Y59: Emprise servitude | Z59: Reliquat | AA59: Parcelle | AB59: Surface cadastrale | AC59: Emprise servitude | AD59: Reliquat | AE59: Parcelle | AF59: Surface cadastrale | AG59: Emprise servitude | AH59: Reliquat | AI59: Parcelle | AJ59: Surface cadastrale | AK59: Emprise servitude | AL59: Reliquat | AM59: Parcelle | AN59: Surface cadastrale | AO59: Emprise servitude | AP59: Reliquat | AQ59: Parcelle | AR59: Surface cadastrale | AS59: Emprise servitude | AT59: Reliquat
C60: =G60&" "&K60&" "&O60&" "&S60&" "&W60&" "&AA60&" "&AE60&" "&AI60&" "&AM60&" "&AQ60 -> AP318 | D60: =SUMIF($G59:$AT59,D59,$G60:$AT60) -> 1048 | E60: =SUMIF($G59:$AT59,E59,$G60:$AT60) -> 101 | F60: =SUMIF($G59:$AT59,F59,$G60:$AT60) -> 947 | G60: =INDEX('Etat complet'!D:D,MATCH($B56&"-"&$G58,'Etat complet'!$H:$H,0)) -> AP318 | H60: =INDEX('Etat complet'!E:E,MATCH($B56&"-"&$G58,'Etat complet'!$H:$H,0)) -> 1048 | I60: =INDEX('Etat complet'!F:F,MATCH($B56&"-"&$G58,'Etat complet'!$H:$H,0)) -> 101 | J60: =INDEX('Etat complet'!G:G,MATCH($B56&"-"&$G58,'Etat complet'!$H:$H,0)) -> 947 | K60: =IFERROR(INDEX('Etat complet'!D:D,MATCH($B56&"-"&$K58,'Etat complet'!$H:$H,0)),"") ->  | L60: =IFERROR(INDEX('Etat complet'!E:E,MATCH($B56&"-"&$K58,'Etat complet'!$H:$H,0)),"") ->  | M60: =IFERROR(INDEX('Etat complet'!F:F,MATCH($B56&"-"&$K58,'Etat complet'!$H:$H,0)),"") ->  | N60: =IFERROR(INDEX('Etat complet'!G:G,MATCH($B56&"-"&$K58,'Etat complet'!$H:$H,0)),"") ->  | O60: =IFERROR(INDEX('Etat complet'!D:D,MATCH($B56&"-"&$O58,'Etat complet'!$H:$H,0)),"") ->  | P60: =IFERROR(INDEX('Etat complet'!E:E,MATCH($B56&"-"&$O58,'Etat complet'!$H:$H,0)),"") ->  | Q60: =IFERROR(INDEX('Etat complet'!F:F,MATCH($B56&"-"&$O58,'Etat complet'!$H:$H,0)),"") ->  | R60: =IFERROR(INDEX('Etat complet'!G:G,MATCH($B56&"-"&$O58,'Etat complet'!$H:$H,0)),"") ->  | S60: =IFERROR(INDEX('Etat complet'!D:D,MATCH($B56&"-"&$S58,'Etat complet'!$H:$H,0)),"") ->  | T60: =IFERROR(INDEX('Etat complet'!E:E,MATCH($B56&"-"&$S58,'Etat complet'!$H:$H,0)),"") ->  | U60: =IFERROR(INDEX('Etat complet'!F:F,MATCH($B56&"-"&$S58,'Etat complet'!$H:$H,0)),"") ->  | V60: =IFERROR(INDEX('Etat complet'!G:G,MATCH($B56&"-"&$S58,'Etat complet'!$H:$H,0)),"") ->  | W60: =IFERROR(INDEX('Etat complet'!D:D,MATCH($B56&"-"&$W58,'Etat complet'!$H:$H,0)),"") ->  | X60: =IFERROR(INDEX('Etat complet'!E:E,MATCH($B56&"-"&$W58,'Etat complet'!$H:$H,0)),"") ->  | Y60: =IFERROR(INDEX('Etat complet'!F:F,MATCH($B56&"-"&$W58,'Etat complet'!$H:$H,0)),"") ->  | Z60: =IFERROR(INDEX('Etat complet'!G:G,MATCH($B56&"-"&$W58,'Etat complet'!$H:$H,0)),"") ->  | AA60: =IFERROR(INDEX('Etat complet'!D:D,MATCH($B56&"-"&$AA58,'Etat complet'!$H:$H,0)),"") ->  | AB60: =IFERROR(INDEX('Etat complet'!E:E,MATCH($B56&"-"&$AA58,'Etat complet'!$H:$H,0)),"") ->  | AC60: =IFERROR(INDEX('Etat complet'!F:F,MATCH($B56&"-"&$AA58,'Etat complet'!$H:$H,0)),"") ->  | AD60: =IFERROR(INDEX('Etat complet'!G:G,MATCH($B56&"-"&$AA58,'Etat complet'!$H:$H,0)),"") ->  | AE60: =IFERROR(INDEX('Etat complet'!D:D,MATCH($B56&"-"&$AE58,'Etat complet'!$H:$H,0)),"") ->  | AF60: =IFERROR(INDEX('Etat complet'!E:E,MATCH($B56&"-"&$AE58,'Etat complet'!$H:$H,0)),"") ->  | AG60: =IFERROR(INDEX('Etat complet'!F:F,MATCH($B56&"-"&$AE58,'Etat complet'!$H:$H,0)),"") ->  | AH60: =IFERROR(INDEX('Etat complet'!G:G,MATCH($B56&"-"&$AE58,'Etat complet'!$H:$H,0)),"") ->  | AI60: =IFERROR(INDEX('Etat complet'!D:D,MATCH($B56&"-"&$AI58,'Etat complet'!$H:$H,0)),"") ->  | AJ60: =IFERROR(INDEX('Etat complet'!E:E,MATCH($B56&"-"&$AI58,'Etat complet'!$H:$H,0)),"") ->  | AK60: =IFERROR(INDEX('Etat complet'!F:F,MATCH($B56&"-"&$AI58,'Etat complet'!$H:$H,0)),"") ->  | AL60: =IFERROR(INDEX('Etat complet'!G:G,MATCH($B56&"-"&$AI58,'Etat complet'!$H:$H,0)),"") ->  | AM60: =IFERROR(INDEX('Etat complet'!D:D,MATCH($B56&"-"&$AM58,'Etat complet'!$H:$H,0)),"") ->  | AN60: =IFERROR(INDEX('Etat complet'!E:E,MATCH($B56&"-"&$AM58,'Etat complet'!$H:$H,0)),"") ->  | AO60: =IFERROR(INDEX('Etat complet'!F:F,MATCH($B56&"-"&$AM58,'Etat complet'!$H:$H,0)),"") ->  | AP60: =IFERROR(INDEX('Etat complet'!G:G,MATCH($B56&"-"&$AM58,'Etat complet'!$H:$H,0)),"") ->  | AQ60: =IFERROR(INDEX('Etat complet'!D:D,MATCH($B56&"-"&$AQ58,'Etat complet'!$H:$H,0)),"") ->  | AR60: =IFERROR(INDEX('Etat complet'!E:E,MATCH($B56&"-"&$AQ58,'Etat complet'!$H:$H,0)),"") ->  | AS60: =IFERROR(INDEX('Etat complet'!F:F,MATCH($B56&"-"&$AQ58,'Etat complet'!$H:$H,0)),"") ->  | AT60: =IFERROR(INDEX('Etat complet'!G:G,MATCH($B56&"-"&$AQ58,'Etat complet'!$H:$H,0)),"") -> 

Sheet Export Geomas
A1: id | B1: idu | C1: insee_com | D1: code_com | E1: section | F1: num_parc | G1: coar | H1: indp | I1: indp_code | J1: supf | K1: tex | L1: Concat | M1: Emprise | N1: Restant
A2: 9699 | B2: 161000AI0420 | C2: 05161 | D2: 161 | E2: AI | F2: 0420 | H2: Parcelle figurée au plan | I2: 01 | J2: 7180 | K2: 420 | L2: =CONCATENATE(E2,K2) -> AI420 | M2: 240 | N2: =J2-M2 -> 6940
A3: 9134 | B3: 161000AI0453 | C3: 05161 | D3: 161 | E3: AI | F3: 0453 | H3: Parcelle figurée au plan | I3: 01 | J3: 480 | K3: 453 | L3: AI453 | M3: 18 | N3: =J3-M3 -> 462
A4: 9978 | B4: 161000AK0113 | C4: 05161 | D4: 161 | E4: AK | F4: 0113 | H4: Parcelle figurée au plan | I4: 01 | J4: 743 | K4: 113 | L4: AK113 | M4: 78 | N4: 665
A5: 9994 | B5: 161000AK0121 | C5: 05161 | D5: 161 | E5: AK | F5: 0121 | H5: Parcelle figurée au plan | I5: 01 | J5: 562 | K5: 121 | L5: AK121 | M5: 78 | N5: 484
A6: 9992 | B6: 161000AK0124 | C6: 05161 | D6: 161 | E6: AK | F6: 0124 | H6: Parcelle figurée au plan | I6: 01 | J6: 542 | K6: 124 | L6: AK124 | M6: 111 | N6: 431
A7: 9965 | B7: 161000AK0127 | C7: 05161 | D7: 161 | E7: AK | F7: 0127 | H7: Parcelle figurée au plan | I7: 01 | J7: 2300 | K7: 127 | L7: AK127 | M7: 123 | N7: 2177
A8: 9969 | B8: 161000AK0128 | C8: 05161 | D8: 161 | E8: AK | F8: 0128 | H8: Parcelle figurée au plan | I8: 01 | J8: 713 | K8: 128 | L8: AK128 | M8: 119 | N8: 594
A9: 9968 | B9: 161000AK0132 | C9: 05161 | D9: 161 | E9: AK | F9: 0132 | H9: Parcelle figurée au plan | I9: 01 | J9: 576 | K9: 132 | L9: AK132 | M9: 133 | N9: 443
A10: 9967 | B10: 161000AK0133 | C10: 05161 | D10: 161 | E10: AK | F10: 0133 | H10: Parcelle figurée au plan | I10: 01 | J10: 492 | K10: 133 | L10: AK133 | M10: 67 | N10: 425
A11: 9882 | B11: 161000AK0137 | C11: 05161 | D11: 161 | E11: AK | F11: 0137 | H11: Parcelle figurée au plan | I11: 01 | J11: 477 | K11: 137 | L11: AK137 | M11: 36 | N11: 441
A12: 9881 | B12: 161000AK0138 | C12: 05161 | D12: 161 | E12: AK | F12: 0138 | H12: Parcelle figurée au plan | I12: 01 | J12: 160 | K12: 138 | L12: AK138 | M12: 34 | N12: 126
A13: 9883 | B13: 161000AK0139 | C13: 05161 | D13: 161 | E13: AK | F13: 0139 | H13: Parcelle figurée au plan | I13: 01 | J13: 233 | K13: 139 | L13: AK139 | M13: 47 | N13: 186
A14: 9880 | B14: 161000AK0140 | C14: 05161 | D14: 161 | E14: AK | F14: 0140 | H14: Parcelle figurée au plan | I14: 01 | J14: 666 | K14: 140 | L14: AK140 | M14: 138 | N14: 528
A15: 9867 | B15: 161000AK0144 | C15: 05161 | D15: 161 | E15: AK | F15: 0144 | H15: Parcelle figurée au plan | I15: 01 | J15: 2251 | K15: 144 | L15: AK144 | M15: 330 | N15: 1921
A16: 9871 | B16: 161000AK0148 | C16: 05161 | D16: 161 | E16: AK | F16: 0148 | H16: Parcelle figurée au plan | I16: 01 | J16: 1210 | K16: 148 | L16: AK148 | M16: 7 | N16: 1203
A17: 9873 | B17: 161000AK0150 | C17: 05161 | D17: 161 | E17: AK | F17: 0150 | H17: Parcelle figurée au plan | I17: 01 | J17: 2480 | K17: 150 | L17: AK150 | M17: 289 | N17: 2191
A18: 9850 | B18: 161000AK0151 | C18: 05161 | D18: 161 | E18: AK | F18: 0151 | H18: Parcelle figurée au plan | I18: 01 | J18: 724 | K18: 151 | L18: AK151 | M18: 45 | N18: 679
A19: 9846 | B19: 161000AK0166 | C19: 05161 | D19: 161 | E19: AK | F19: 0166 | H19: Parcelle figurée au plan | I19: 01 | J19: 1069 | K19: 166 | L19: AK166 | M19: 57 | N19: 1012
A20: 9823 | B20: 161000AK0167 | C20: 05161 | D20: 161 | E20: AK | F20: 0167 | H20: Parcelle figurée au plan | I20: 01 | J20: 4 | K20: 167 | L20: AK167 | M20: 0 | N20: 4
A21: 9847 | B21: 161000AK0168 | C21: 05161 | D21: 161 | E21: AK | F21: 0168 | H21: Parcelle figurée au plan | I21: 01 | J21: 1004 | K21: 168 | L21: AK168 | M21: 291 | N21: 713
A22: 9845 | B22: 161000AK0170 | C22: 05161 | D22: 161 | E22: AK | F22: 0170 | H22: Parcelle figurée au plan | I22: 01 | J22: 666 | K22: 170 | L22: AK170 | M22: 17 | N22: 649
A23: 9840 | B23: 161000AK0171 | C23: 05161 | D23: 161 | E23: AK | F23: 0171 | H23: Parcelle figurée au plan | I23: 01 | J23: 2085 | K23: 171 | L23: AK171 | M23: 295 | N23: 1790
A24: 9841 | B24: 161000AK0178 | C24: 05161 | D24: 161 | E24: AK | F24: 0178 | H24: Parcelle figurée au plan | I24: 01 | J24: 830 | K24: 178 | L24: AK178 | M24: 10 | N24: 820
A25: 9827 | B25: 161000AK0188 | C25: 05161 | D25: 161 | E25: AK | F25: 0188 | H25: Parcelle figurée au plan | I25: 01 | J25: 492 | K25: 188 | L25: AK188 | M25: 31 | N25: 461
A26: 9835 | B26: 161000AK0189 | C26: 05161 | D26: 161 | E26: AK | F26: 0189 | H26: Parcelle figurée au plan | I26: 01 | J26: 1011 | K26: 189 | L26: AK189 | M26: 272 | N26: 739
A27: 9834 | B27: 161000AK0190 | C27: 05161 | D27: 161 | E27: AK | F27: 0190 | H27: Parcelle figurée au plan | I27: 01 | J27: 831 | K27: 190 | L27: AK190 | M27: 2 | N27: 829
A28: 9852 | B28: 161000AK0194 | C28: 05161 | D28: 161 | E28: AK | F28: 0194 | H28: Parcelle figurée au plan | I28: 01 | J28: 835 | K28: 194 | L28: AK194 | M28: 8 | N28: 827
A29: 9851 | B29: 161000AK0195 | C29: 05161 | D29: 161 | E29: AK | F29: 0195 | H29: Parcelle figurée au plan | I29: 01 | J29: 255 | K29: 195 | L29: AK195 | M29: 50 | N29: 205
A30: 9809 | B30: 161000AK0359 | C30: 05161 | D30: 161 | E30: AK | F30: 0359 | H30: Parcelle figurée au plan | I30: 01 | J30: 1245 | K30: 359 | L30: AK359 | M30: 7 | N30: 1238
A31: 9810 | B31: 161000AK0360 | C31: 05161 | D31: 161 | E31: AK | F31: 0360 | H31: Parcelle figurée au plan | I31: 01 | J31: 547 | K31: 360 | L31: AK360 | M31: 85 | N31: 462
A32: 9811 | B32: 161000AK0361 | C32: 05161 | D32: 161 | E32: AK | F32: 0361 | H32: Parcelle figurée au plan | I32: 01 | J32: 764 | K32: 361 | L32: AK361 | M32: 107 | N32: 657
A33: 9812 | B33: 161000AK0362 | C33: 05161 | D33: 161 | E33: AK | F33: 0362 | H33: Parcelle figurée au plan | I33: 01 | J33: 1559 | K33: 362 | L33: AK362 | M33: 206 | N33: 1353
A34: 9813 | B34: 161000AK0363 | C34: 05161 | D34: 161 | E34: AK | F34: 0363 | H34: Parcelle figurée au plan | I34: 01 | J34: 172 | K34: 363 | L34: AK363 | M34: 53 | N34: 119
A35: 9814 | B35: 161000AK0364 | C35: 05161 | D35: 161 | E35: AK | F35: 0364 | H35: Parcelle figurée au plan | I35: 01 | J35: 344 | K35: 364 | L35: AK364 | M35: 75 | N35: 269
A36: 9815 | B36: 161000AK0365 | C36: 05161 | D36: 161 | E36: AK | F36: 0365 | H36: Parcelle figurée au plan | I36: 01 | J36: 1136 | K36: 365 | L36: AK365 | M36: 88 | N36: 1048
A37: 9816 | B37: 161000AK0366 | C37: 05161 | D37: 161 | E37: AK | F37: 0366 | H37: Parcelle figurée au plan | I37: 01 | J37: 3168 | K37: 366 | L37: AK366 | M37: 295 | N37: 2873
A38: 10067 | B38: 161000AL0051 | C38: 05161 | D38: 161 | E38: AL | F38: 0051 | H38: Parcelle figurée au plan | I38: 01 | J38: 1315 | K38: 51 | L38: AL51 | M38: 84 | N38: 1231
A39: 10090 | B39: 161000AL0053 | C39: 05161 | D39: 161 | E39: AL | F39: 0053 | H39: Parcelle figurée au plan | I39: 01 | J39: 1315 | K39: 53 | L39: AL53 | M39: 188 | N39: 1127
A40: 10091 | B40: 161000AL0061 | C40: 05161 | D40: 161 | E40: AL | F40: 0061 | H40: Parcelle figurée au plan | I40: 01 | J40: 928 | K40: 61 | L40: AL61 | M40: 3 | N40: 925
A41: 10052 | B41: 161000AL0062 | C41: 05161 | D41: 161 | E41: AL | F41: 0062 | H41: Parcelle figurée au plan | I41: 01 | J41: 880 | K41: 62 | L41: AL62 | M41: 16 | N41: 864
A42: 10084 | B42: 161000AL0067 | C42: 05161 | D42: 161 | E42: AL | F42: 0067 | H42: Parcelle figurée au plan | I42: 01 | J42: 60 | K42: 67 | L42: AL67 | M42: 7 | N42: 53
A43: 10083 | B43: 161000AL0068 | C43: 05161 | D43: 161 | E43: AL | F43: 0068 | H43: Parcelle figurée au plan | I43: 01 | J43: 50 | K43: 68 | L43: AL68 | M43: 49 | N43: 1
A44: 10079 | B44: 161000AL0069 | C44: 05161 | D44: 161 | E44: AL | F44: 0069 | H44: Parcelle figurée au plan | I44: 01 | J44: 54 | K44: 69 | L44: AL69 | M44: 47 | N44: 7
A45: 10078 | B45: 161000AL0070 | C45: 05161 | D45: 161 | E45: AL | F45: 0070 | H45: Parcelle figurée au plan | I45: 01 | J45: 53 | K45: 70 | L45: AL70 | M45: 43 | N45: 10
A46: 10077 | B46: 161000AL0071 | C46: 05161 | D46: 161 | E46: AL | F46: 0071 | H46: Parcelle figurée au plan | I46: 01 | J46: 59 | K46: 71 | L46: AL71 | M46: 54 | N46: 5
A47: 10076 | B47: 161000AL0072 | C47: 05161 | D47: 161 | E47: AL | F47: 0072 | H47: Parcelle figurée au plan | I47: 01 | J47: 80 | K47: 72 | L47: AL72 | M47: 14 | N47: 66
A48: 10082 | B48: 161000AL0075 | C48: 05161 | D48: 161 | E48: AL | F48: 0075 | H48: Parcelle figurée au plan | I48: 01 | J48: 79 | K48: 75 | L48: AL75 | M48: 2 | N48: 77
A49: 10087 | B49: 161000AL0076 | C49: 05161 | D49: 161 | E49: AL | F49: 0076 | H49: Parcelle figurée au plan | I49: 01 | J49: 547 | K49: 76 | L49: AL76 | M49: 192 | N49: 355
A50: 10088 | B50: 161000AL0082 | C50: 05161 | D50: 161 | E50: AL | F50: 0082 | H50: Parcelle figurée au plan | I50: 01 | J50: 1335 | K50: 82 | L50: AL82 | M50: 65 | N50: 1270
A51: 10039 | B51: 161000AL0171 | C51: 05161 | D51: 161 | E51: AL | F51: 0171 | H51: Parcelle figurée au plan | I51: 01 | J51: 2106 | K51: 171 | L51: AL171 | M51: 8 | N51: 2098
A52: 10040 | B52: 161000AL0172 | C52: 05161 | D52: 161 | E52: AL | F52: 0172 | H52: Parcelle figurée au plan | I52: 01 | J52: 1000 | K52: 172 | L52: AL172 | M52: 151 | N52: 849
A53: 10041 | B53: 161000AL0173 | C53: 05161 | D53: 161 | E53: AL | F53: 0173 | H53: Parcelle figurée au plan | I53: 01 | J53: 1100 | K53: 173 | L53: AL173 | M53: 190 | N53: 910
A54: 10042 | B54: 161000AL0174 | C54: 05161 | D54: 161 | E54: AL | F54: 0174 | H54: Parcelle figurée au plan | I54: 01 | J54: 1442 | K54: 174 | L54: AL174 | M54: 212 | N54: 1230
A55: 10043 | B55: 161000AL0175 | C55: 05161 | D55: 161 | E55: AL | F55: 0175 | H55: Parcelle figurée au plan | I55: 01 | J55: 1116 | K55: 175 | L55: AL175 | M55: 146 | N55: 970
A56: 10445 | B56: 161000AM0254 | C56: 05161 | D56: 161 | E56: AM | F56: 0254 | H56: Parcelle figurée au plan | I56: 01 | J56: 620 | K56: 254 | L56: AM254 | M56: 9 | N56: 611
A57: 10328 | B57: 161000AM0271 | C57: 05161 | D57: 161 | E57: AM | F57: 0271 | H57: Parcelle figurée au plan | I57: 01 | J57: 2044 | K57: 271 | L57: AM271 | M57: 164 | N57: 1880
A58: 10327 | B58: 161000AM0273 | C58: 05161 | D58: 161 | E58: AM | F58: 0273 | H58: Parcelle figurée au plan | I58: 01 | J58: 377 | K58: 273 | L58: AM273 | M58: 56 | N58: 321
A59: 10326 | B59: 161000AM0274 | C59: 05161 | D59: 161 | E59: AM | F59: 0274 | H59: Parcelle figurée au plan | I59: 01 | J59: 579 | K59: 274 | L59: AM274 | M59: 24 | N59: 555
A60: 10324 | B60: 161000AM0276 | C60: 05161 | D60: 161 | E60: AM | F60: 0276 | H60: Parcelle figurée au plan | I60: 01 | J60: 246 | K60: 276 | L60: AM276 | M60: 0 | N60: 246
A61: 10323 | B61: 161000AM0278 | C61: 05161 | D61: 161 | E61: AM | F61: 0278 | H61: Parcelle figurée au plan | I61: 01 | J61: 173 | K61: 278 | L61: AM278 | M61: 31 | N61: 142
A62: 10322 | B62: 161000AM0279 | C62: 05161 | D62: 161 | E62: AM | F62: 0279 | H62: Parcelle figurée au plan | I62: 01 | J62: 290 | K62: 279 | L62: AM279 | M62: 67 | N62: 223
A63: 10479 | B63: 161000AM0319 | C63: 05161 | D63: 161 | E63: AM | F63: 0319 | H63: Parcelle figurée au plan | I63: 01 | J63: 284 | K63: 319 | L63: AM319 | M63: 16 | N63: 268
A64: 10232 | B64: 161000AM0320 | C64: 05161 | D64: 161 | E64: AM | F64: 0320 | H64: Parcelle figurée au plan | I64: 01 | J64: 1724 | K64: 320 | L64: AM320 | M64: 182 | N64: 1542
A65: 10480 | B65: 161000AM0321 | C65: 05161 | D65: 161 | E65: AM | F65: 0321 | H65: Parcelle figurée au plan | I65: 01 | J65: 199 | K65: 321 | L65: AM321 | M65: 163 | N65: 36
A66: 10211 | B66: 161000AM0322 | C66: 05161 | D66: 161 | E66: AM | F66: 0322 | H66: Parcelle figurée au plan | I66: 01 | J66: 590 | K66: 322 | L66: =CONCATENATE(E66,K66) -> AM322 | M66: 86 | N66: 504
A67: 10210 | B67: 161000AM0323 | C67: 05161 | D67: 161 | E67: AM | F67: 0323 | H67: Parcelle figurée au plan | I67: 01 | J67: 310 | K67: 323 | L67: AM323 | M67: 104 | N67: =J67-M67 -> 206
A68: 10208 | B68: 161000AM0324 | C68: 05161 | D68: 161 | E68: AM | F68: 0324 | H68: Parcelle figurée au plan | I68: 01 | J68: 134 | K68: 324 | L68: AM324 | M68: 66 | N68: 68
A69: 10265 | B69: 161000AM0499 | C69: 05161 | D69: 161 | E69: AM | F69: 0499 | H69: Parcelle figurée au plan | I69: 01 | J69: 127 | K69: 499 | L69: AM499 | M69: 2 | N69: 125
A70: 10263 | B70: 161000AM0501 | C70: 05161 | D70: 161 | E70: AM | F70: 0501 | H70: Parcelle figurée au plan | I70: 01 | J70: 384 | K70: 501 | L70: AM501 | M70: 71 | N70: 313
A71: 10243 | B71: 161000AM0780 | C71: 05161 | D71: 161 | E71: AM | F71: 0780 | H71: Parcelle figurée au plan | I71: 01 | J71: 3397 | K71: 780 | L71: AM780 | M71: 151 | N71: 3246
A72: 10986 | B72: 161000AN0169 | C72: 05161 | D72: 161 | E72: AN | F72: 0169 | H72: Parcelle figurée au plan | I72: 01 | J72: 105 | K72: 169 | L72: AN169 | M72: 1 | N72: 104
A73: 10577 | B73: 161000AN0171 | C73: 05161 | D73: 161 | E73: AN | F73: 0171 | H73: Parcelle figurée au plan | I73: 01 | J73: 515 | K73: 171 | L73: AN171 | M73: 9 | N73: 506
A74: 10580 | B74: 161000AN0172 | C74: 05161 | D74: 161 | E74: AN | F74: 0172 | H74: Parcelle figurée au plan | I74: 01 | J74: 214 | K74: 172 | L74: AN172 | M74: 0 | N74: 214
A75: 10585 | B75: 161000AN0177 | C75: 05161 | D75: 161 | E75: AN | F75: 0177 | H75: Parcelle figurée au plan | I75: 01 | J75: 4146 | K75: 177 | L75: AN177 | M75: 6 | N75: 4140
A76: 11010 | B76: 161000AO0017 | C76: 05161 | D76: 161 | E76: AO | F76: 0017 | H76: Parcelle figurée au plan | I76: 01 | J76: 29850 | K76: 17 | L76: AO17 | M76: 1508 | N76: 28342
A77: 11716 | B77: 161000AP0005 | C77: 05161 | D77: 161 | E77: AP | F77: 0005 | H77: Parcelle figurée au plan | I77: 01 | J77: 140 | K77: 5 | L77: AP5 | M77: 11 | N77: 129
A78: 11720 | B78: 161000AP0007 | C78: 05161 | D78: 161 | E78: AP | F78: 0007 | H78: Parcelle figurée au plan | I78: 01 | J78: 2568 | K78: 7 | L78: AP7 | M78: 2 | N78: 2566
A79: 11708 | B79: 161000AP0008 | C79: 05161 | D79: 161 | E79: AP | F79: 0008 | H79: Parcelle figurée au plan | I79: 01 | J79: 546 | K79: 8 | L79: AP8 | M79: 87 | N79: 459
A80: 11445 | B80: 161000AP0009 | C80: 05161 | D80: 161 | E80: AP | F80: 0009 | H80: Parcelle figurée au plan | I80: 01 | J80: 568 | K80: 9 | L80: AP9 | M80: 53 | N80: 515
A81: 11446 | B81: 161000AP0010 | C81: 05161 | D81: 161 | E81: AP | F81: 0010 | H81: Parcelle figurée au plan | I81: 01 | J81: 388 | K81: 10 | L81: AP10 | M81: 69 | N81: 319
A82: 11447 | B82: 161000AP0011 | C82: 05161 | D82: 161 | E82: AP | F82: 0011 | H82: Parcelle figurée au plan | I82: 01 | J82: 420 | K82: 11 | L82: AP11 | M82: 98 | N82: 322
A83: 11448 | B83: 161000AP0012 | C83: 05161 | D83: 161 | E83: AP | F83: 0012 | H83: Parcelle figurée au plan | I83: 01 | J83: 40 | K83: 12 | L83: AP12 | M83: 19 | N83: 21
A84: 11743 | B84: 161000AP0019 | C84: 05161 | D84: 161 | E84: AP | F84: 0019 | H84: Parcelle figurée au plan | I84: 01 | J84: 130 | K84: 19 | L84: AP19 | M84: 0 | N84: 130
A85: 11444 | B85: 161000AP0020 | C85: 05161 | D85: 161 | E85: AP | F85: 0020 | H85: Parcelle figurée au plan | I85: 01 | J85: 1485 | K85: 20 | L85: AP20 | M85: 0 | N85: 1485
A86: 11675 | B86: 161000AP0045 | C86: 05161 | D86: 161 | E86: AP | F86: 0045 | H86: Parcelle figurée au plan | I86: 01 | J86: 671 | K86: 45 | L86: AP45 | M86: 43 | N86: 628
A87: 11703 | B87: 161000AP0052 | C87: 05161 | D87: 161 | E87: AP | F87: 0052 | H87: Parcelle figurée au plan | I87: 01 | J87: 852 | K87: 52 | L87: AP52 | M87: 132 | N87: 720
A88: 11704 | B88: 161000AP0053 | C88: 05161 | D88: 161 | E88: AP | F88: 0053 | H88: Parcelle figurée au plan | I88: 01 | J88: 468 | K88: 53 | L88: AP53 | M88: 93 | N88: 375
A89: 11707 | B89: 161000AP0056 | C89: 05161 | D89: 161 | E89: AP | F89: 0056 | H89: Parcelle figurée au plan | I89: 01 | J89: 451 | K89: 56 | L89: AP56 | M89: 33 | N89: 418
A90: 11705 | B90: 161000AP0057 | C90: 05161 | D90: 161 | E90: AP | F90: 0057 | H90: Parcelle figurée au plan | I90: 01 | J90: 505 | K90: 57 | L90: AP57 | M90: 46 | N90: 459
A91: 11706 | B91: 161000AP0058 | C91: 05161 | D91: 161 | E91: AP | F91: 0058 | H91: Parcelle figurée au plan | I91: 01 | J91: 875 | K91: 58 | L91: AP58 | M91: 68 | N91: 807
A92: 11714 | B92: 161000AP0059 | C92: 05161 | D92: 161 | E92: AP | F92: 0059 | H92: Parcelle figurée au plan | I92: 01 | J92: 736 | K92: 59 | L92: AP59 | M92: 83 | N92: 653
A93: 11678 | B93: 161000AP0080 | C93: 05161 | D93: 161 | E93: AP | F93: 0080 | H93: Parcelle figurée au plan | I93: 01 | J93: 587 | K93: 80 | L93: AP80 | M93: 86 | N93: 501
A94: 11677 | B94: 161000AP0081 | C94: 05161 | D94: 161 | E94: AP | F94: 0081 | H94: Parcelle figurée au plan | I94: 01 | J94: 771 | K94: 81 | L94: AP81 | M94: 132 | N94: 639
A95: 11683 | B95: 161000AP0084 | C95: 05161 | D95: 161 | E95: AP | F95: 0084 | H95: Parcelle figurée au plan | I95: 01 | J95: 567 | K95: 84 | L95: AP84 | M95: 35 | N95: 532
A96: 11684 | B96: 161000AP0085 | C96: 05161 | D96: 161 | E96: AP | F96: 0085 | H96: Parcelle figurée au plan | I96: 01 | J96: 542 | K96: 85 | L96: AP85 | M96: 32 | N96: 510
A97: 11668 | B97: 161000AP0086 | C97: 05161 | D97: 161 | E97: AP | F97: 0086 | H97: Parcelle figurée au plan | I97: 01 | J97: 136 | K97: 86 | L97: AP86 | M97: 32 | N97: 104
A98: 11685 | B98: 161000AP0087 | C98: 05161 | D98: 161 | E98: AP | F98: 0087 | H98: Parcelle figurée au plan | I98: 01 | J98: 863 | K98: 87 | L98: AP87 | M98: 36 | N98: 827
A99: 11667 | B99: 161000AP0088 | C99: 05161 | D99: 161 | E99: AP | F99: 0088 | H99: Parcelle figurée au plan | I99: 01 | J99: 1106 | K99: 88 | L99: AP88 | M99: 46 | N99: 1060
A100: 11659 | B100: 161000AP0094 | C100: 05161 | D100: 161 | E100: AP | F100: 0094 | H100: Parcelle figurée au plan | I100: 01 | J100: 1538 | K100: 94 | L100: AP94 | M100: 5 | N100: 1533
A101: 11653 | B101: 161000AP0095 | C101: 05161 | D101: 161 | E101: AP | F101: 0095 | H101: Parcelle figurée au plan | I101: 01 | J101: 695 | K101: 95 | L101: AP95 | M101: 204 | N101: 491
A102: 11658 | B102: 161000AP0096 | C102: 05161 | D102: 161 | E102: AP | F102: 0096 | H102: Parcelle figurée au plan | I102: 01 | J102: 240 | K102: 96 | L102: AP96 | M102: 17 | N102: 223
A103: 11652 | B103: 161000AP0103 | C103: 05161 | D103: 161 | E103: AP | F103: 0103 | H103: Parcelle figurée au plan | I103: 01 | J103: 454 | K103: 103 | L103: AP103 | M103: 116 | N103: 338
A104: 11650 | B104: 161000AP0105 | C104: 05161 | D104: 161 | E104: AP | F104: 0105 | H104: Parcelle figurée au plan | I104: 01 | J104: 402 | K104: 105 | L104: AP105 | M104: 72 | N104: 330
A105: 11649 | B105: 161000AP0106 | C105: 05161 | D105: 161 | E105: AP | F105: 0106 | H105: Parcelle figurée au plan | I105: 01 | J105: 552 | K105: 106 | L105: AP106 | M105: 115 | N105: 437
A106: 11629 | B106: 161000AP0109 | C106: 05161 | D106: 161 | E106: AP | F106: 0109 | H106: Parcelle figurée au plan | I106: 01 | J106: 597 | K106: 109 | L106: AP109 | M106: 82 | N106: 515
A107: 11630 | B107: 161000AP0110 | C107: 05161 | D107: 161 | E107: AP | F107: 0110 | H107: Parcelle figurée au plan | I107: 01 | J107: 772 | K107: 110 | L107: AP110 | M107: 48 | N107: 724
A108: 11624 | B108: 161000AP0111 | C108: 05161 | D108: 161 | E108: AP | F108: 0111 | H108: Parcelle figurée au plan | I108: 01 | J108: 390 | K108: 111 | L108: AP111 | M108: 5 | N108: 385
A109: 11628 | B109: 161000AP0115 | C109: 05161 | D109: 161 | E109: AP | F109: 0115 | H109: Parcelle figurée au plan | I109: 01 | J109: 211 | K109: 115 | L109: AP115 | M109: 52 | N109: 159
A110: 11627 | B110: 161000AP0116 | C110: 05161 | D110: 161 | E110: AP | F110: 0116 | H110: Parcelle figurée au plan | I110: 01 | J110: 236 | K110: 116 | L110: AP116 | M110: 63 | N110: 173
A111: 11626 | B111: 161000AP0117 | C111: 05161 | D111: 161 | E111: AP | F111: 0117 | H111: Parcelle figurée au plan | I111: 01 | J111: 309 | K111: 117 | L111: AP117 | M111: 42 | N111: 267
A112: 11463 | B112: 161000AP0152 | C112: 05161 | D112: 161 | E112: AP | F112: 0152 | H112: Parcelle figurée au plan | I112: 01 | J112: 535 | K112: 152 | L112: AP152 | M112: 112 | N112: 423
A113: 11465 | B113: 161000AP0153 | C113: 05161 | D113: 161 | E113: AP | F113: 0153 | H113: Parcelle figurée au plan | I113: 01 | J113: 167 | K113: 153 | L113: AP153 | M113: 49 | N113: 118
A114: 11464 | B114: 161000AP0154 | C114: 05161 | D114: 161 | E114: AP | F114: 0154 | H114: Parcelle figurée au plan | I114: 01 | J114: 290 | K114: 154 | L114: AP154 | M114: 17 | N114: 273
A115: 11455 | B115: 161000AP0161 | C115: 05161 | D115: 161 | E115: AP | F115: 0161 | H115: Parcelle figurée au plan | I115: 01 | J115: 710 | K115: 161 | L115: AP161 | M115: 1 | N115: 709
A116: 11467 | B116: 161000AP0162 | C116: 05161 | D116: 161 | E116: AP | F116: 0162 | H116: Parcelle figurée au plan | I116: 01 | J116: 564 | K116: 162 | L116: AP162 | M116: 89 | N116: 475
A117: 11466 | B117: 161000AP0163 | C117: 05161 | D117: 161 | E117: AP | F117: 0163 | H117: Parcelle figurée au plan | I117: 01 | J117: 260 | K117: 163 | L117: AP163 | M117: 41 | N117: 219
A118: 11730 | B118: 161000AP0164 | C118: 05161 | D118: 161 | E118: AP | F118: 0164 | H118: Parcelle figurée au plan | I118: 01 | J118: 52 | K118: 164 | L118: AP164 | M118: 3 | N118: 49
A119: 11503 | B119: 161000AP0174 | C119: 05161 | D119: 161 | E119: AP | F119: 0174 | H119: Parcelle figurée au plan | I119: 01 | J119: 243 | K119: 174 | L119: AP174 | M119: 20 | N119: 223
A120: 11504 | B120: 161000AP0175 | C120: 05161 | D120: 161 | E120: AP | F120: 0175 | H120: Parcelle figurée au plan | I120: 01 | J120: 152 | K120: 175 | L120: AP175 | M120: 20 | N120: 132
A121: 11499 | B121: 161000AP0176 | C121: 05161 | D121: 161 | E121: AP | F121: 0176 | H121: Parcelle figurée au plan | I121: 01 | J121: 457 | K121: 176 | L121: AP176 | M121: 40 | N121: 417
A122: 11505 | B122: 161000AP0177 | C122: 05161 | D122: 161 | E122: AP | F122: 0177 | H122: Parcelle figurée au plan | I122: 01 | J122: 605 | K122: 177 | L122: AP177 | M122: 50 | N122: 555
A123: 11506 | B123: 161000AP0180 | C123: 05161 | D123: 161 | E123: AP | F123: 0180 | H123: Parcelle figurée au plan | I123: 01 | J123: 950 | K123: 180 | L123: AP180 | M123: 78 | N123: 872
A124: 11507 | B124: 161000AP0181 | C124: 05161 | D124: 161 | E124: AP | F124: 0181 | H124: Parcelle figurée au plan | I124: 01 | J124: 293 | K124: 181 | L124: AP181 | M124: 28 | N124: 265
A125: 11489 | B125: 161000AP0182 | C125: 05161 | D125: 161 | E125: AP | F125: 0182 | H125: Parcelle figurée au plan | I125: 01 | J125: 766 | K125: 182 | L125: AP182 | M125: 31 | N125: 735
A126: 11510 | B126: 161000AP0183 | C126: 05161 | D126: 161 | E126: AP | F126: 0183 | H126: Parcelle figurée au plan | I126: 01 | J126: 845 | K126: 183 | L126: AP183 | M126: 65 | N126: 780
A127: 11511 | B127: 161000AP0188 | C127: 05161 | D127: 161 | E127: AP | F127: 0188 | H127: Parcelle figurée au plan | I127: 01 | J127: 1918 | K127: 188 | L127: AP188 | M127: 211 | N127: 1707
A128: 11513 | B128: 161000AP0190 | C128: 05161 | D128: 161 | E128: AP | F128: 0190 | H128: Parcelle figurée au plan | I128: 01 | J128: 1239 | K128: 190 | L128: AP190 | M128: 141 | N128: 1098
A129: 11514 | B129: 161000AP0191 | C129: 05161 | D129: 161 | E129: AP | F129: 0191 | H129: Parcelle figurée au plan | I129: 01 | J129: 1239 | K129: 191 | L129: AP191 | M129: 162 | N129: 1077
A130: 11515 | B130: 161000AP0192 | C130: 05161 | D130: 161 | E130: AP | F130: 0192 | H130: Parcelle figurée au plan | I130: 01 | J130: 718 | K130: 192 | L130: =CONCATENATE(E130,K130) -> AP192 | M130: 33 | N130: 685
A131: 11741 | B131: 161000AP0193 | C131: 05161 | D131: 161 | E131: AP | F131: 0193 | H131: Parcelle figurée au plan | I131: 01 | J131: 367 | K131: 193 | L131: AP193 | M131: 7 | N131: =J131-M131 -> 360
A132: 11633 | B132: 161000AP0194 | C132: 05161 | D132: 161 | E132: AP | F132: 0194 | H132: Parcelle figurée au plan | I132: 01 | J132: 1562 | K132: 194 | L132: AP194 | M132: 152 | N132: 1410
A133: 11580 | B133: 161000AP0234 | C133: 05161 | D133: 161 | E133: AP | F133: 0234 | H133: Parcelle figurée au plan | I133: 01 | J133: 648 | K133: 234 | L133: AP234 | M133: 22 | N133: 626
A134: 11342 | B134: 161000AP0258 | C134: 05161 | D134: 161 | E134: AP | F134: 0258 | H134: Parcelle figurée au plan | I134: 01 | J134: 488 | K134: 258 | L134: AP258 | M134: 179 | N134: 309
A135: 11750 | B135: 161000AP0263 | C135: 05161 | D135: 161 | E135: AP | F135: 0263 | H135: Parcelle figurée au plan | I135: 01 | J135: 225 | K135: 263 | L135: AP263 | M135: 22 | N135: 203
A136: 11739 | B136: 161000AP0273 | C136: 05161 | D136: 161 | E136: AP | F136: 0273 | H136: Parcelle figurée au plan | I136: 01 | J136: 230 | K136: 273 | L136: AP273 | M136: 5 | N136: 225
A137: 11540 | B137: 161000AP0274 | C137: 05161 | D137: 161 | E137: AP | F137: 0274 | H137: Parcelle figurée au plan | I137: 01 | J137: 530 | K137: 274 | L137: AP274 | M137: 43 | N137: 487
A138: 11539 | B138: 161000AP0275 | C138: 05161 | D138: 161 | E138: AP | F138: 0275 | H138: Parcelle figurée au plan | I138: 01 | J138: 685 | K138: 275 | L138: AP275 | M138: 172 | N138: 513
A139: 11538 | B139: 161000AP0276 | C139: 05161 | D139: 161 | E139: AP | F139: 0276 | H139: Parcelle figurée au plan | I139: 01 | J139: 670 | K139: 276 | L139: AP276 | M139: 56 | N139: 614
A140: 11345 | B140: 161000AP0294 | C140: 05161 | D140: 161 | E140: AP | F140: 0294 | H140: Parcelle figurée au plan | I140: 01 | J140: 3558 | K140: 294 | L140: AP294 | M140: 459 | N140: 3099
A141: 11346 | B141: 161000AP0295 | C141: 05161 | D141: 161 | E141: AP | F141: 0295 | H141: Parcelle figurée au plan | I141: 01 | J141: 980 | K141: 295 | L141: AP295 | M141: 128 | N141: 852
A142: 11740 | B142: 161000AP0301 | C142: 05161 | D142: 161 | E142: AP | F142: 0301 | H142: Parcelle figurée au plan | I142: 01 | J142: 140 | K142: 301 | L142: AP301 | M142: 3 | N142: 137
A143: 11529 | B143: 161000AP0304 | C143: 05161 | D143: 161 | E143: AP | F143: 0304 | H143: Parcelle figurée au plan | I143: 01 | J143: 808 | K143: 304 | L143: AP304 | M143: 6 | N143: 802
A144: 11530 | B144: 161000AP0305 | C144: 05161 | D144: 161 | E144: AP | F144: 0305 | H144: Parcelle figurée au plan | I144: 01 | J144: 450 | K144: 305 | L144: AP305 | M144: 125 | N144: 325
A145: 11534 | B145: 161000AP0309 | C145: 05161 | D145: 161 | E145: AP | F145: 0309 | H145: Parcelle figurée au plan | I145: 01 | J145: 196 | K145: 309 | L145: AP309 | M145: 5 | N145: 191
A146: 11533 | B146: 161000AP0310 | C146: 05161 | D146: 161 | E146: AP | F146: 0310 | H146: Parcelle figurée au plan | I146: 01 | J146: 412 | K146: 310 | L146: AP310 | M146: 34 | N146: 378
A147: 11528 | B147: 161000AP0314 | C147: 05161 | D147: 161 | E147: AP | F147: 0314 | H147: Parcelle figurée au plan | I147: 01 | J147: 596 | K147: 314 | L147: AP314 | M147: 90 | N147: 506
A148: 11526 | B148: 161000AP0315 | C148: 05161 | D148: 161 | E148: AP | F148: 0315 | H148: Parcelle figurée au plan | I148: 01 | J148: 1292 | K148: 315 | L148: AP315 | M148: 148 | N148: 1144
A149: 11520 | B149: 161000AP0317 | C149: 05161 | D149: 161 | E149: AP | F149: 0317 | H149: Parcelle figurée au plan | I149: 01 | J149: 1135 | K149: 317 | L149: AP317 | M149: 8 | N149: 1127
A150: 11527 | B150: 161000AP0318 | C150: 05161 | D150: 161 | E150: AP | F150: 0318 | H150: Parcelle figurée au plan | I150: 01 | J150: 1048 | K150: 318 | L150: AP318 | M150: 101 | N150: 947
A151: 11749 | B151: 161000AP0319 | C151: 05161 | D151: 161 | E151: AP | F151: 0319 | H151: Parcelle figurée au plan | I151: 01 | J151: 289 | K151: 319 | L151: AP319 | M151: 39 | N151: 250
A152: 11347 | B152: 161000AP0320 | C152: 05161 | D152: 161 | E152: AP | F152: 0320 | H152: Parcelle figurée au plan | I152: 01 | J152: 2310 | K152: 320 | L152: AP320 | M152: 91 | N152: 2219
A153: 11532 | B153: 161000AP0410 | C153: 05161 | D153: 161 | E153: AP | F153: 0410 | H153: Parcelle figurée au plan | I153: 01 | J153: 595 | K153: 410 | L153: AP410 | M153: 171 | N153: 424
A154: 11531 | B154: 161000AP0411 | C154: 05161 | D154: 161 | E154: AP | F154: 0411 | H154: Parcelle figurée au plan | I154: 01 | J154: 967 | K154: 411 | L154: AP411 | M154: 230 | N154: 737
A155: 11334 | B155: 161000AP0414 | C155: 05161 | D155: 161 | E155: AP | F155: 0414 | H155: Parcelle figurée au plan | I155: 01 | J155: 319 | K155: 414 | L155: AP414 | M155: 13 | N155: 306
A156: 11344 | B156: 161000AP0415 | C156: 05161 | D156: 161 | E156: AP | F156: 0415 | G156: A | H156: Parcelle figurée au plan | I156: 01 | J156: 1350 | K156: 415 | L156: AP415 | M156: 205 | N156: 1145
A157: 11343 | B157: 161000AP0416 | C157: 05161 | D157: 161 | E157: AP | F157: 0416 | G157: A | H157: Parcelle figurée au plan | I157: 01 | J157: 1018 | K157: 416 | L157: AP416 | M157: 225 | N157: 793
A158: 11582 | B158: 161000AP0422 | C158: 05161 | D158: 161 | E158: AP | F158: 0422 | H158: Parcelle figurée au plan | I158: 01 | J158: 313 | K158: 422 | L158: AP422 | M158: 155 | N158: 158
A159: 11330 | B159: 161000AP0459 | C159: 05161 | D159: 161 | E159: AP | F159: 0459 | H159: Parcelle figurée au plan | I159: 01 | J159: 977 | K159: 459 | L159: AP459 | M159: 92 | N159: 885
A160: 11331 | B160: 161000AP0460 | C160: 05161 | D160: 161 | E160: AP | F160: 0460 | G160: A | H160: Parcelle figurée au plan | I160: 01 | J160: 1148 | K160: 460 | L160: AP460 | M160: 4 | N160: 1144
A161: 4315 | B161: 1610000D1335 | C161: 05161 | D161: 161 | E161: D | F161: 1335 | H161: Parcelle figurée au plan | I161: 01 | J161: 440 | K161: 1335 | L161: D1335 | M161: 98 | N161: 342
A162: 4316 | B162: 1610000D1338 | C162: 05161 | D162: 161 | E162: D | F162: 1338 | H162: Parcelle figurée au plan | I162: 01 | J162: 590 | K162: 1338 | L162: D1338 | M162: 126 | N162: 464
A163: 4321 | B163: 1610000D1339 | C163: 05161 | D163: 161 | E163: D | F163: 1339 | H163: Parcelle figurée au plan | I163: 01 | J163: 1265 | K163: 1339 | L163: D1339 | M163: 51 | N163: 1214
A164: 4317 | B164: 1610000D1341 | C164: 05161 | D164: 161 | E164: D | F164: 1341 | H164: Parcelle figurée au plan | I164: 01 | J164: 2132 | K164: 1341 | L164: D1341 | M164: 71 | N164: 2061
A165: 4351 | B165: 1610000D1342 | C165: 05161 | D165: 161 | E165: D | F165: 1342 | H165: Parcelle figurée au plan | I165: 01 | J165: 2133 | K165: 1342 | L165: D1342 | M165: 698 | N165: 1435
A166: 4318 | B166: 1610000D1343 | C166: 05161 | D166: 161 | E166: D | F166: 1343 | H166: Parcelle figurée au plan | I166: 01 | J166: 1915 | K166: 1343 | L166: D1343 | M166: 561 | N166: 1354
A167: 4319 | B167: 1610000D1344 | C167: 05161 | D167: 161 | E167: D | F167: 1344 | H167: Parcelle figurée au plan | I167: 01 | J167: 1766 | K167: 1344 | L167: D1344 | M167: 690 | N167: 1076
A168: 4320 | B168: 1610000D1345 | C168: 05161 | D168: 161 | E168: D | F168: 1345 | H168: Parcelle figurée au plan | I168: 01 | J168: 2246 | K168: 1345 | L168: D1345 | M168: 315 | N168: 1931
A169: 4322 | B169: 1610000D1349 | C169: 05161 | D169: 161 | E169: D | F169: 1349 | H169: Parcelle figurée au plan | I169: 01 | J169: 790 | K169: 1349 | L169: D1349 | M169: 80 | N169: 710
A170: 4323 | B170: 1610000D1350 | C170: 05161 | D170: 161 | E170: D | F170: 1350 | H170: Parcelle figurée au plan | I170: 01 | J170: 430 | K170: 1350 | L170: D1350 | M170: 2 | N170: 428
A171: 4325 | B171: 1610000D1351 | C171: 05161 | D171: 161 | E171: D | F171: 1351 | H171: Parcelle figurée au plan | I171: 01 | J171: 150 | K171: 1351 | L171: D1351 | M171: 74 | N171: 76
A172: 4324 | B172: 1610000D1355 | C172: 05161 | D172: 161 | E172: D | F172: 1355 | H172: Parcelle figurée au plan | I172: 01 | J172: 750 | K172: 1355 | L172: D1355 | M172: 82 | N172: 668
A173: 4335 | B173: 1610000D1356 | C173: 05161 | D173: 161 | E173: D | F173: 1356 | H173: Parcelle figurée au plan | I173: 01 | J173: 360 | K173: 1356 | L173: D1356 | M173: 45 | N173: 315
A174: 4330 | B174: 1610000D1357 | C174: 05161 | D174: 161 | E174: D | F174: 1357 | H174: Parcelle figurée au plan | I174: 01 | J174: 426 | K174: 1357 | L174: D1357 | M174: 101 | N174: 325
A175: 4331 | B175: 1610000D1358 | C175: 05161 | D175: 161 | E175: D | F175: 1358 | H175: Parcelle figurée au plan | I175: 01 | J175: 879 | K175: 1358 | L175: D1358 | M175: 385 | N175: 494
A176: 4332 | B176: 1610000D1359 | C176: 05161 | D176: 161 | E176: D | F176: 1359 | H176: Parcelle figurée au plan | I176: 01 | J176: 677 | K176: 1359 | L176: D1359 | M176: 38 | N176: 639
A177: 4334 | B177: 1610000D1361 | C177: 05161 | D177: 161 | E177: D | F177: 1361 | H177: Parcelle figurée au plan | I177: 01 | J177: 1669 | K177: 1361 | L177: D1361 | M177: 100 | N177: 1569
A178: 4347 | B178: 1610000D1362 | C178: 05161 | D178: 161 | E178: D | F178: 1362 | H178: Parcelle figurée au plan | I178: 01 | J178: 493 | K178: 1362 | L178: D1362 | M178: 34 | N178: 459
A179: 4348 | B179: 1610000D1363 | C179: 05161 | D179: 161 | E179: D | F179: 1363 | H179: Parcelle figurée au plan | I179: 01 | J179: 379 | K179: 1363 | L179: D1363 | M179: 54 | N179: 325
A180: 4349 | B180: 1610000D1365 | C180: 05161 | D180: 161 | E180: D | F180: 1365 | H180: Parcelle figurée au plan | I180: 01 | J180: 624 | K180: 1365 | L180: D1365 | M180: 45 | N180: 579
A181: 4344 | B181: 1610000D1368 | C181: 05161 | D181: 161 | E181: D | F181: 1368 | H181: Parcelle figurée au plan | I181: 01 | J181: 543 | K181: 1368 | L181: D1368 | M181: 66 | N181: 477
A182: 4338 | B182: 1610000D1369 | C182: 05161 | D182: 161 | E182: D | F182: 1369 | H182: Parcelle figurée au plan | I182: 01 | J182: 807 | K182: 1369 | L182: D1369 | M182: 76 | N182: 731
A183: 4521 | B183: 1610000D1374 | C183: 05161 | D183: 161 | E183: D | F183: 1374 | H183: Parcelle figurée au plan | I183: 01 | J183: 320 | K183: 1374 | L183: D1374 | M183: 30 | N183: 290
A184: 4337 | B184: 1610000D1375 | C184: 05161 | D184: 161 | E184: D | F184: 1375 | H184: Parcelle figurée au plan | I184: 01 | J184: 301 | K184: 1375 | L184: D1375 | M184: 153 | N184: 148
A185: 4346 | B185: 1610000D1376 | C185: 05161 | D185: 161 | E185: D | F185: 1376 | H185: Parcelle figurée au plan | I185: 01 | J185: 134 | K185: 1376 | L185: D1376 | M185: 40 | N185: 94
A186: 4345 | B186: 1610000D1378 | C186: 05161 | D186: 161 | E186: D | F186: 1378 | H186: Parcelle figurée au plan | I186: 01 | J186: 136 | K186: 1378 | L186: D1378 | M186: 63 | N186: 73
A187: 4336 | B187: 1610000D1379 | C187: 05161 | D187: 161 | E187: D | F187: 1379 | H187: Parcelle figurée au plan | I187: 01 | J187: 330 | K187: 1379 | L187: D1379 | M187: 148 | N187: 182
A188: 4329 | B188: 1610000D1380 | C188: 05161 | D188: 161 | E188: D | F188: 1380 | H188: Parcelle figurée au plan | I188: 01 | J188: 490 | K188: 1380 | L188: D1380 | M188: 142 | N188: 348
A189: 4328 | B189: 1610000D1381 | C189: 05161 | D189: 161 | E189: D | F189: 1381 | H189: Parcelle figurée au plan | I189: 01 | J189: 500 | K189: 1381 | L189: D1381 | M189: 9 | N189: 491
A190: 4327 | B190: 1610000D1382 | C190: 05161 | D190: 161 | E190: D | F190: 1382 | H190: Parcelle figurée au plan | I190: 01 | J190: 780 | K190: 1382 | L190: D1382 | M190: 202 | N190: 578
A191: 5335 | B191: 1610000D1876 | C191: 05161 | D191: 161 | E191: D | F191: 1876 | H191: Parcelle figurée au plan | I191: 01 | J191: 1230 | K191: 1876 | L191: D1876 | M191: 1 | N191: 1229
A192: 5169 | B192: 1610000D1884 | C192: 05161 | D192: 161 | E192: D | F192: 1884 | H192: Parcelle figurée au plan | I192: 01 | J192: 604 | K192: 1884 | L192: D1884 | M192: 16 | N192: 588
A193: 5174 | B193: 1610000D1885 | C193: 05161 | D193: 161 | E193: D | F193: 1885 | H193: Parcelle figurée au plan | I193: 01 | J193: 84 | K193: 1885 | L193: D1885 | M193: 55 | N193: 29
A194: 4178 | B194: 1610000D3268 | C194: 05161 | D194: 161 | E194: D | F194: 3268 | H194: Parcelle figurée au plan | I194: 01 | J194: 2367 | K194: 3268 | L194: =CONCATENATE(E194,K194) -> D3268 | M194: 310 | N194: 2057
A195: 4179 | B195: 1610000D3269 | C195: 05161 | D195: 161 | E195: D | F195: 3269 | H195: Parcelle figurée au plan | I195: 01 | J195: 331 | K195: 3269 | L195: D3269 | M195: 2 | N195: =J195-M195 -> 329
A196: 4180 | B196: 1610000D3270 | C196: 05161 | D196: 161 | E196: D | F196: 3270 | H196: Parcelle figurée au plan | I196: 01 | J196: 500 | K196: 3270 | L196: D3270 | M196: 16 | N196: 484
A197: 4181 | B197: 1610000D3271 | C197: 05161 | D197: 161 | E197: D | F197: 3271 | H197: Parcelle figurée au plan | I197: 01 | J197: 660 | K197: 3271 | L197: D3271 | M197: 74 | N197: 586
A198: 4183 | B198: 1610000D3273 | C198: 05161 | D198: 161 | E198: D | F198: 3273 | H198: Parcelle figurée au plan | I198: 01 | J198: 786 | K198: 3273 | L198: D3273 | M198: 1 | N198: 785
A199: 4184 | B199: 1610000D3274 | C199: 05161 | D199: 161 | E199: D | F199: 3274 | H199: Parcelle figurée au plan | I199: 01 | J199: 820 | K199: 3274 | L199: D3274 | M199: 38 | N199: 782
A200: 4185 | B200: 1610000D3275 | C200: 05161 | D200: 161 | E200: D | F200: 3275 | H200: Parcelle figurée au plan | I200: 01 | J200: 640 | K200: 3275 | L200: D3275 | M200: 54 | N200: 586
... 20 more rows
